{"text_format":"1","workbook":"xlsx","n_sheets":12,"sheets":["Menu","AU","Abastecimento","Lançar Pedidos","Lançar produção","Cadastro Refs","Setores","Nome Terceirização","Dias úteis","feriados","Conversor","Conversor-2"],"not_rendered":{"charts":0,"images":1,"macros":1,"external_links":3,"defined_names":28,"comments":2,"pivot_tables":0},"unopened":[],"bounds":{"document_bytes":16777216,"sheet_cells":100000,"rows_first":2000,"rows_last":500,"rows_between":2000,"halvings":0,"cell_chars":16384,"cell_head_chars":4096},"cells_cut":0,"cells_raw":0,"read":"whole","date_system":"1900"}

{"sheet":"Menu","index":0,"n_rows":51,"n_cols":6,"rows_kept":51,"cut":false,"hidden":false,"merged":[]}
[]
[]
[]
[]
[]
[]
[]
[]
[]
[]
[]
[]
[]
[]
[]
[]
[]
[]
[]
[]
[]
[]
[null,null,null,null,"www.planilhasparaconfeccao.com.br"]
[null,null,null,"© 2012 - Pedro Paulo Andriani. Todos os direitos reservados."]
[null,null,null,null,null,"Versão 1.0"]
[]
[]
[]
[]
[]
[]
[]
[]
[]
[]
[]
[]
[]
[]
[]
[]
[]
[]
[]
[]
[]
[]
[]
[]
[]
[null,null,null,{"$f":"IF(AU!AB2=0,\"ATENÇÃO ! A planilha foi violada, portanto as informações não são mais confiáveis.\",\"\")","v":""}]

{"sheet":"AU","index":1,"n_rows":8,"n_cols":16384,"rows_kept":8,"cut":false,"hidden":true,"merged":[]}
[null,null,null,null,null,null,null,null,null,null,null,null,null,null,null,null,null,null,null,null,null,null,null,null,null,null,null,"2100-01-01",null,null,null,null,null,null,null,null,null,null,null,null,null,null,null,null,null,null,null,null,null,null,null,null,null,null,null,null,null,null,null,null,null,null,null,null,null,null,null,null,null,null,null,null,null,null,null,null,null,null,null,null,null,null,null,null,null,null,null,null,null,null,null,null,null,null,null,null,null,null,null,null,null,null,null,null,null,null,null,null,null,null,null,null,null,null,null,null,null,null,null,null,null,null,null,null,null,null,null,null,null,null,null,null,null,null,null,null,null,null,null,null,null,null,null,null,null,null,null,null,null,null,null,null,null,null,null,null,null,null,null,null,null,null,null,null,null,null,null,null,null,null,null,null,null,null,null,null,null,null,null,null,null,null,null,null,null,null,null,null,null,null,null,null,null,null,null,null,null,null,null,null,null,null,null,null,null,null,null,null,null,null,null,null,null,null,null,null,null,null,null,null,null,null,null,null,null,null,null,null,null,null,null,null,null,null,null,null,null,null,null,null,null,null,null,null,null,null,null,null,null,null,null,null,null,null,null,null,null,null,null,null,null,null,null,null,null,null,null,null,null,null,null,null,null,null,null,null,null,null,null,null,null,null,null,null,null,null,null,null,null,null,null,null,null,null,null,null,null,null,null,null,null,null,null,null,null,null,null,null,null,null,null,null,null,null,null,null,null,null,null,null,null,null,null,null,null,null,null,null,null,null,null,null,null,null,null,null,null,null,null,null,null,null,null,null,null,null,null,null,null,null,null,null,null,null,null,null,null,null,null,null,null,null,null,null,null,null,null,null,null,null,null,null,null,null,null,null,null,null,null,null,null,null,null,null,null,null,null,null,null,null,null,null,null,null,null,null,null,null,null,null,null,null,null,null,null,null,null,null,null,null,null,null,null,null,null,null,null,null,null,null,null,null,null,null,null,null,null,null,null,null,null,null,null,null,null,null,null,null,null,null,null,null,null,null,null,null,null,null,null,null,null,null,null,null,null,null,null,null,null,null,null,null,null,null,null,null,null,null,null,null,null,null,null,null,null,null,null,null,null,null,null,null,null,null,null,null,null,null,null,null,null,null,null,null,null,null,null,null,null,null,null,null,null,null,null,null,null,null,null,null,null,null,null,null,null,null,null,null,null,null,null,null,null,null,null,null,null,null,null,null,null,null,null,null,null,null,null,null,null,null,null,null,null,null,null,null,null,null,null,null,null,null,null,null,null,null,null,null,null,null,null,null,null,null,null,null,null,null,null,null,null,null,null,null,null,null,null,null,null,null,null,null,null,null,null,null,null,null,null,null,null,null,null,null,null,null,null,null,null,null,null,null,null,null,null,null,null,null,null,null,null,null,null,null,null,null,null,null,null,null,null,null,null,null,null,null,null,null,null,null,null,null,null,null,null,null,null,null,null,null,null,null,null,null,null,null,null,null,null,null,null,null,null,null,null,null,null,null,null,null,null,null,null,null,null,null,null,null,null,null,null,null,null,null,null,null,null,null,null,null,null,null,null,null,null,null,null,null,null,null,null,null,null,null,null,null,null,null,null,null,null,null,null,null,null,null,null,null,null,null,null,null,null,null,null,null,null,null,null,null,null,null,null,null,null,null,null,null,null,null,null,null,null,null,null,null,null,null,null,null,null,null,null,null,null,null,null,null,null,null,null,null,null,null,null,null,null,null,null,null,null,null,null,null,null,null,null,null,null,null,null,null,null,null,null,null,null,null,null,null,null,null,null,null,null,null,null,null,null,null,null,null,null,null,null,null,null,null,null,null,null,null,null,null,null,null,null,null,null,null,null,null,null,null,null,null,null,null,null,null,null,null,null,null,null,null,null,null,null,null,null,null,null,null,null,null,null,null,null,null,null,null,null,null,null,null,null,null,null,null,null,null,null,null,null,null,null,null,null,null,null,null,null,null,null,null,null,null,null,null,null,null,null,null,null,null,null,null,null,null,null,null,null,null,null,null,null,null,null,null,null,null,null,null,null,null,null,null,null,null,null,null,null,null,null,null,null,null,null,null,null,null,null,null,null,null,null,null,null,null,null,null,null,null,null,null,null,null,null,null,null,null,null,null,null,null,null,null,null,null,null,null,null,null,null,null,null,null,null,null,null,null,null,null,null,null,null,null,null,null,null,null,null,null,null,null,null,null,null,null,null,null,null,null,null,null,null,null,null,null,null,null,null,null,null,null,null,null,null,null,null,null,null,null,null,null,null,null,null,null,null,null,null,null,null,null,null,null,null,null,null,null,null,null,null,null,null,null,null,null,null,null,null,null,null,null,null,null,null,null,null,null,null,null,null,null,null,null,null,null,null,null,null,null,null,null,null,null,null,null,null,null,null,null,null,null,null,null,null,null,null,null,null,null,null,null,null,null,null,null,null,null,null,null,null,null,null,null,null,null,null,null,null,null,null,null,null,null,null,null,null,null,null,null,null,null,null,null,null,null,null,null,null,null,null,null,null,null,null,null,null,null,null,null,null,null,null,null,null,null,null,null,null,null,null,null,null,null,null,null,null,null,null,null,null,null,null,null,null,null,null,null,null,null,null,null,null,null,null,null,null,null,null,null,null,null,null,null,null,null,null,null,null,null,null,null,null,null,null,null,null,null,null,null,null,null,null,null,null,null,null,null,null,null,null,null,null,null,null,null,null,null,null,null,null,null,null,null,null,null,null,null,null,null,null,null,null,null,null,null,null,null,null,null,null,null,null,null,null,null,null,null,null,null,null,null,null,null,null,null,null,null,null,null,null,null,null,null,null,null,null,null,null,null,null,null,null,null,null,null,null,null,null,null,null,null,null,null,null,null,null,null,null,null,null,null,null,null,null,null,null,null,null,null,null,null,null,null,null,null,null,null,null,null,null,null,null,null,null,null,null,null,null,null,null,null,null,null,null,null,null,null,null,null,null,null,null,null,null,null,null,null,null,null,null,null,null,null,null,null,null,null,null,null,null,null,null,null,null,null,null,null,null,null,null,null,null,null,null,null,null,null,null,null,null,null,null,null,null,null,null,null,null,null,null,null,null,null,null,null,null,null,null,null,null,null,null,null,null,null,null,null,null,null,null,null,null,null,null,null,null,null,null,null,null,null,null,null,null,null,null,null,null,null,null,null,null,null,null,null,null,null,null,null,null,null,null,null,null,null,null,null,null,null,null,null,null,null,null,null,null,null,null,null,null,null,null,null,null,null,null,null,null,null,null,null,null,null,null,null,null,null,null,null,null,null,null,null,null,null,null,null,null,null,null,null,null,null,null,null,null,null,null,null,null,null,null,null,null,null,null,null,null,null,null,null,null,null,null,null,null,null,null,null,null,null,null,null,null,null,null,null,null,null,null,null,null,null,null,null,null,null,null,null,null,null,null,null,null,null,null,null,null,null,null,null,null,null,null,null,null,null,null,null,null,null,null,null,null,null,null,null,null,null,null,null,null,null,null,null,null,null,null,null,null,null,null,null,null,null,null,null,null,null,null,null,null,null,null,null,null,null,null,null,null,null,null,null,null,null,null,null,null,null,null,null,null,null,null,null,null,null,null,null,null,null,null,null,null,null,null,null,null,null,null,null,null,null,null,null,null,null,null,null,null,null,null,null,null,null,null,null,null,null,null,null,null,null,null,null,null,null,null,null,null,null,null,null,null,null,null,null,null,null,null,null,null,null,null,null,null,null,null,null,null,null,null,null,null,null,null,null,null,null,null,null,null,null,null,null,null,null,null,null,null,null,null,null,null,null,null,null,null,null,null,null,null,null,null,null,null,null,null,null,null,null,null,null,null,null,null,null,null,null,null,null,null,null,null,null,null,null,null,null,null,null,null,null,null,null,null,null,null,null,null,null,null,null,null,null,null,null,null,null,null,null,null,null,null,null,null,null,null,null,null,null,null,null,null,null,null,null,null,null,null,null,null,null,null,null,null,null,null,null,null,null,null,null,null,null,null,null,null,null,null,null,null,null,null,null,null,null,null,null,null,null,null,null,null,null,null,null,null,null,null,null,null,null,null,null,null,null,null,null,null,null,null,null,null,null,null,null,null,null,null,null,null,null,null,null,null,null,null,null,null,null,null,null,null,null,null,null,null,null,null,null,null,null,null,null,null,null,null,null,null,null,null,null,null,null,null,null,null,null,null,null,null,null,null,null,null,null,null,null,null,null,null,null,null,null,null,null,null,null,null,null,null,null,null,null,null,null,null,null,null,null,null,null,null,null,null,null,null,null,null,null,null,null,null,null,null,null,null,null,null,null,null,null,null,null,null,null,null,null,null,null,null,null,null,null,null,null,null,null,null,null,null,null,null,null,null,null,null,null,null,null,null,null,null,null,null,null,null,null,null,null,null,null,null,null,null,null,null,null,null,null,null,null,null,null,null,null,null,null,null,null,null,null,null,null,null,null,null,null,null,null,null,null,null,null,null,null,null,null,null,null,null,null,null,null,null,null,null,null,null,null,null,null,null,null,null,null,null,null,null,null,null,null,null,null,null,null,null,null,null,null,null,null,null,null,null,null,null,null,null,null,null,null,null,null,null,null,null,null,null,null,null,null,null,null,null,null,null,null,null,null,null,null,null,null,null,null,null,null,null,null,null,null,null,null,null,null,null,null,null,null,null,null,null,null,null,null,null,null,null,null,null,null,null,null,null,null,null,null,null,null,null,null,null,null,null,null,null,null,null,null,null,null,null,null,null,null,null,null,null,null,null,null,null,null,null,null,null,null,null,null,null,null,null,null,null,null,null,null,null,null,null,null,null,null,null,null,null,null,null,null,null,null,null,null,null,null,null,null,null,null,null,null,null,null,null,null,null,null,null,null,null,null,null,null,null,null,null,null,null,null,null,null,null,null,null,null,null,null,null,null,null,null,null,null,null,null,null,null,null,null,null,null,null,null,null,null,null,null,null,null,null,null,null,null,null,null,null,null,null,null,null,null,null,null,null,null,null,null,null,null,null,null,null,null,null,null,null,null,null,null,null,null,null,null,null,null,null,null,null,null,null,null,null,null,null,null,null,null,null,null,null,null,null,null,null,null,null,null,null,null,null,null,null,null,null,null,null,null,null,null,null,null,null,null,null,null,null,null,null,null,null,null,null,null,null,null,null,null,null,null,null,null,null,null,null,null,null,null,null,null,null,null,null,null,null,null,null,null,null,null,null,null,null,null,null,null,null,null,null,null,null,null,null,null,null,null,null,null,null,null,null,null,null,null,null,null,null,null,null,null,null,null,null,null,null,null,null,null,null,null,null,null,null,null,null,null,null,null,null,null,null,null,null,null,null,null,null,null,null,null,null,null,null,null,null,null,null,null,null,null,null,null,null,null,null,null,null,null,null,null,null,null,null,null,null,null,null,null,null,null,null,null,null,null,null,null,null,null,null,null,null,null,null,null,null,null,null,null,null,null,null,null,null,null,null,null,null,null,null,null,null,null,null,null,null,null,null,null,null,null,null,null,null,null,null,null,null,null,null,null,null,null,null,null,null,null,null,null,null,null,null,null,null,null,null,null,null,null,null,null,null,null,null,null,null,null,null,null,null,null,null,null,null,null,null,null,null,null,null,null,null,null,null,null,null,null,null,null,null,null,null,null,null,null,null,null,null,null,null,null,null,null,null,null,null,null,null,null,null,null,null,null,null,null,null,null,null,null,null,null,null,null,null,null,null,null,null,null,null,null,null,null,null,null,null,null,null,null,null,null,null,null,null,null,null,null,null,null,null,null,null,null,null,null,null,null,null,null,null,null,null,null,null,null,null,null,null,null,null,null,null,null,null,null,null,null,null,null,null,null,null,null,null,null,null,null,null,null,null,null,null,null,null,null,null,null,null,null,null,null,null,null,null,null,null,null,null,null,null,null,null,null,null,null,null,null,null,null,null,null,null,null,null,null,null,null,null,null,null,null,null,null,null,null,null,null,null,null,null,null,null,null,null,null,null,null,null,null,null,null,null,null,null,null,null,null,null,null,null,null,null,null,null,null,null,null,null,null,null,null,null,null,null,null,null,null,null,null,null,null,null,null,null,null,null,null,null,null,null,null,null,null,null,null,null,null,null,null,null,null,null,null,null,null,null,null,null,null,null,null,null,null,null,null,null,null,null,null,null,null,null,null,null,null,null,null,null,null,null,null,null,null,null,null,null,null,null,null,null,null,null,null,null,null,null,null,null,null,null,null,null,null,null,null,null,null,null,null,null,null,null,null,null,null,null,null,null,null,null,null,null,null,null,null,null,null,null,null,null,null,null,null,null,null,null,null,null,null,null,null,null,null,null,null,null,null,null,null,null,null,null,null,null,null,null,null,null,null,null,null,null,null,null,null,null,null,null,null,null,null,null,null,null,null,null,null,null,null,null,null,null,null,null,null,null,null,null,null,null,null,null,null,null,null,null,null,null,null,null,null,null,null,null,null,null,null,null,null,null,null,null,null,null,null,null,null,null,null,null,null,null,null,null,null,null,null,null,null,null,null,null,null,null,null,null,null,null,null,null,null,null,null,null,null,null,null,null,null,null,null,null,null,null,null,null,null,null,null,null,null,null,null,null,null,null,null,null,null,null,null,null,null,null,null,null,null,null,null,null,null,null,null,null,null,null,null,null,null,null,null,null,null,null,null,null,null,null,null,null,null,null,null,null,null,null,null,null,null,null,null,null,null,null,null,null,null,null,null,null,null,null,null,null,null,null,null,null,null,null,null,null,null,null,null,null,null,null,null,null,null,null,null,null,null,null,null,null,null,null,null,null,null,null,null,null,null,null,null,null,null,null,null,null,null,null,null,null,null,null,null,null,null,null,null,null,null,null,null,null,null,null,null,null,null,null,null,null,null,null,null,null,null,null,null,null,null,null,null,null,null,null,null,null,null,null,null,null,null,null,null,null,null,null,null,null,null,null,null,null,null,null,null,null,null,null,null,null,null,null,null,null,null,null,null,null,null,null,null,null,null,null,null,null,null,null,null,null,null,null,null,null,null,null,null,null,null,null,null,null,null,null,null,null,null,null,null,null,null,null,null,null,null,null,null,null,null,null,null,null,null,null,null,null,null,null,null,null,null,null,null,null,null,null,null,null,null,null,null,null,null,null,null,null,null,null,null,null,null,null,null,null,null,null,null,null,null,null,null,null,null,null,null,null,null,null,null,null,null,null,null,null,null,null,null,null,null,null,null,null,null,null,null,null,null,null,null,null,null,null,null,null,null,null,null,null,null,null,null,null,null,null,null,null,null,null,null,null,null,null,null,null,null,null,null,null,null,null,null,null,null,null,null,null,null,null,null,null,null,null,null,null,null,null,null,null,null,null,null,null,null,null,null,null,null,null,null,null,null,null,null,null,null,null,null,null,null,null,null,null,null,null,null,null,null,null,null,null,null,null,null,null,null,null,null,null,null,null,null,null,null,null,null,null,null,null,null,null,null,null,null,null,null,null,null,null,null,null,null,null,null,null,null,null,null,null,null,null,null,null,null,null,null,null,null,null,null,null,null,null,null,null,null,null,null,null,null,null,null,null,null,null,null,null,null,null,null,null,null,null,null,null,null,null,null,null,null,null,null,null,null,null,null,null,null,null,null,null,null,null,null,null,null,null,null,null,null,null,null,null,null,null,null,null,null,null,null,null,null,null,null,null,null,null,null,null,null,null,null,null,null,null,null,null,null,null,null,null,null,null,null,null,null,null,null,null,null,null,null,null,null,null,null,null,null,null,null,null,null,null,null,null,null,null,null,null,null,null,null,null,null,null,null,null,null,null,null,null,null,null,null,null,null,null,null,null,null,null,null,null,null,null,null,null,null,null,null,null,null,null,null,null,null,null,null,null,null,null,null,null,null,null,null,null,null,null,null,null,null,null,null,null,null,null,null,null,null,null,null,null,null,null,null,null,null,null,null,null,null,null,null,null,null,null,null,null,null,null,null,null,null,null,null,null,null,null,null,null,null,null,null,null,null,null,null,null,null,null,null,null,null,null,null,null,null,null,null,null,null,null,null,null,null,null,null,null,null,null,null,null,null,null,null,null,null,null,null,null,null,null,null,null,null,null,null,null,null,null,null,null,null,null,null,null,null,null,null,null,null,null,null,null,null,null,null,null,null,null,null,null,null,null,null,null,null,null,null,null,null,null,null,null,null,null,null,null,null,null,null,null,null,null,null,null,null,null,null,null,null,null,null,null,null,null,null,null,null,null,null,null,null,null,null,null,null,null,null,null,null,null,null,null,null,null,null,null,null,null,null,null,null,null,null,null,null,null,null,null,null,null,null,null,null,null,null,null,null,null,null,null,null,null,null,null,null,null,null,null,null,null,null,null,null,null,null,null,null,null,null,null,null,null,null,null,null,null,null,null,null,null,null,null,null,null,null,null,null,null,null,null,null,null,null,null,null,null,null,null,null,null,null,null,null,null,null,null,null,null,null,null,null,null,null,null,null,null,null,null,null,null,null,null,null,null,null,null,null,null,null,null,null,null,null,null,null,null,null,null,null,null,null,null,null,null,null,null,null,null,null,null,null,null,null,null,null,null,null,null,null,null,null,null,null,null,null,null,null,null,null,null,null,null,null,null,null,null,null,null,null,null,null,null,null,null,null,null,null,null,null,null,null,null,null,null,null,null,null,null,null,null,null,null,null,null,null,null,null,null,null,null,null,null,null,null,null,null,null,null,null,null,null,null,null,null,null,null,null,null,null,null,null,null,null,null,null,null,null,null,null,null,null,null,null,null,null,null,null,null,null,null,null,null,null,null,null,null,null,null,null,null,null,null,null,null,null,null,null,null,null,null,null,null,null,null,null,null,null,null,null,null,null,null,null,null,null,null,null,null,null,null,null,null,null,null,null,null,null,null,null,null,null,null,null,null,null,null,null,null,null,null,null,null,null,null,null,null,null,null,null,null,null,null,null,null,null,null,null,null,null,null,null,null,null,null,null,null,null,null,null,null,null,null,null,null,null,null,null,null,null,null,null,null,null,null,null,null,null,null,null,null,null,null,null,null,null,null,null,null,null,null,null,null,null,null,null,null,null,null,null,null,null,null,null,null,null,null,null,null,null,null,null,null,null,null,null,null,null,null,null,null,null,null,null,null,null,null,null,null,null,null,null,null,null,null,null,null,null,null,null,null,null,null,null,null,null,null,null,null,null,null,null,null,null,null,null,null,null,null,null,null,null,null,null,null,null,null,null,null,null,null,null,null,null,null,null,null,null,null,null,null,null,null,null,null,null,null,null,null,null,null,null,null,null,null,null,null,null,null,null,null,null,null,null,null,null,null,null,null,null,null,null,null,null,null,null,null,null,null,null,null,null,null,null,null,null,null,null,null,null,null,null,null,null,null,null,null,null,null,null,null,null,null,null,null,null,null,null,null,null,null,null,null,null,null,null,null,null,null,null,null,null,null,null,null,null,null,null,null,null,null,null,null,null,null,null,null,null,null,null,null,null,null,null,null,null,null,null,null,null,null,null,null,null,null,null,null,null,null,null,null,null,null,null,null,null,null,null,null,null,null,null,null,null,null,null,null,null,null,null,null,null,null,null,null,null,null,null,null,null,null,null,null,null,null,null,null,null,null,null,null,null,null,null,null,null,null,null,null,null,null,null,null,null,null,null,null,null,null,null,null,null,null,null,null,null,null,null,null,null,null,null,null,null,null,null,null,null,null,null,null,null,null,null,null,null,null,null,null,null,null,null,null,null,null,null,null,null,null,null,null,null,null,null,null,null,null,null,null,null,null,null,null,null,null,null,null,null,null,null,null,null,null,null,null,null,null,null,null,null,null,null,null,null,null,null,null,null,null,null,null,null,null,null,null,null,null,null,null,null,null,null,null,null,null,null,null,null,null,null,null,null,null,null,null,null,null,null,null,null,null,null,null,null,null,null,null,null,null,null,null,null,null,null,null,null,null,null,null,null,null,null,null,null,null,null,null,null,null,null,null,null,null,null,null,null,null,null,null,null,null,null,null,null,null,null,null,null,null,null,null,null,null,null,null,null,null,null,null,null,null,null,null,null,null,null,null,null,null,null,null,null,null,null,null,null,null,null,null,null,null,null,null,null,null,null,null,null,null,null,null,null,null,null,null,null,null,null,null,null,null,null,null,null,null,null,null,null,null,null,null,null,null,null,null,null,null,null,null,null,null,null,null,null,null,null,null,null,null,null,null,null,null,null,null,null,null,null,null,null,null,null,null,null,null,null,null,null,null,null,null,null,null,null,null,null,null,null,null,null,null,null,null,null,null,null,null,null,null,null,null,null,null,null,null,null,null,null,null,null,null,null,null,null,null,null,null,null,null,null,null,null,null,null,null,null,null,null,null,null,null,null,null,null,null,null,null,null,null,null,null,null,null,null,null,null,null,null,null,null,null,null,null,null,null,null,null,null,null,null,null,null,null,null,null,null,null,null,null,null,null,null,null,null,null,null,null,null,null,null,null,null,null,null,null,null,null,null,null,null,null,null,null,null,null,null,null,null,null,null,null,null,null,null,null,null,null,null,null,null,null,null,null,null,null,null,null,null,null,null,null,null,null,null,null,null,null,null,null,null,null,null,null,null,null,null,null,null,null,null,null,null,null,null,null,null,null,null,null,null,null,null,null,null,null,null,null,null,null,null,null,null,null,null,null,null,null,null,null,null,null,null,null,null,null,null,null,null,null,null,null,null,null,null,null,null,null,null,null,null,null,null,null,null,null,null,null,null,null,null,null,null,null,null,null,null,null,null,null,null,null,null,null,null,null,null,null,null,null,null,null,null,null,null,null,null,null,null,null,null,null,null,null,null,null,null,null,null,null,null,null,null,null,null,null,null,null,null,null,null,null,null,null,null,null,null,null,null,null,null,null,null,null,null,null,null,null,null,null,null,null,null,null,null,null,null,null,null,null,null,null,null,null,null,null,null,null,null,null,null,null,null,null,null,null,null,null,null,null,null,null,null,null,null,null,null,null,null,null,null,null,null,null,null,null,null,null,null,null,null,null,null,null,null,null,null,null,null,null,null,null,null,null,null,null,null,null,null,null,null,null,null,null,null,null,null,null,null,null,null,null,null,null,null,null,null,null,null,null,null,null,null,null,null,null,null,null,null,null,null,null,null,null,null,null,null,null,null,null,null,null,null,null,null,null,null,null,null,null,null,null,null,null,null,null,null,null,null,null,null,null,null,null,null,null,null,null,null,null,null,null,null,null,null,null,null,null,null,null,null,null,null,null,null,null,null,null,null,null,null,null,null,null,null,null,null,null,null,null,null,null,null,null,null,null,null,null,null,null,null,null,null,null,null,null,null,null,null,null,null,null,null,null,null,null,null,null,null,null,null,null,null,null,null,null,null,null,null,null,null,null,null,null,null,null,null,null,null,null,null,null,null,null,null,null,null,null,null,null,null,null,null,null,null,null,null,null,null,null,null,null,null,null,null,null,null,null,null,null,null,null,null,null,null,null,null,null,null,null,null,null,null,null,null,null,null,null,null,null,null,null,null,null,null,null,null,null,null,null,null,null,null,null,null,null,null,null,null,null,null,null,null,null,null,null,null,null,null,null,null,null,null,null,null,null,null,null,null,null,null,null,null,null,null,null,null,null,null,null,null,null,null,null,null,null,null,null,null,null,null,null,null,null,null,null,null,null,null,null,null,null,null,null,null,null,null,null,null,null,null,null,null,null,null,null,null,null,null,null,null,null,null,null,null,null,null,null,null,null,null,null,null,null,null,null,null,null,null,null,null,null,null,null,null,null,null,null,null,null,null,null,null,null,null,null,null,null,null,null,null,null,null,null,null,null,null,null,null,null,null,null,null,null,null,null,null,null,null,null,null,null,null,null,null,null,null,null,null,null,null,null,null,null,null,null,null,null,null,null,null,null,null,null,null,null,null,null,null,null,null,null,null,null,null,null,null,null,null,null,null,null,null,null,null,null,null,null,null,null,null,null,null,null,null,null,null,null,null,null,null,null,null,null,null,null,null,null,null,null,null,null,null,null,null,null,null,null,null,null,null,null,null,null,null,null,null,null,null,null,null,null,null,null,null,null,null,null,null,null,null,null,null,null,null,null,null,null,null,null,null,null,null,null,null,null,null,null,null,null,null,null,null,null,null,null,null,null,null,null,null,null,null,null,null,null,null,null,null,null,null,null,null,null,null,null,null,null,null,null,null,null,null,null,null,null,null,null,null,null,null,null,null,null,null,null,null,null,null,null,null,null,null,null,null,null,null,null,null,null,null,null,null,null,null,null,null,null,null,null,null,null,null,null,null,null,null,null,null,null,null,null,null,null,null,null,null,null,null,null,null,null,null,null,null,null,null,null,null,null,null,null,null,null,null,null,null,null,null,null,null,null,null,null,null,null,null,null,null,null,null,null,null,null,null,null,null,null,null,null,null,null,null,null,null,null,null,null,null,null,null,null,null,null,null,null,null,null,null,null,null,null,null,null,null,null,null,null,null,null,null,null,null,null,null,null,null,null,null,null,null,null,null,null,null,null,null,null,null,null,null,null,null,null,null,null,null,null,null,null,null,null,null,null,null,null,null,null,null,null,null,null,null,null,null,null,null,null,null,null,null,null,null,null,null,null,null,null,null,null,null,null,null,null,null,null,null,null,null,null,null,null,null,null,null,null,null,null,null,null,null,null,null,null,null,null,null,null,null,null,null,null,null,null,null,null,null,null,null,null,null,null,null,null,null,null,null,null,null,null,null,null,null,null,null,null,null,null,null,null,null,null,null,null,null,null,null,null,null,null,null,null,null,null,null,null,null,null,null,null,null,null,null,null,null,null,null,null,null,null,null,null,null,null,null,null,null,null,null,null,null,null,null,null,null,null,null,null,null,null,null,null,null,null,null,null,null,null,null,null,null,null,null,null,null,null,null,null,null,null,null,null,null,null,null,null,null,null,null,null,null,null,null,null,null,null,null,null,null,null,null,null,null,null,null,null,null,null,null,null,null,null,null,null,null,null,null,null,null,null,null,null,null,null,null,null,null,null,null,null,null,null,null,null,null,null,null,null,null,null,null,null,null,null,null,null,null,null,null,null,null,null,null,null,null,null,null,null,null,null,null,null,null,null,null,null,null,null,null,null,null,null,null,null,null,null,null,null,null,null,null,null,null,null,null,null,null,null,null,null,null,null,null,null,null,null,null,null,null,null,null,null,null,null,null,null,null,null,null,null,null,null,null,null,null,null,null,null,null,null,null,null,null,null,null,null,null,null,null,null,null,null,null,null,null,null,null,null,null,null,null,null,null,null,null,null,null,null,null,null,null,null,null,null,null,null,null,null,null,null,null,null,null,null,null,null,null,null,null,null,null,null,null,null,null,null,null,null,null,null,null,null,null,null,null,null,null,null,null,null,null,null,null,null,null,null,null,null,null,null,null,null,null,null,null,null,null,null,null,null,null,null,null,null,null,null,null,null,null,null,null,null,null,null,null,null,null,null,null,null,null,null,null,null,null,null,null,null,null,null,null,null,null,null,null,null,null,null,null,null,null,null,null,null,null,null,null,null,null,null,null,null,null,null,null,null,null,null,null,null,null,null,null,null,null,null,null,null,null,null,null,null,null,null,null,null,null,null,null,null,null,null,null,null,null,null,null,null,null,null,null,null,null,null,null,null,null,null,null,null,null,null,null,null,null,null,null,null,null,null,null,null,null,null,null,null,null,null,null,null,null,null,null,null,null,null,null,null,null,null,null,null,null,null,null,null,null,null,null,null,null,null,null,null,null,null,null,null,null,null,null,null,null,null,null,null,null,null,null,null,null,null,null,null,null,null,null,null,null,null,null,null,null,null,null,null,null,null,null,null,null,null,null,null,null,null,null,null,null,null,null,null,null,null,null,null,null,null,null,null,null,null,null,null,null,null,null,null,null,null,null,null,null,null,null,null,null,null,null,null,null,null,null,null,null,null,null,null,null,null,null,null,null,null,null,null,null,null,null,null,null,null,null,null,null,null,null,null,null,null,null,null,null,null,null,null,null,null,null,null,null,null,null,null,null,null,null,null,null,null,null,null,null,null,null,null,null,null,null,null,null,null,null,null,null,null,null,null,null,null,null,null,null,null,null,null,null,null,null,null,null,null,null,null,null,null,null,null,null,null,null,null,null,null,null,null,null,null,null,null,null,null,null,null,null,null,null,null,null,null,null,null,null,null,null,null,null,null,null,null,null,null,null,null,null,null,null,null,null,null,null,null,null,null,null,null,null,null,null,null,null,null,null,null,null,null,null,null,null,null,null,null,null,null,null,null,null,null,null,null,null,null,null,null,null,null,null,null,null,null,null,null,null,null,null,null,null,null,null,null,null,null,null,null,null,null,null,null,null,null,null,null,null,null,null,null,null,null,null,null,null,null,null,null,null,null,null,null,null,null,null,null,null,null,null,null,null,null,null,null,null,null,null,null,null,null,null,null,null,null,null,null,null,null,null,null,null,null,null,null,null,null,null,null,null,null,null,null,null,null,null,null,null,null,null,null,null,null,null,null,null,null,null,null,null,null,null,null,null,null,null,null,null,null,null,null,null,null,null,null,null,null,null,null,null,null,null,null,null,null,null,null,null,null,null,null,null,null,null,null,null,null,null,null,null,null,null,null,null,null,null,null,null,null,null,null,null,null,null,null,null,null,null,null,null,null,null,null,null,null,null,null,null,null,null,null,null,null,null,null,null,null,null,null,null,null,null,null,null,null,null,null,null,null,null,null,null,null,null,null,null,null,null,null,null,null,null,null,null,null,null,null,null,null,null,null,null,null,null,null,null,null,null,null,null,null,null,null,null,null,null,null,null,null,null,null,null,null,null,null,null,null,null,null,null,null,null,null,null,null,null,null,null,null,null,null,null,null,null,null,null,null,null,null,null,null,null,null,null,null,null,null,null,null,null,null,null,null,null,null,null,null,null,null,null,null,null,null,null,null,null,null,null,null,null,null,null,null,null,null,null,null,null,null,null,null,null,null,null,null,null,null,null,null,null,null,null,null,null,null,null,null,null,null,null,null,null,null,null,null,null,null,null,null,null,null,null,null,null,null,null,null,null,null,null,null,null,null,null,null,null,null,null,null,null,null,null,null,null,null,null,null,null,null,null,null,null,null,null,null,null,null,null,null,null,null,null,null,null,null,null,null,null,null,null,null,null,null,null,null,null,null,null,null,null,null,null,null,null,null,null,null,null,null,null,null,null,null,null,null,null,null,null,null,null,null,null,null,null,null,null,null,null,null,null,null,null,null,null,null,null,null,null,null,null,null,null,null,null,null,null,null,null,null,null,null,null,null,null,null,null,null,null,null,null,null,null,null,null,null,null,null,null,null,null,null,null,null,null,null,null,null,null,null,null,null,null,null,null,null,null,null,null,null,null,null,null,null,null,null,null,null,null,null,null,null,null,null,null,null,null,null,null,null,null,null,null,null,null,null,null,null,null,null,null,null,null,null,null,null,null,null,null,null,null,null,null,null,null,null,null,null,null,null,null,null,null,null,null,null,null,null,null,null,null,null,null,null,null,null,null,null,null,null,null,null,null,null,null,null,null,null,null,null,null,null,null,null,null,null,null,null,null,null,null,null,null,null,null,null,null,null,null,null,null,null,null,null,null,null,null,null,null,null,null,null,null,null,null,null,null,null,null,null,null,null,null,null,null,null,null,null,null,null,null,null,null,null,null,null,null,null,null,null,null,null,null,null,null,null,null,null,null,null,null,null,null,null,null,null,null,null,null,null,null,null,null,null,null,null,null,null,null,null,null,null,null,null,null,null,null,null,null,null,null,null,null,null,null,null,null,null,null,null,null,null,null,null,null,null,null,null,null,null,null,null,null,null,null,null,null,null,null,null,null,null,null,null,null,null,null,null,null,null,null,null,null,null,null,null,null,null,null,null,null,null,null,null,null,null,null,null,null,null,null,null,null,null,null,null,null,null,null,null,null,null,null,null,null,null,null,null,null,null,null,null,null,null,null,null,null,null,null,null,null,null,null,null,null,null,null,null,null,null,null,null,null,null,null,null,null,null,null,null,null,null,null,null,null,null,null,null,null,null,null,null,null,null,null,null,null,null,null,null,null,null,null,null,null,null,null,null,null,null,null,null,null,null,null,null,null,null,null,null,null,null,null,null,null,null,null,null,null,null,null,null,null,null,null,null,null,null,null,null,null,null,null,null,null,null,null,null,null,null,null,null,null,null,null,null,null,null,null,null,null,null,null,null,null,null,null,null,null,null,null,null,null,null,null,null,null,null,null,null,null,null,null,null,null,null,null,null,null,null,null,null,null,null,null,null,null,null,null,null,null,null,null,null,null,null,null,null,null,null,null,null,null,null,null,null,null,null,null,null,null,null,null,null,null,null,null,null,null,null,null,null,null,null,null,null,null,null,null,null,null,null,null,null,null,null,null,null,null,null,null,null,null,null,null,null,null,null,null,null,null,null,null,null,null,null,null,null,null,null,null,null,null,null,null,null,null,null,null,null,null,null,null,null,null,null,null,null,null,null,null,null,null,null,null,null,null,null,null,null,null,null,null,null,null,null,null,null,null,null,null,null,null,null,null,null,null,null,null,null,null,null,null,null,null,null,null,null,null,null,null,null,null,null,null,null,null,null,null,null,null,null,null,null,null,null,null,null,null,null,null,null,null,null,null,null,null,null,null,null,null,null,null,null,null,null,null,null,null,null,null,null,null,null,null,null,null,null,null,null,null,null,null,null,null,null,null,null,null,null,null,null,null,null,null,null,null,null,null,null,null,null,null,null,null,null,null,null,null,null,null,null,null,null,null,null,null,null,null,null,null,null,null,null,null,null,null,null,null,null,null,null,null,null,null,null,null,null,null,null,null,null,null,null,null,null,null,null,null,null,null,null,null,null,null,null,null,null,null,null,null,null,null,null,null,null,null,null,null,null,null,null,null,null,null,null,null,null,null,null,null,null,null,null,null,null,null,null,null,null,null,null,null,null,null,null,null,null,null,null,null,null,null,null,null,null,null,null,null,null,null,null,null,null,null,null,null,null,null,null,null,null,null,null,null,null,null,null,null,null,null,null,null,null,null,null,null,null,null,null,null,null,null,null,null,null,null,null,null,null,null,null,null,null,null,null,null,null,null,null,null,null,null,null,null,null,null,null,null,null,null,null,null,null,null,null,null,null,null,null,null,null,null,null,null,null,null,null,null,null,null,null,null,null,null,null,null,null,null,null,null,null,null,null,null,null,null,null,null,null,null,null,null,null,null,null,null,null,null,null,null,null,null,null,null,null,null,null,null,null,null,null,null,null,null,null,null,null,null,null,null,null,null,null,null,null,null,null,null,null,null,null,null,null,null,null,null,null,null,null,null,null,null,null,null,null,null,null,null,null,null,null,null,null,null,null,null,null,null,null,null,null,null,null,null,null,null,null,null,null,null,null,null,null,null,null,null,null,null,null,null,null,null,null,null,null,null,null,null,null,null,null,null,null,null,null,null,null,null,null,null,null,null,null,null,null,null,null,null,null,null,null,null,null,null,null,null,null,null,null,null,null,null,null,null,null,null,null,null,null,null,null,null,null,null,null,null,null,null,null,null,null,null,null,null,null,null,null,null,null,null,null,null,null,null,null,null,null,null,null,null,null,null,null,null,null,null,null,null,null,null,null,null,null,null,null,null,null,null,null,null,null,null,null,null,null,null,null,null,null,null,null,null,null,null,null,null,null,null,null,null,null,null,null,null,null,null,null,null,null,null,null,null,null,null,null,null,null,null,null,null,null,null,null,null,null,null,null,null,null,null,null,null,null,null,null,null,null,null,null,null,null,null,null,null,null,null,null,null,null,null,null,null,null,null,null,null,null,null,null,null,null,null,null,null,null,null,null,null,null,null,null,null,null,null,null,null,null,null,null,null,null,null,null,null,null,null,null,null,null,null,null,null,null,null,null,null,null,null,null,null,null,null,null,null,null,null,null,null,null,null,null,null,null,null,null,null,null,null,null,null,null,null,null,null,null,null,null,null,null,null,null,null,null,null,null,null,null,null,null,null,null,null,null,null,null,null,null,null,null,null,null,null,null,null,null,null,null,null,null,null,null,null,null,null,null,null,null,null,null,null,null,null,null,null,null,null,null,null,null,null,null,null,null,null,null,null,null,null,null,null,null,null,null,null,null,null,null,null,null,null,null,null,null,null,null,null,null,null,null,null,null,null,null,null,null,null,null,null,null,null,null,null,null,null,null,null,null,null,null,null,null,null,null,null,null,null,null,null,null,null,null,null,null,null,null,null,null,null,null,null,null,null,null,null,null,null,null,null,null,null,null,null,null,null,null,null,null,null,null,null,null,null,null,null,null,null,null,null,null,null,null,null,null,null,null,null,null,null,null,null,null,null,null,null,null,null,null,null,null,null,null,null,null,null,null,null,null,null,null,null,null,null,null,null,null,null,null,null,null,null,null,null,null,null,null,null,null,null,null,null,null,null,null,null,null,null,null,null,null,null,null,null,null,null,null,null,null,null,null,null,null,null,null,null,null,null,null,null,null,null,null,null,null,null,null,null,null,null,null,null,null,null,null,null,null,null,null,null,null,null,null,null,null,null,null,null,null,null,null,null,null,null,null,null,null,null,null,null,null,null,null,null,null,null,null,null,null,null,null,null,null,null,null,null,null,null,null,null,null,null,null,null,null,null,null,null,null,null,null,null,null,null,null,null,null,null,null,null,null,null,null,null,null,null,null,null,null,null,null,null,null,null,null,null,null,null,null,null,null,null,null,null,null,null,null,null,null,null,null,null,null,null,null,null,null,null,null,null,null,null,null,null,null,null,null,null,null,null,null,null,null,null,null,null,null,null,null,null,null,null,null,null,null,null,null,null,null,null,null,null,null,null,null,null,null,null,null,null,null,null,null,null,null,null,null,null,null,null,null,null,null,null,null,null,null,null,null,null,null,null,null,null,null,null,null,null,null,null,null,null,null,null,null,null,null,null,null,null,null,null,null,null,null,null,null,null,null,null,null,null,null,null,null,null,null,null,null,null,null,null,null,null,null,null,null,null,null,null,null,null,null,null,null,null,null,null,null,null,null,null,null,null,null,null,null,null,null,null,null,null,null,null,null,null,null,null,null,null,null,null,null,null,null,null,null,null,null,null,null,null,null,null,null,null,null,null,null,null,null,null,null,null,null,null,null,null,null,null,null,null,null,null,null,null,null,null,null,null,null,null,null,null,null,null,null,null,null,null,null,null,null,null,null,null,null,null,null,null,null,null,null,null,null,null,null,null,null,null,null,null,null,null,null,null,null,null,null,null,null,null,null,null,null,null,null,null,null,null,null,null,null,null,null,null,null,null,null,null,null,null,null,null,null,null,null,null,null,null,null,null,null,null,null,null,null,null,null,null,null,null,null,null,null,null,null,null,null,null,null,null,null,null,null,null,null,null,null,null,null,null,null,null,null,null,null,null,null,null,null,null,null,null,null,null,null,null,null,null,null,null,null,null,null,null,null,null,null,null,null,null,null,null,null,null,null,null,null,null,null,null,null,null,null,null,null,null,null,null,null,null,null,null,null,null,null,null,null,null,null,null,null,null,null,null,null,null,null,null,null,null,null,null,null,null,null,null,null,null,null,null,null,null,null,null,null,null,null,null,null,null,null,null,null,null,null,null,null,null,null,null,null,null,null,null,null,null,null,null,null,null,null,null,null,null,null,null,null,null,null,null,null,null,null,null,null,null,null,null,null,null,null,null,null,null,null,null,null,null,null,null,null,null,null,null,null,null,null,null,null,null,null,null,null,null,null,null,null,null,null,null,null,null,null,null,null,null,null,null,null,null,null,null,null,null,null,null,null,null,null,null,null,null,null,null,null,null,null,null,null,null,null,null,null,null,null,null,null,null,null,null,null,null,null,null,null,null,null,null,null,null,null,null,null,null,null,null,null,null,null,null,null,null,null,null,null,null,null,null,null,null,null,null,null,null,null,null,null,null,null,null,null,null,null,null,null,null,null,null,null,null,null,null,null,null,null,null,null,null,null,null,null,null,null,null,null,null,null,null,null,null,null,null,null,null,null,null,null,null,null,null,null,null,null,null,null,null,null,null,null,null,null,null,null,null,null,null,null,null,null,null,null,null,null,null,null,null,null,null,null,null,null,null,null,null,null,null,null,null,null,null,null,null,null,null,null,null,null,null,null,null,null,null,null,null,null,null,null,null,null,null,null,null,null,null,null,null,null,null,null,null,null,null,null,null,null,null,null,null,null,null,null,null,null,null,null,null,null,null,null,null,null,null,null,null,null,null,null,null,null,null,null,null,null,null,null,null,null,null,null,null,null,null,null,null,null,null,null,null,null,null,null,null,null,null,null,null,null,null,null,null,null,null,null,null,null,null,null,null,null,null,null,null,null,null,null,null,null,null,null,null,null,null,null,null,null,null,null,null,null,null,null,null,null,null,null,null,null,null,null,null,null,null,null,null,null,null,null,null,null,null,null,null,null,null,null,null,null,null,null,null,null,null,null,null,null,null,null,null,null,null,null,null,null,null,null,null,null,null,null,null,null,null,null,null,null,null,null,null,null,null,null,null,null,null,null,null,null,null,null,null,null,null,null,null,null,null,null,null,null,null,null,null,null,null,null,null,null,null,null,null,null,null,null,null,null,null,null,null,null,null,null,null,null,null,null,null,null,null,null,null,null,null,null,null,null,null,null,null,null,null,null,null,null,null,null,null,null,null,null,null,null,null,null,null,null,null,null,null,null,null,null,null,null,null,null,null,null,null,null,null,null,null,null,null,null,null,null,null,null,null,null,null,null,null,null,null,null,null,null,null,null,null,null,null,null,null,null,null,null,null,null,null,null,null,null,null,null,null,null,null,null,null,null,null,null,null,null,null,null,null,null,null,null,null,null,null,null,null,null,null,null,null,null,null,null,null,null,null,null,null,null,null,null,null,null,null,null,null,null,null,null,null,null,null,null,null,null,null,null,null,null,null,null,null,null,null,null,null,null,null,null,null,null,null,null,null,null,null,null,null,null,null,null,null,null,null,null,null,null,null,null,null,null,null,null,null,null,null,null,null,null,null,null,null,null,null,null,null,null,null,null,null,null,null,null,null,null,null,null,null,null,null,null,null,null,null,null,null,null,null,null,null,null,null,null,null,null,null,null,null,null,null,null,null,null,null,null,null,null,null,null,null,null,null,null,null,null,null,null,null,null,null,null,null,null,null,null,null,null,null,null,null,null,null,null,null,null,null,null,null,null,null,null,null,null,null,null,null,null,null,null,null,null,null,null,null,null,null,null,null,null,null,null,null,null,null,null,null,null,null,null,null,null,null,null,null,null,null,null,null,null,null,null,null,null,null,null,null,null,null,null,null,null,null,null,null,null,null,null,null,null,null,null,null,null,null,null,null,null,null,null,null,null,null,null,null,null,null,null,null,null,null,null,null,null,null,null,null,null,null,null,null,null,null,null,null,null,null,null,null,null,null,null,null,null,null,null,null,null,null,null,null,null,null,null,null,null,null,null,null,null,null,null,null,null,null,null,null,null,null,null,null,null,null,null,null,null,null,null,null,null,null,null,null,null,null,null,null,null,null,null,null,null,null,null,null,null,null,null,null,null,null,null,null,null,null,null,null,null,null,null,null,null,null,null,null,null,null,null,null,null,null,null,null,null,null,null,null,null,null,null,null,null,null,null,null,null,null,null,null,null,null,null,null,null,null,null,null,null,null,null,null,null,null,null,null,null,null,null,null,null,null,null,null,null,null,null,null,null,null,null,null,null,null,null,null,null,null,null,null,null,null,null,null,null,null,null,null,null,null,null,null,null,null,null,null,null,null,null,null,null,null,null,null,null,null,null,null,null,null,null,null,null,null,null,null,null,null,null,null,null,null,null,null,null,null,null,null,null,null,null,null,null,null,null,null,null,null,null,null,null,null,null,null,null,null,null,null,null,null,null,null,null,null,null,null,null,null,null,null,null,null,null,null,null,null,null,null,null,null,null,null,null,null,null,null,null,null,null,null,null,null,null,null,null,null,null,null,null,null,null,null,null,null,null,null,null,null,null,null,null,null,null,null,null,null,null,null,null,null,null,null,null,null,null,null,null,null,null,null,null,null,null,null,null,null,null,null,null,null,null,null,null,null,null,null,null,null,null,null,null,null,null,null,null,null,null,null,null,null,null,null,null,null,null,null,null,null,null,null,null,null,null,null,null,null,null,null,null,null,null,null,null,null,null,null,null,null,null,null,null,null,null,null,null,null,null,null,null,null,null,null,null,null,null,null,null,null,null,null,null,null,null,null,null,null,null,null,null,null,null,null,null,null,null,null,null,null,null,null,null,null,null,null,null,null,null,null,null,null,null,null,null,null,null,null,null,null,null,null,null,null,null,null,null,null,null,null,null,null,null,null,null,null,null,null,null,null,null,null,null,null,null,null,null,null,null,null,null,null,null,null,null,null,null,null,null,null,null,null,null,null,null,null,null,null,null,null,null,null,null,null,null,null,null,null,null,null,null,null,null,null,null,null,null,null,null,null,null,null,null,null,null,null,null,null,null,null,null,null,null,null,null,null,null,null,null,null,null,null,null,null,null,null,null,null,null,null,null,null,null,null,null,null,null,null,null,null,null,null,null,null,null,null,null,null,null,null,null,null,null,null,null,null,null,null,null,null,null,null,null,null,null,null,null,null,null,null,null,null,null,null,null,null,null,null,null,null,null,null,null,null,null,null,null,null,null,null,null,null,null,null,null,null,null,null,null,null,null,null,null,null,null,null,null,null,null,null,null,null,null,null,null,null,null,null,null,null,null,null,null,null,null,null,null,null,null,null,null,null,null,null,null,null,null,null,null,null,null,null,null,null,null,null,null,null,null,null,null,null,null,null,null,null,null,null,null,null,null,null,null,null,null,null,null,null,null,null,null,null,null,null,null,null,null,null,null,null,null,null,null,null,null,null,null,null,null,null,null,null,null,null,null,null,null,null,null,null,null,null,null,null,null,null,null,null,null,null,null,null,null,null,null,null,null,null,null,null,null,null,null,null,null,null,null,null,null,null,null,null,null,null,null,null,null,null,null,null,null,null,null,null,null,null,null,null,null,null,null,null,null,null,null,null,null,null,null,null,null,null,null,null,null,null,null,null,null,null,null,null,null,null,null,null,null,null,null,null,null,null,null,null,null,null,null,null,null,null,null,null,null,null,null,null,null,null,null,null,null,null,null,null,null,null,null,null,null,null,null,null,null,null,null,null,null,null,null,null,null,null,null,null,null,null,null,null,null,null,null,null,null,null,null,null,null,null,null,null,null,null,null,null,null,null,null,null,null,null,null,null,null,null,null,null,null,null,null,null,null,null,null,null,null,null,null,null,null,null,null,null,null,null,null,null,null,null,null,null,null,null,null,null,null,null,null,null,null,null,null,null,null,null,null,null,null,null,null,null,null,null,null,null,null,null,null,null,null,null,null,null,null,null,null,null,null,null,null,null,null,null,null,null,null,null,null,null,null,null,null,null,null,null,null,null,null,null,null,null,null,null,null,null,null,null,null,null,null,null,null,null,null,null,null,null,null,null,null,null,null,null,null,null,null,null,null,null,null,null,null,null,null,null,null,null,null,null,null,null,null,null,null,null,null,null,null,null,null,null,null,null,null,null,null,null,null,null,null,null,null,null,null,null,null,null,null,null,null,null,null,null,null,null,null,null,null,null,null,null,null,null,null,null,null,null,null,null,null,null,null,null,null,null,null,null,null,null,null,null,null,null,null,null,null,null,null,null,null,null,null,null,null,null,null,null,null,null,null,null,null,null,null,null,null,null,null,null,null,null,null,null,null,null,null,null,null,null,null,null,null,null,null,null,null,null,null,null,null,null,null,null,null,null,null,null,null,null,null,null,null,null,null,null,null,null,null,null,null,null,null,null,null,null,null,null,null,null,null,null,null,null,null,null,null,null,null,null,null,null,null,null,null,null,null,null,null,null,null,null,null,null,null,null,null,null,null,null,null,null,null,null,null,null,null,null,null,null,null,null,null,null,null,null,null,null,null,null,null,null,null,null,null,null,null,null,null,null,null,null,null,null,null,null,null,null,null,null,null,null,null,null,null,null,null,null,null,null,null,null,null,null,null,null,null,null,null,null,null,null,null,null,null,null,null,null,null,null,null,null,null,null,null,null,null,null,null,null,null,null,null,null,null,null,null,null,null,null,null,null,null,null,null,null,null,null,null,null,null,null,null,null,null,null,null,null,null,null,null,null,null,null,null,null,null,null,null,null,null,null,null,null,null,null,null,null,null,null,null,null,null,null,null,null,null,null,null,null,null,null,null,null,null,null,null,null,null,null,null,null,null,null,null,null,null,null,null,null,null,null,null,null,null,null,null,null,null,null,null,null,null,null,null,null,null,null,null,null,null,null,null,null,null,null,null,null,null,null,null,null,null,null,null,null,null,null,null,null,null,null,null,null,null,null,null,null,null,null,null,null,null,null,null,null,null,null,null,null,null,null,null,null,null,null,null,null,null,null,null,null,null,null,null,null,null,null,null,null,null,null,null,null,null,null,null,null,null,null,null,null,null,null,null,null,null,null,null,null,null,null,null,null,null,null,null,null,null,null,null,null,null,null,null,null,null,null,null,null,null,null,null,null,null,null,null,null,null,null,null,null,null,null,null,null,null,null,null,null,null,null,null,null,null,null,null,null,null,null,null,null,null,null,null,null,null,null,null,null,null,null,null,null,null,null,null,null,null,null,null,null,null,null,null,null,null,null,null,null,null,null,null,null,null,null,null,null,null,null,null,null,null,null,null,null,null,null,null,null,null,null,null,null,null,null,null,null,null,null,null,null,null,null,null,null,null,null,null,null,null,null,null,null,null,null,null,null,null,null,null,null,null,null,null,null,null,null,null,null,null,null,null,null,null,null,null,null,null,null,null,null,null,null,null,null,null,null,null,null,null,null,null,null,null,null,null,null,null,null,null,null,null,null,null,null,null,null,null,null,null,null,null,null,null,null,null,null,null,null,null,null,null,null,null,null,null,null,null,null,null,null,null,null,null,null,null,null,null,null,null,null,null,null,null,null,null,null,null,null,null,null,null,null,null,null,null,null,null,null,null,null,null,null,null,null,null,null,null,null,null,null,null,null,null,null,null,null,null,null,null,null,null,null,null,null,null,null,null,null,null,null,null,null,null,null,null,null,null,null,null,null,null,null,null,null,null,null,null,null,null,null,null,null,null,null,null,null,null,null,null,null,null,null,null,null,null,null,null,null,null,null,null,null,null,null,null,null,null,null,null,null,null,null,null,null,null,null,null,null,null,null,null,null,null,null,null,null,null,null,null,null,null,null,null,null,null,null,null,null,null,null,null,null,null,null,null,null,null,null,null,null,null,null,null,null,null,null,null,null,null,null,null,null,null,null,null,null,null,null,null,null,null,null,null,null,null,null,null,null,null,null,null,null,null,null,null,null,null,null,null,null,null,null,null,null,null,null,null,null,null,null,null,null,null,null,null,null,null,null,null,null,null,null,null,null,null,null,null,null,null,null,null,null,null,null,null,null,null,null,null,null,null,null,null,null,null,null,null,null,null,null,null,null,null,null,null,null,null,null,null,null,null,null,null,null,null,null,null,null,null,null,null,null,null,null,null,null,null,null,null,null,null,null,null,null,null,null,null,null,null,null,null,null,null,null,null,null,null,null,null,null,null,null,null,null,null,null,null,null,null,null,null,null,null,null,null,null,null,null,null,null,null,null,null,null,null,null,null,null,null,null,null,null,null,null,null,null,null,null,null,null,null,null,null,null,null,null,null,null,null,null,null,null,null,null,null,null,null,null,null,null,null,null,null,null,null,null,null,null,null,null,null,null,null,null,null,null,null,null,null,null,null,null,null,null,null,null,null,null,null,null,null,null,null,null,null,null,null,null,null,null,null,null,null,null,null,null,null,null,null,null,null,null,null,null,null,null,null,null,null,null,null,null,null,null,null,null,null,null,null,null,null,null,null,null,null,null,null,null,null,null,null,null,null,null,null,null,null,null,null,null,null,null,null,null,null,null,null,null,null,null,null,null,null,null,null,null,null,null,null,null,null,null,null,null,null,null,null,null,null,null,null,null,null,null,null,null,null,null,null,null,null,null,null,null,null,null,null,null,null,null,null,null,null,null,null,null,null,null,null,null,null,null,null,null,null,null,null,null,null,null,null,null,null,null,null,null,null,null,null,null,null,null,null,null,null,null,null,null,null,null,null,null,null,null,null,null,null,null,null,null,null,null,null,null,null,null,null,null,null,null,null,null,null,null,null,null,null,null,null,null,null,null,null,null,null,null,null,null,null,null,null,null,null,null,null,null,null,null,null,null,null,null,null,null,null,null,null,null,null,null,null,null,null,null,null,null,null,null,null,null,null,null,null,null,null,null,null,null,null,null,null,null,null,null,null,null,null,null,null,null,null,null,null,null,null,null,null,null,null,null,null,null,null,null,null,null,null,null,null,null,null,null,null,null,null,null,null,null,null,null,null,null,null,null,null,null,null,null,null,null,null,null,null,null,null,null,null,null,null,null,null,null,null,null,null,null,null,null,null,null,null,null,null,null,null,null,null,null,null,null,null,null,null,null,null,null,null,null,null,null,null,null,null,null,null,null,null,null,null,null,null,null,null,null,null,null,null,null,null,null,null,null,null,null,null,null,null,null,null,null,null,null,null,null,null,null,null,null,null,null,null,null,null,null,null,null,null,null,null,null,null,null,null,null,null,null,null,null,null,null,null,null,null,null,null,null,null,null,null,null,null,null,null,null,null,null,null,null,null,null,null,null,null,null,null,null,null,null,null,null,null,null,null,null,null,null,null,null,null,null,null,null,null,null,null,null,null,null,null,null,null,null,null,null,null,null,null,null,null,null,null,null,null,null,null,null,null,null,null,null,null,null,null,null,null,null,null,null,null,null,null,null,null,null,null,null,null,null,null,null,null,null,null,null,null,null,null,null,null,null,null,null,null,null,null,null,null,null,null,null,null,null,null,null,null,null,null,null,null,null,null,null,null,null,null,null,null,null,null,null,null,null,null,null,null,null,null,null,null,null,null,null,null,null,null,null,null,null,null,null,null,null,null,null,null,null,null,null,null,null,null,null,null,null,null,null,null,null,null,null,null,null,null,null,null,null,null,null,null,null,null,null,null,null,null,null,null,null,null,null,null,null,null,null,null,null,null,null,null,null,null,null,null,null,null,null,null,null,null,null,null,null,null,null,null,null,null,null,null,null,null,null,null,null,null,null,null,null,null,null,null,null,null,null,null,null,null,null,null,null,null,null,null,null,null,null,null,null,null,null,null,null,null,null,null,null,null,null,null,null,null,null,null,null,null,null,null,null,null,null,null,null,null,null,null,null,null,null,null,null,null,null,null,null,null,null,null,null,null,null,null,null,null,null,null,null,null,null,null,null,null,null,null,null,null,null,null,null,null,null,null,null,null,null,null,null,null,null,null,null,null,null,null,null,null,null,null,null,null,null,null,null,null,null,null,null,null,null,null,null,null,null,null,null,null,null,null,null,null,null,null,null,null,null,null,null,null,null,null,null,null,null,null,null,null,null,null,null,null,null,null,null,null,null,null,null,null,null,null,null,null,null,null,null,null,null,null,null,null,null,null,null,null,null,null,null,null,null,null,null,null,null,null,null,null,null,null,null,null,null,null,null,null,null,null,null,null,null,null,null,null,null,null,null,null,null,null,null,null,null,null,null,null,null,null,null,null,null,null,null,null,null,null,null,null,null,null,null,null,null,null,null,null,null,null,null,null,null,null,null,null,null,null,null,null,null,null,null,null,null,null,null,null,null,null,null,null,null,null,null,null,null,null,null,null,null,null,null,null,null,null,null,null,null,null,null,null,null,null,null,null,null,null,null,null,null,null,null,null,null,null,null,null,null,null,null,null,null,null,null,null,null,null,null,null,null,null,null,null,null,null,null,null,null,null,null,null,null,null,null,null,null,null,null,null,null,null,null,null,null,null,null,null,null,null,null,null,null,null,null,null,null,null,null,null,null,null,null,null,null,null,null,null,null,null,null,null,null,null,null,null,null,null,null,null,null,null,null,null,null,null,null,null,null,null,null,null,null,null,null,null,null,null,null,null,null,null,null,null,null,null,null,null,null,null,null,null,null,null,null,null,null,null,null,null,null,null,null,null,null,null,null,null,null,null,null,null,null,null,null,null,null,null,null,null,null,null,null,null,null,null,null,null,null,null,null,null,null,null,null,null,null,null,null,null,null,null,null,null,null,null,null,null,null,null,null,null,null,null,null,null,null,null,null,null,null,null,null,null,null,null,null,null,null,null,null,null,null,null,null,null,null,null,null,null,null,null,null,null,null,null,null,null,null,null,null,null,null,null,null,null,null,null,null,null,null,null,null,null,null,null,null,null,null,null,null,null,null,null,null,null,null,null,null,null,null,null,null,null,null,null,null,null,null,null,null,null,null,null,null,null,null,null,null,null,null,null,null,null,null,null,null,null,null,null,null,null,null,null,null,null,null,null,null,null,null,null,null,null,null,null,null,null,null,null,null,null,null,null,null,null,null,null,null,null,null,null,null,null,null,null,null,null,null,null,null,null,null,null,null,null,null,null,null,null,null,null,null,null,null,null,null,null,null,null,null,null,null,null,null,null,null,null,null,null,null,null,null,null,null,null,null,null,null,null,null,null,null,null,null,null,null,null,null,null,null,null,null,null,null,null,null,null,null,null,null,null,null,null,null,null,null,null,null,null,null,null,null,null,null,null,null,null,null,null,null,null,null,null,null,null,null,null,null,null,null,null,null,null,null,null,null,null,null,null,null,null,null,null,null,null,null,null,null,null,null,null,null,null,null,null,null,null,null,null,null,null,null,null,null,null,null,null,null,null,null,null,null,null,null,null,null,null,null,null,null,null,null,null,null,null,null,null,null,null,null,null,null,null,null,null,null,null,null,null,null,null,null,null,null,null,null,null,null,null,null,null,null,null,null,null,null,null,null,null,null,null,null,null,null,null,null,null,null,null,null,null,null,null,null,null,null,null,null,null,null,null,null,null,null,null,null,null,null,null,null,null,null,null,null,null,null,null,null,null,null,null,null,null,null,null,null,null,null,null,null,null,null,null,null,null,null,null,null,null,null,null,null,null,null,null,null,null,null,null,null,null,null,null,null,null,null,null,null,null,null,null,null,null,null,null,null,null,null,null,null,null,null,null,null,null,null,null,null,null,null,null,null,null,null,null,null,null,null,null,null,null,null,null,null,null,null,null,null,null,null,null,null,null,null,null,null,null,null,null,null,null,null,null,null,null,null,null,null,null,null,null,null,null,null,null,null,null,null,null,null,null,null,null,null,null,null,null,null,null,null,null,null,null,null,null,null,null,null,null,null,null,null,null,null,null,null,null,null,null,null,null,null,null,null,null,null,null,null,null,null,null,null,null,null,null,null,null,null,null,null,null,null,null,null,null,null,null,null,null,null,null,null,null,null,null,null,null,null,null,null,null,null,null,null,null,null,null,null,null,null,null,null,null,null,null,null,null,null,null,null,null,null,null,null,null,null,null,null,null,null,null,null,null,null,null,null,null,null,null,null,null,null,null,null,null,null,null,null,null,null,null,null,null,null,null,null,null,null,null,null,null,null,null,null,null,null,null,null,null,null,null,null,null,null,null,null,null,null,null,null,null,null,null,null,null,null,null,null,null,null,null,null,null,null,null,null,null,null,null,null,null,null,null,null,null,null,null,null,null,null,null,null,null,null,null,null,null,null,null,null,null,null,null,null,null,null,null,null,null,null,null,null,null,null,null,null,null,null,null,null,null,null,null,null,null,null,null,null,null,null,null,null,null,null,null,null,null,null,null,null,null,null,null,null,null,null,null,null,null,null,null,null,null,null,null,null,null,null,null,null,null,null,null,null,null,null,null,null,null,null,null,null,null,null,null,null,null,null,null,null,null,null,null,null,null,null,null,null,null,null,null,null,null,null,null,null,null,null,null,null,null,null,null,null,null,null,null,null,null,null,null,null,null,null,null,null,null,null,null,null,null,null,null,null,null,null,null,null,null,null,null,null,null,null,null,null,null,null,null,null,null,null,null,null,null,null,null,null,null,null,null,null,null,null,null,null,null,null,null,null,null,null,null,null,null,null,null,null,null,null,null,null,null,null,null,null,null,null,null,null,null,null,null,null,null,null,null,null,null,null,null,null,null,null,null,null,null,null,null,null,null,null,null,null,null,null,null,null,null,null,null,null,null,null,null,null,null,null,null,null,null,null,null,null,null,null,null,null,null,null,null,null,null,null,null,null,null,null,null,null,null,null,null,null,null,null,null,null,null,null,null,null,null,null,null,null,null,null,null,null,null,null,null,null,null,null,null,null,null,null,null,null,null,null,null,null,null,null,null,null,null,null,null,null,null,null,null,null,null,null,null,null,null,null,null,null,null,null,null,null,null,null,null,null,null,null,null,null,null,null,null,null,null,null,null,null,null,null,null,null,null,null,null,null,null,null,null,null,null,null,null,null,null,null,null,null,null,null,null,null,null,null,null,null,null,null,null,null,null,null,null,null,null,null,null,null,null,null,null,null,null,null,null,null,null,null,null,null,null,null,null,null,null,null,null,null,null,null,null,null,null,null,null,null,null,null,null,null,null,null,null,null,null,null,null,null,null,null,null,null,null,null,null,null,null,null,null,null,null,null,null,null,null,null,null,null,null,null,null,null,null,null,null,null,null,null,null,null,null,null,null,null,null,null,null,null,null,null,null,null,null,null,null,null,null,null,null,null,null,null,null,null,null,null,null,null,null,null,null,null,null,null,null,null,null,null,null,null,null,null,null,null,null,null,null,null,null,null,null,null,null,null,null,null,null,null,null,null,null,null,null,null,null,null,null,null,null,null,null,null,null,null,null,null,null,null,null,null,null,null,null,null,null,null,null,null,null,null,null,null,null,null,null,null,null,null,null,null,null,null,null,null,null,null,null,null,null,null,null,null,null,null,null,null,null,null,null,null,null,null,null,null,null,null,null,null,null,null,null,null,null,null,null,null,null,null,null,null,null,null,null,null,null,null,null,null,null,null,null,null,null,null,null,null,null,null,null,null,null,null,null,null,null,null,null,null,null,null,null,null,null,null,null,null,null,null,null,null,null,null,null,null,null,null,null,null,null,null,null,null,null,null,null,null,null,null,null,null,null,null,null,null,null,null,null,null,null,null,null,null,null,null,null,null,null,null,null,null,null,null,null,null,null,null,null,null,null,null,null,null,null,null,null,null,null,null,null,null,null,null,null,null,null,null,null,null,null,null,null,null,null,null,null,null,null,null,null,null,null,null,null,null,null,null,null,null,null,null,null,null,null,null,null,null,null,null,null,null,null,null,null,null,null,null,null,null,null,null,null,null,null,null,null,null,null,null,null,null,null,null,null,null,null,null,null,null,null,null,null,null,null,null,null,null,null,null,null,null,null,null,null,null,null,null,null,null,null,null,null,null,null,null,null,null,null,null,null,null,null,null,null,null,null,null,null,null,null,null,null,null,null,null,null,null,null,null,null,null,null,null,null,null,null,null,null,null,null,null,null,null,null,null,null,null,null,null,null,null,null,null,null,null,null,null,null,null,null,null,null,null,null,null,null,null,null,null,null,null,null,null,null,null,null,null,null,null,null,null,null,null,null,null,null,null,null,null,null,null,null,null,null,null,null,null,null,null,null,null,null,null,null,null,null,null,null,null,null,null,null,null,null,null,null,null,null,null,null,null,null,null,null,null,null,null,null,null,null,null,null,null,null,null,null,null,null,null,null,null,null,null,null,null,null,null,null,null,null,null,null,null,null,null,null,null,null,null,null,null,null,null,null,null,null,null,null,null,null,null,null,null,null,null,null,null,null,null,null,null,null,null,null,null,null,null,null,null,null,null,null,null,null,null,null,null,null,null,null,null,null,null,null,null,null,null,null,null,null,null,null,null,null,null,null,null,null,null,null,null,null,null,null,null,null,null,null,null,null,null,null,null,null,null,null,null,null,null,null,null,null,null,null,null,null,null,null,null,null,null,null,null,null,null,null,null,null,null,null,null,null,null,null,null,null,null,null,null,null,null,null,null,null,null,null,null,null,null,null,null,null,null,null,null,null,null,null,null,null,null,null,null,null,null,null,null,null,null,null,null,null,null,null,null,null,null,null,null,null,null,null,null,null,null,null,null,null,null,null,null,null,null,null,null,null,null,null,null,null,null,null,null,null,null,null,null,null,null,null,null,null,null,null,null,null,null,null,null,null,null,null,null,null,null,null,null,null,null,null,null,null,null,null,null,null,null,null,null,null,null,null,null,null,null,null,null,null,null,null,null,null,null,null,null,null,null,null,null,null,null,null,null,null,null,null,null,null,null,null,null,null,null,null,null,null,null,null,null,null,null,null,null,null,null,null,null,null,null,null,null,null,null,null,null,null,null,null,null,null,null,null,null,null,null,null,null,null,null,null,null,null,null,null,null,null,null,null,null,null,null,null,null,null,null,null,null,null,null,null,null,null,null,null,null,null,null,null,null,null,null,null,null,null,null,null,null,null,null,null,null,null,null,null,null,null,null,null,null,null,null,null,null,null,null,null,null,null,null,null,null,null,null,null,null,null,null,null,null,null,null,null,null,null,null,null,null,null,null,null,null,null,null,null,null,null,null,null,null,null,null,null,null,null,null,null,null,null,null,null,null,null,null,null,null,null,null,null,null,null,null,null,null,null,null,null,null,null,null,null,null,null,null,null,null,null,null,null,null,null,null,null,null,null,null,null,null,null,null,null,null,null,null,null,null,null,null,null,null,null,null,null,null,null,null,null,null,null,null,null,null,null,null,null,null,null,null,null,null,null,null,null,null,null,null,null,null,null,null,null,null,null,null,null,null,null,null,null,null,null,null,null,null,null,null,null,null,null,null,null,null,null,null,null,null,null,null,null,null,null,null,null,null,null,null,null,null,null,null,null,null,null,null,null,null,null,null,null,null,null,null,null,null,null,null,null,null,null,null,null,null,null,null,null,null,null,null,null,null,null,null,null,null,null,null,null,null,null,null,null,null,null,null,null,null,null,null,null,null,null,null,null,null,null,null,null,null,null,null,null,null,null,null,null,null,null,null,null,null,null,null,null,null,null,null,null,null,null,null,null,null,null,null,null,null,null,null,null,null,null,null,null,null,null,null,null,null,null,null,null,null,null,null,null,null,null,null,null,null,null,null,null,null,null,null,null,null,null,null,null,null,null,null,null,null,null,null,null,null,null,null,null,null,null,null,null,null,null,null,null,null,null,null,null,null,null,null,null,null,null,null,null,null,null,null,null,null,null,null,null,null,null,null,null,null,null,null,null,null,null,null,null,null,null,null,null,null,null,null,null,null,null,null,null,null,null,null,null,null,null,null,null,null,null,null,null,null,null,null,null,null,null,null,null,null,null,null,null,null,null,null,null,null,null,null,null,null,null,null,null,null,null,null,null,null,null,null,null,null,null,null,null,null,null,null,null,null,null,null,null,null,null,null,null,null,null,null,null,null,null,null,null,null,null,null,null,null,null,null,null,null,null,null,null,null,null,null,null,null,null,null,null,null,null,null,null,null,null,null,null,null,null,null,null,null,null,null,null,null,null,null,null,null,null,null,null,null,null,null,null,null,null,null,null,null,null,null,null,null,null,null,null,null,null,null,null,null,null,null,null,null,null,null,null,null,null,null,null,null,null,null,null,null,null,null,null,null,null,null,null,null,null,null,null,null,null,null,null,null,null,null,null,null,null,null,null,null,null,null,null,null,null,null,null,null,null,null,null,null,null,null,null,null,null,null,null,null,null,null,null,null,null,null,null,null,null,null,null,null,null,null,null,null,null,null,null,null,null,null,null,null,null,null,null,null,null,null,null,null,null,null,null,null,null,null,null,null,null,null,null,null,null,null,null,null,null,null,null,null,null,null,null,null,null,null,null,null,null,null,null,null,null,null,null,null,null,null,null,null,null,null,null,null,null,null,null,null,null,null,null,null,null,null,null,null,null,null,null,null,null,null,null,null,null,null,null,null,null,null,null,null,null,null,null,null,null,null,null,null,null,null,null,null,null,null,null,null,null,null,null,null,null,null,null,null,null,null,null,null,null,null,null,null,null,null,null,null,null,null,null,null,null,null,null,null,null,null,null,null,null,null,null,null,null,null,null,null,null,null,null,null,null,null,null,null,null,null,null,null,null,null,null,null,null,null,null,null,null,null,null,null,null,null,null,null,null,null,null,null,null,null,null,null,null,null,null,null,null,null,null,null,null,null,null,null,null,null,null,null,null,null,null,null,null,null,null,null,null,null,null,null,null,null,null,null,null,null,null,null,null,null,null,null,null,null,null,null,null,null,null,null,null,null,null,null,null,null,null,null,null,null,null,null,null,null,null,null,null,null,null,null,null,null,null,null,null,null,null,null,null,null,null,null,null,null,null,null,null,null,null,null,null,null,null,null,null,null,null,null,null,null,null,null,null,null,null,null,null,null,null,null,null,null,null,null,null,null,null,null,null,null,null,null,null,null,null,null,null,null,null,null,null,null,null,null,null,null,null,null,null,null,null,null,null,null,null,null,null,null,null,null,null,null,null,null,null,null,null,null,null,null,null,null,null,null,null,null,null,null,null,null,null,null,null,null,null,null,null,null,null,null,null,null,null,null,null,null,null,null,null,null,null,null,null,null,null,null,null,null,null,null,null,null,null,null,null,null,null,null,null,null,null,null,null,null,null,null,null,null,null,null,null,null,null,null,null,null,null,null,null,null,null,null,null,null,null,null,null,null,null,null,null,null,null,null,null,null,null,null,null,null,null,null,null,null,null,null,null,null,null,null,null,null,null,null,null,null,null,null,null,null,null,null,null,null,null,null,null,null,null,null,null,null,null,null,null,null,null,null,null,null,null,null,null,null,null,null,null,null,null,null,null,null,null,null,null,null,null,null,null,null,null,null,null,null,null,null,null,null,null,null,null,null,null,null,null,null,null,null,null,null,null,null,null,null,null,null,null,null,null,null,null,null,null,null,null,null,null,null,null,null,null,null,null,null,null,null,null,null,null,null,null,null,null,null,null,null,null,null,null,null,null,null,null,null,null,null,null,null,null,null,null,null,null,null,null,null,null,null,null,null,null,null,null,null,null,null,null,null,null,null,null,null,null,null,null,null,null,null,null,null,null,null,null,null,null,null,null,null,null,null,null,null,null,null,null,null,null,null,null,null,null,null,null,null,null,null,null,null,null,null,null,null,null,null,null,null,null,null,null,null,null,null,null,null,null,null,null,null,null,null,null,null,null,null,null,null,null,null,null,null,null,null,null,null,null,null,null,null,null,null,null,null,null,null,null,null,null,null,null,null,null,null,null,null,null,null,null,null,null,null,null,null,null,null,null,null,null,null,null,null,null,null,null,null,null,null,null,null,null,null,null,null,null,null,null,null,null,null,null,null,null,null,null,null,null,null,null,null,null,null,null,null,null,null,null,null,null,null,null,null,null,null,null,null,null,null,null,null,null,null,null,null,null,null,null,null,null,null,null,null,null,null,null,null,null,null,null,null,null,null,null,null,null,null,null,null,null,null,null,null,null,null,null,null,null,null,null,null,null,null,null,null,null,null,null,null,null,null,null,null,null,null,null,null,null,null,null,null,null,null,null,null,null,null,null,null,null,null,null,null,null,null,null,null,null,null,null,null,null,null,null,null,null,null,null,null,null,null,null,null,null,null,null,null,null,null,null,null,null,null,null,null,null,null,null,null,null,null,null,null,null,null,null,null,null,null,null,null,null,null,null,null,null,null,null,null,null,null,null,null,null,null,null,null,null,null,null,null,null,null,null,null,null,null,null,null,null,null,null,null,null,null,null,null,null,null,null,null,null,null,null,null,null,null,null,null,null,null,null,null,null,null,null,null,null,null,null,null,null,null,null,null,null,null,null,null,null,null,null,null,null,null,null,null,null,null,null,null,null,null,null,null,null,null,null,null,null,null,null,null,null,null,null,null,null,null,null,null,null,null,null,null,null,null,null,null,null,null,null,null,null,null,null,null,null,null,null,null,null,null,null,null,null,null,null,null,null,null,null,null,null,null,null,null,null,null,null,null,null,null,null,null,null,null,null,null,null,null,null,null,null,null,null,null,null,null,null,null,null,null,null,null,null,null,null,null,null,null,null,null,null,null,null,null,null,null,null,null,null,null,null,null,null,null,null,null,null,null,null,null,null,null,null,null,null,null,null,null,null,null,null,null,null,null,null,null,null,null,null,null,null,null,null,null,null,null,null,null,null,null,null,null,null,null,null,null,null,null,null,null,null,null,null,null,null,null,null,null,null,null,null,null,null,null,null,null,null,null,null,null,null,null,null,null,null,null,null,null,null,null,null,null,null,null,null,null,null,null,null,null,null,null,null,null,null,null,null,null,null,null,null,null,null,null,null,null,null,null,null,null,null,null,null,null,null,null,null,null,null,null,null,null,null,null,null,null,null,null,null,null,null,null,null,null,null,null,null,null,null,null,null,null,null,null,null,null,null,null,null,null,null,null,null,null,null,null,null,null,null,null,null,null,null,null,null,null,null,null,null,null,null,null,null,null,null,null,null,null,null,null,null,null,null,null,null,null,null,null,null,null,null,null,null,null,null,null,null,null,null,null,null,null,null,null,null,null,null,null,null,null,null,null,null,null,null,null,null,null,null,null,null,null,null,null,null,null,null,null,null,null,null,null,null,null,null,null,null,null,null,null,null,null,null,null,null,null,null,null,null,null,null,null,null,null,null,null,null,null,null,null,null,null,null,null,null,null,null,null,null,null,null,null,null,null,null,null,null,null,null,null,null,null,null,null,null,null,null,null,null,null,null,null,null,null,null,null,null,null,null,null,null,null,null,null,null,null,null,null,null,null,null,null,null,null,null,null,null,null,null,null,null,null,null,null,null,null,null,null,null,null,null,null,null,null,null,null,null,null,null,null,null,null,null,null,null,null,null,null,null,null,null,null,null,null,null,null,null,null,null,null,null,null,null,null,null,null,null,null,null,null,null,null,null,{"$f":"TODAY()+46","v":"2016-10-10"}]
[null,null,null,null,null,null,null,null,null,null,null,null,null,null,null,null,null,null,null,null,null,null,null,null,null,null,null,{"$f":"IF(AB8=0,0,IF(AB1<TODAY(),0,1))","v":1},null,null,null,null,null,null,null,null,null,null,null,null,null,null,null,null,null,null,null,null,null,null,null,null,null,null,null,null,null,null,null,null,null,null,null,null,null,null,null,null,null,null,null,null,null,null,null,null,null,null,null,null,null,null,null,null,null,null,null,null,null,null,null,null,null,null,null,null,null,null,null,null,null,null,null,null,null,null,null,null,null,null,null,null,null,null,null,null,null,null,null,null,null,null,null,null,null,null,null,null,null,null,null,null,null,null,null,null,null,null,null,null,null,null,null,null,null,null,null,null,null,null,null,null,null,null,null,null,null,null,null,null,null,null,null,null,null,null,null,null,null,null,null,null,null,null,null,null,null,null,null,null,null,null,null,null,null,null,null,null,null,null,null,null,null,null,null,null,null,null,null,null,null,null,null,null,null,null,null,null,null,null,null,null,null,null,null,null,null,null,null,null,null,null,null,null,null,null,null,null,null,null,null,null,null,null,null,null,null,null,null,null,null,null,null,null,null,null,null,null,null,null,null,null,null,null,null,null,null,null,null,null,null,null,null,null,null,null,null,null,null,null,null,null,null,null,null,null,null,null,null,null,null,null,null,null,null,null,null,null,null,null,null,null,null,null,null,null,null,null,null,null,null,null,null,null,null,null,null,null,null,null,null,null,null,null,null,null,null,null,null,null,null,null,null,null,null,null,null,null,null,null,null,null,null,null,null,null,null,null,null,null,null,null,null,null,null,null,null,null,null,null,null,null,null,null,null,null,null,null,null,null,null,null,null,null,null,null,null,null,null,null,null,null,null,null,null,null,null,null,null,null,null,null,null,null,null,null,null,null,null,null,null,null,null,null,null,null,null,null,null,null,null,null,null,null,null,null,null,null,null,null,null,null,null,null,null,null,null,null,null,null,null,null,null,null,null,null,null,null,null,null,null,null,null,null,null,null,null,null,null,null,null,null,null,null,null,null,null,null,null,null,null,null,null,null,null,null,null,null,null,null,null,null,null,null,null,null,null,null,null,null,null,null,null,null,null,null,null,null,null,null,null,null,null,null,null,null,null,null,null,null,null,null,null,null,null,null,null,null,null,null,null,null,null,null,null,null,null,null,null,null,null,null,null,null,null,null,null,null,null,null,null,null,null,null,null,null,null,null,null,null,null,null,null,null,null,null,null,null,null,null,null,null,null,null,null,null,null,null,null,null,null,null,null,null,null,null,null,null,null,null,null,null,null,null,null,null,null,null,null,null,null,null,null,null,null,null,null,null,null,null,null,null,null,null,null,null,null,null,null,null,null,null,null,null,null,null,null,null,null,null,null,null,null,null,null,null,null,null,null,null,null,null,null,null,null,null,null,null,null,null,null,null,null,null,null,null,null,null,null,null,null,null,null,null,null,null,null,null,null,null,null,null,null,null,null,null,null,null,null,null,null,null,null,null,null,null,null,null,null,null,null,null,null,null,null,null,null,null,null,null,null,null,null,null,null,null,null,null,null,null,null,null,null,null,null,null,null,null,null,null,null,null,null,null,null,null,null,null,null,null,null,null,null,null,null,null,null,null,null,null,null,null,null,null,null,null,null,null,null,null,null,null,null,null,null,null,null,null,null,null,null,null,null,null,null,null,null,null,null,null,null,null,null,null,null,null,null,null,null,null,null,null,null,null,null,null,null,null,null,null,null,null,null,null,null,null,null,null,null,null,null,null,null,null,null,null,null,null,null,null,null,null,null,null,null,null,null,null,null,null,null,null,null,null,null,null,null,null,null,null,null,null,null,null,null,null,null,null,null,null,null,null,null,null,null,null,null,null,null,null,null,null,null,null,null,null,null,null,null,null,null,null,null,null,null,null,null,null,null,null,null,null,null,null,null,null,null,null,null,null,null,null,null,null,null,null,null,null,null,null,null,null,null,null,null,null,null,null,null,null,null,null,null,null,null,null,null,null,null,null,null,null,null,null,null,null,null,null,null,null,null,null,null,null,null,null,null,null,null,null,null,null,null,null,null,null,null,null,null,null,null,null,null,null,null,null,null,null,null,null,null,null,null,null,null,null,null,null,null,null,null,null,null,null,null,null,null,null,null,null,null,null,null,null,null,null,null,null,null,null,null,null,null,null,null,null,null,null,null,null,null,null,null,null,null,null,null,null,null,null,null,null,null,null,null,null,null,null,null,null,null,null,null,null,null,null,null,null,null,null,null,null,null,null,null,null,null,null,null,null,null,null,null,null,null,null,null,null,null,null,null,null,null,null,null,null,null,null,null,null,null,null,null,null,null,null,null,null,null,null,null,null,null,null,null,null,null,null,null,null,null,null,null,null,null,null,null,null,null,null,null,null,null,null,null,null,null,null,null,null,null,null,null,null,null,null,null,null,null,null,null,null,null,null,null,null,null,null,null,null,null,null,null,null,null,null,null,null,null,null,null,null,null,null,null,null,null,null,null,null,null,null,null,null,null,null,null,null,null,null,null,null,null,null,null,null,null,null,null,null,null,null,null,null,null,null,null,null,null,null,null,null,null,null,null,null,null,null,null,null,null,null,null,null,null,null,null,null,null,null,null,null,null,null,null,null,null,null,null,null,null,null,null,null,null,null,null,null,null,null,null,null,null,null,null,null,null,null,null,null,null,null,null,null,null,null,null,null,null,null,null,null,null,null,null,null,null,null,null,null,null,null,null,null,null,null,null,null,null,null,null,null,null,null,null,null,null,null,null,null,null,null,null,null,null,null,null,null,null,null,null,null,null,null,null,null,null,null,null,null,null,null,null,null,null,null,null,null,null,null,null,null,null,null,null,null,null,null,null,null,null,null,null,null,null,null,null,null,null,null,null,null,null,null,null,null,null,null,null,null,null,null,null,null,null,null,null,null,null,null,null,null,null,null,null,null,null,null,null,null,null,null,null,null,null,null,null,null,null,null,null,null,null,null,null,null,null,null,null,null,null,null,null,null,null,null,null,null,null,null,null,null,null,null,null,null,null,null,null,null,null,null,null,null,null,null,null,null,null,null,null,null,null,null,null,null,null,null,null,null,null,null,null,null,null,null,null,null,null,null,null,null,null,null,null,null,null,null,null,null,null,null,null,null,null,null,null,null,null,null,null,null,null,null,null,null,null,null,null,null,null,null,null,null,null,null,null,null,null,null,null,null,null,null,null,null,null,null,null,null,null,null,null,null,null,null,null,null,null,null,null,null,null,null,null,null,null,null,null,null,null,null,null,null,null,null,null,null,null,null,null,null,null,null,null,null,null,null,null,null,null,null,null,null,null,null,null,null,null,null,null,null,null,null,null,null,null,null,null,null,null,null,null,null,null,null,null,null,null,null,null,null,null,null,null,null,null,null,null,null,null,null,null,null,null,null,null,null,null,null,null,null,null,null,null,null,null,null,null,null,null,null,null,null,null,null,null,null,null,null,null,null,null,null,null,null,null,null,null,null,null,null,null,null,null,null,null,null,null,null,null,null,null,null,null,null,null,null,null,null,null,null,null,null,null,null,null,null,null,null,null,null,null,null,null,null,null,null,null,null,null,null,null,null,null,null,null,null,null,null,null,null,null,null,null,null,null,null,null,null,null,null,null,null,null,null,null,null,null,null,null,null,null,null,null,null,null,null,null,null,null,null,null,null,null,null,null,null,null,null,null,null,null,null,null,null,null,null,null,null,null,null,null,null,null,null,null,null,null,null,null,null,null,null,null,null,null,null,null,null,null,null,null,null,null,null,null,null,null,null,null,null,null,null,null,null,null,null,null,null,null,null,null,null,null,null,null,null,null,null,null,null,null,null,null,null,null,null,null,null,null,null,null,null,null,null,null,null,null,null,null,null,null,null,null,null,null,null,null,null,null,null,null,null,null,null,null,null,null,null,null,null,null,null,null,null,null,null,null,null,null,null,null,null,null,null,null,null,null,null,null,null,null,null,null,null,null,null,null,null,null,null,null,null,null,null,null,null,null,null,null,null,null,null,null,null,null,null,null,null,null,null,null,null,null,null,null,null,null,null,null,null,null,null,null,null,null,null,null,null,null,null,null,null,null,null,null,null,null,null,null,null,null,null,null,null,null,null,null,null,null,null,null,null,null,null,null,null,null,null,null,null,null,null,null,null,null,null,null,null,null,null,null,null,null,null,null,null,null,null,null,null,null,null,null,null,null,null,null,null,null,null,null,null,null,null,null,null,null,null,null,null,null,null,null,null,null,null,null,null,null,null,null,null,null,null,null,null,null,null,null,null,null,null,null,null,null,null,null,null,null,null,null,null,null,null,null,null,null,null,null,null,null,null,null,null,null,null,null,null,null,null,null,null,null,null,null,null,null,null,null,null,null,null,null,null,null,null,null,null,null,null,null,null,null,null,null,null,null,null,null,null,null,null,null,null,null,null,null,null,null,null,null,null,null,null,null,null,null,null,null,null,null,null,null,null,null,null,null,null,null,null,null,null,null,null,null,null,null,null,null,null,null,null,null,null,null,null,null,null,null,null,null,null,null,null,null,null,null,null,null,null,null,null,null,null,null,null,null,null,null,null,null,null,null,null,null,null,null,null,null,null,null,null,null,null,null,null,null,null,null,null,null,null,null,null,null,null,null,null,null,null,null,null,null,null,null,null,null,null,null,null,null,null,null,null,null,null,null,null,null,null,null,null,null,null,null,null,null,null,null,null,null,null,null,null,null,null,null,null,null,null,null,null,null,null,null,null,null,null,null,null,null,null,null,null,null,null,null,null,null,null,null,null,null,null,null,null,null,null,null,null,null,null,null,null,null,null,null,null,null,null,null,null,null,null,null,null,null,null,null,null,null,null,null,null,null,null,null,null,null,null,null,null,null,null,null,null,null,null,null,null,null,null,null,null,null,null,null,null,null,null,null,null,null,null,null,null,null,null,null,null,null,null,null,null,null,null,null,null,null,null,null,null,null,null,null,null,null,null,null,null,null,null,null,null,null,null,null,null,null,null,null,null,null,null,null,null,null,null,null,null,null,null,null,null,null,null,null,null,null,null,null,null,null,null,null,null,null,null,null,null,null,null,null,null,null,null,null,null,null,null,null,null,null,null,null,null,null,null,null,null,null,null,null,null,null,null,null,null,null,null,null,null,null,null,null,null,null,null,null,null,null,null,null,null,null,null,null,null,null,null,null,null,null,null,null,null,null,null,null,null,null,null,null,null,null,null,null,null,null,null,null,null,null,null,null,null,null,null,null,null,null,null,null,null,null,null,null,null,null,null,null,null,null,null,null,null,null,null,null,null,null,null,null,null,null,null,null,null,null,null,null,null,null,null,null,null,null,null,null,null,null,null,null,null,null,null,null,null,null,null,null,null,null,null,null,null,null,null,null,null,null,null,null,null,null,null,null,null,null,null,null,null,null,null,null,null,null,null,null,null,null,null,null,null,null,null,null,null,null,null,null,null,null,null,null,null,null,null,null,null,null,null,null,null,null,null,null,null,null,null,null,null,null,null,null,null,null,null,null,null,null,null,null,null,null,null,null,null,null,null,null,null,null,null,null,null,null,null,null,null,null,null,null,null,null,null,null,null,null,null,null,null,null,null,null,null,null,null,null,null,null,null,null,null,null,null,null,null,null,null,null,null,null,null,null,null,null,null,null,null,null,null,null,null,null,null,null,null,null,null,null,null,null,null,null,null,null,null,null,null,null,null,null,null,null,null,null,null,null,null,null,null,null,null,null,null,null,null,null,null,null,null,null,null,null,null,null,null,null,null,null,null,null,null,null,null,null,null,null,null,null,null,null,null,null,null,null,null,null,null,null,null,null,null,null,null,null,null,null,null,null,null,null,null,null,null,null,null,null,null,null,null,null,null,null,null,null,null,null,null,null,null,null,null,null,null,null,null,null,null,null,null,null,null,null,null,null,null,null,null,null,null,null,null,null,null,null,null,null,null,null,null,null,null,null,null,null,null,null,null,null,null,null,null,null,null,null,null,null,null,null,null,null,null,null,null,null,null,null,null,null,null,null,null,null,null,null,null,null,null,null,null,null,null,null,null,null,null,null,null,null,null,null,null,null,null,null,null,null,null,null,null,null,null,null,null,null,null,null,null,null,null,null,null,null,null,null,null,null,null,null,null,null,null,null,null,null,null,null,null,null,null,null,null,null,null,null,null,null,null,null,null,null,null,null,null,null,null,null,null,null,null,null,null,null,null,null,null,null,null,null,null,null,null,null,null,null,null,null,null,null,null,null,null,null,null,null,null,null,null,null,null,null,null,null,null,null,null,null,null,null,null,null,null,null,null,null,null,null,null,null,null,null,null,null,null,null,null,null,null,null,null,null,null,null,null,null,null,null,null,null,null,null,null,null,null,null,null,null,null,null,null,null,null,null,null,null,null,null,null,null,null,null,null,null,null,null,null,null,null,null,null,null,null,null,null,null,null,null,null,null,null,null,null,null,null,null,null,null,null,null,null,null,null,null,null,null,null,null,null,null,null,null,null,null,null,null,null,null,null,null,null,null,null,null,null,null,null,null,null,null,null,null,null,null,null,null,null,null,null,null,null,null,null,null,null,null,null,null,null,null,null,null,null,null,null,null,null,null,null,null,null,null,null,null,null,null,null,null,null,null,null,null,null,null,null,null,null,null,null,null,null,null,null,null,null,null,null,null,null,null,null,null,null,null,null,null,null,null,null,null,null,null,null,null,null,null,null,null,null,null,null,null,null,null,null,null,null,null,null,null,null,null,null,null,null,null,null,null,null,null,null,null,null,null,null,null,null,null,null,null,null,null,null,null,null,null,null,null,null,null,null,null,null,null,null,null,null,null,null,null,null,null,null,null,null,null,null,null,null,null,null,null,null,null,null,null,null,null,null,null,null,null,null,null,null,null,null,null,null,null,null,null,null,null,null,null,null,null,null,null,null,null,null,null,null,null,null,null,null,null,null,null,null,null,null,null,null,null,null,null,null,null,null,null,null,null,null,null,null,null,null,null,null,null,null,null,null,null,null,null,null,null,null,null,null,null,null,null,null,null,null,null,null,null,null,null,null,null,null,null,null,null,null,null,null,null,null,null,null,null,null,null,null,null,null,null,null,null,null,null,null,null,null,null,null,null,null,null,null,null,null,null,null,null,null,null,null,null,null,null,null,null,null,null,null,null,null,null,null,null,null,null,null,null,null,null,null,null,null,null,null,null,null,null,null,null,null,null,null,null,null,null,null,null,null,null,null,null,null,null,null,null,null,null,null,null,null,null,null,null,null,null,null,null,null,null,null,null,null,null,null,null,null,null,null,null,null,null,null,null,null,null,null,null,null,null,null,null,null,null,null,null,null,null,null,null,null,null,null,null,null,null,null,null,null,null,null,null,null,null,null,null,null,null,null,null,null,null,null,null,null,null,null,null,null,null,null,null,null,null,null,null,null,null,null,null,null,null,null,null,null,null,null,null,null,null,null,null,null,null,null,null,null,null,null,null,null,null,null,null,null,null,null,null,null,null,null,null,null,null,null,null,null,null,null,null,null,null,null,null,null,null,null,null,null,null,null,null,null,null,null,null,null,null,null,null,null,null,null,null,null,null,null,null,null,null,null,null,null,null,null,null,null,null,null,null,null,null,null,null,null,null,null,null,null,null,null,null,null,null,null,null,null,null,null,null,null,null,null,null,null,null,null,null,null,null,null,null,null,null,null,null,null,null,null,null,null,null,null,null,null,null,null,null,null,null,null,null,null,null,null,null,null,null,null,null,null,null,null,null,null,null,null,null,null,null,null,null,null,null,null,null,null,null,null,null,null,null,null,null,null,null,null,null,null,null,null,null,null,null,null,null,null,null,null,null,null,null,null,null,null,null,null,null,null,null,null,null,null,null,null,null,null,null,null,null,null,null,null,null,null,null,null,null,null,null,null,null,null,null,null,null,null,null,null,null,null,null,null,null,null,null,null,null,null,null,null,null,null,null,null,null,null,null,null,null,null,null,null,null,null,null,null,null,null,null,null,null,null,null,null,null,null,null,null,null,null,null,null,null,null,null,null,null,null,null,null,null,null,null,null,null,null,null,null,null,null,null,null,null,null,null,null,null,null,null,null,null,null,null,null,null,null,null,null,null,null,null,null,null,null,null,null,null,null,null,null,null,null,null,null,null,null,null,null,null,null,null,null,null,null,null,null,null,null,null,null,null,null,null,null,null,null,null,null,null,null,null,null,null,null,null,null,null,null,null,null,null,null,null,null,null,null,null,null,null,null,null,null,null,null,null,null,null,null,null,null,null,null,null,null,null,null,null,null,null,null,null,null,null,null,null,null,null,null,null,null,null,null,null,null,null,null,null,null,null,null,null,null,null,null,null,null,null,null,null,null,null,null,null,null,null,null,null,null,null,null,null,null,null,null,null,null,null,null,null,null,null,null,null,null,null,null,null,null,null,null,null,null,null,null,null,null,null,null,null,null,null,null,null,null,null,null,null,null,null,null,null,null,null,null,null,null,null,null,null,null,null,null,null,null,null,null,null,null,null,null,null,null,null,null,null,null,null,null,null,null,null,null,null,null,null,null,null,null,null,null,null,null,null,null,null,null,null,null,null,null,null,null,null,null,null,null,null,null,null,null,null,null,null,null,null,null,null,null,null,null,null,null,null,null,null,null,null,null,null,null,null,null,null,null,null,null,null,null,null,null,null,null,null,null,null,null,null,null,null,null,null,null,null,null,null,null,null,null,null,null,null,null,null,null,null,null,null,null,null,null,null,null,null,null,null,null,null,null,null,null,null,null,null,null,null,null,null,null,null,null,null,null,null,null,null,null,null,null,null,null,null,null,null,null,null,null,null,null,null,null,null,null,null,null,null,null,null,null,null,null,null,null,null,null,null,null,null,null,null,null,null,null,null,null,null,null,null,null,null,null,null,null,null,null,null,null,null,null,null,null,null,null,null,null,null,null,null,null,null,null,null,null,null,null,null,null,null,null,null,null,null,null,null,null,null,null,null,null,null,null,null,null,null,null,null,null,null,null,null,null,null,null,null,null,null,null,null,null,null,null,null,null,null,null,null,null,null,null,null,null,null,null,null,null,null,null,null,null,null,null,null,null,null,null,null,null,null,null,null,null,null,null,null,null,null,null,null,null,null,null,null,null,null,null,null,null,null,null,null,null,null,null,null,null,null,null,null,null,null,null,null,null,null,null,null,null,null,null,null,null,null,null,null,null,null,null,null,null,null,null,null,null,null,null,null,null,null,null,null,null,null,null,null,null,null,null,null,null,null,null,null,null,null,null,null,null,null,null,null,null,null,null,null,null,null,null,null,null,null,null,null,null,null,null,null,null,null,null,null,null,null,null,null,null,null,null,null,null,null,null,null,null,null,null,null,null,null,null,null,null,null,null,null,null,null,null,null,null,null,null,null,null,null,null,null,null,null,null,null,null,null,null,null,null,null,null,null,null,null,null,null,null,null,null,null,null,null,null,null,null,null,null,null,null,null,null,null,null,null,null,null,null,null,null,null,null,null,null,null,null,null,null,null,null,null,null,null,null,null,null,null,null,null,null,null,null,null,null,null,null,null,null,null,null,null,null,null,null,null,null,null,null,null,null,null,null,null,null,null,null,null,null,null,null,null,null,null,null,null,null,null,null,null,null,null,null,null,null,null,null,null,null,null,null,null,null,null,null,null,null,null,null,null,null,null,null,null,null,null,null,null,null,null,null,null,null,null,null,null,null,null,null,null,null,null,null,null,null,null,null,null,null,null,null,null,null,null,null,null,null,null,null,null,null,null,null,null,null,null,null,null,null,null,null,null,null,null,null,null,null,null,null,null,null,null,null,null,null,null,null,null,null,null,null,null,null,null,null,null,null,null,null,null,null,null,null,null,null,null,null,null,null,null,null,null,null,null,null,null,null,null,null,null,null,null,null,null,null,null,null,null,null,null,null,null,null,null,null,null,null,null,null,null,null,null,null,null,null,null,null,null,null,null,null,null,null,null,null,null,null,null,null,null,null,null,null,null,null,null,null,null,null,null,null,null,null,null,null,null,null,null,null,null,null,null,null,null,null,null,null,null,null,null,null,null,null,null,null,null,null,null,null,null,null,null,null,null,null,null,null,null,null,null,null,null,null,null,null,null,null,null,null,null,null,null,null,null,null,null,null,null,null,null,null,null,null,null,null,null,null,null,null,null,null,null,null,null,null,null,null,null,null,null,null,null,null,null,null,null,null,null,null,null,null,null,null,null,null,null,null,null,null,null,null,null,null,null,null,null,null,null,null,null,null,null,null,null,null,null,null,null,null,null,null,null,null,null,null,null,null,null,null,null,null,null,null,null,null,null,null,null,null,null,null,null,null,null,null,null,null,null,null,null,null,null,null,null,null,null,null,null,null,null,null,null,null,null,null,null,null,null,null,null,null,null,null,null,null,null,null,null,null,null,null,null,null,null,null,null,null,null,null,null,null,null,null,null,null,null,null,null,null,null,null,null,null,null,null,null,null,null,null,null,null,null,null,null,null,null,null,null,null,null,null,null,null,null,null,null,null,null,null,null,null,null,null,null,null,null,null,null,null,null,null,null,null,null,null,null,null,null,null,null,null,null,null,null,null,null,null,null,null,null,null,null,null,null,null,null,null,null,null,null,null,null,null,null,null,null,null,null,null,null,null,null,null,null,null,null,null,null,null,null,null,null,null,null,null,null,null,null,null,null,null,null,null,null,null,null,null,null,null,null,null,null,null,null,null,null,null,null,null,null,null,null,null,null,null,null,null,null,null,null,null,null,null,null,null,null,null,null,null,null,null,null,null,null,null,null,null,null,null,null,null,null,null,null,null,null,null,null,null,null,null,null,null,null,null,null,null,null,null,null,null,null,null,null,null,null,null,null,null,null,null,null,null,null,null,null,null,null,null,null,null,null,null,null,null,null,null,null,null,null,null,null,null,null,null,null,null,null,null,null,null,null,null,null,null,null,null,null,null,null,null,null,null,null,null,null,null,null,null,null,null,null,null,null,null,null,null,null,null,null,null,null,null,null,null,null,null,null,null,null,null,null,null,null,null,null,null,null,null,null,null,null,null,null,null,null,null,null,null,null,null,null,null,null,null,null,null,null,null,null,null,null,null,null,null,null,null,null,null,null,null,null,null,null,null,null,null,null,null,null,null,null,null,null,null,null,null,null,null,null,null,null,null,null,null,null,null,null,null,null,null,null,null,null,null,null,null,null,null,null,null,null,null,null,null,null,null,null,null,null,null,null,null,null,null,null,null,null,null,null,null,null,null,null,null,null,null,null,null,null,null,null,null,null,null,null,null,null,null,null,null,null,null,null,null,null,null,null,null,null,null,null,null,null,null,null,null,null,null,null,null,null,null,null,null,null,null,null,null,null,null,null,null,null,null,null,null,null,null,null,null,null,null,null,null,null,null,null,null,null,null,null,null,null,null,null,null,null,null,null,null,null,null,null,null,null,null,null,null,null,null,null,null,null,null,null,null,null,null,null,null,null,null,null,null,null,null,null,null,null,null,null,null,null,null,null,null,null,null,null,null,null,null,null,null,null,null,null,null,null,null,null,null,null,null,null,null,null,null,null,null,null,null,null,null,null,null,null,null,null,null,null,null,null,null,null,null,null,null,null,null,null,null,null,null,null,null,null,null,null,null,null,null,null,null,null,null,null,null,null,null,null,null,null,null,null,null,null,null,null,null,null,null,null,null,null,null,null,null,null,null,null,null,null,null,null,null,null,null,null,null,null,null,null,null,null,null,null,null,null,null,null,null,null,null,null,null,null,null,null,null,null,null,null,null,null,null,null,null,null,null,null,null,null,null,null,null,null,null,null,null,null,null,null,null,null,null,null,null,null,null,null,null,null,null,null,null,null,null,null,null,null,null,null,null,null,null,null,null,null,null,null,null,null,null,null,null,null,null,null,null,null,null,null,null,null,null,null,null,null,null,null,null,null,null,null,null,null,null,null,null,null,null,null,null,null,null,null,null,null,null,null,null,null,null,null,null,null,null,null,null,null,null,null,null,null,null,null,null,null,null,null,null,null,null,null,null,null,null,null,null,null,null,null,null,null,null,null,null,null,null,null,null,null,null,null,null,null,null,null,null,null,null,null,null,null,null,null,null,null,null,null,null,null,null,null,null,null,null,null,null,null,null,null,null,null,null,null,null,null,null,null,null,null,null,null,null,null,null,null,null,null,null,null,null,null,null,null,null,null,null,null,null,null,null,null,null,null,null,null,null,null,null,null,null,null,null,null,null,null,null,null,null,null,null,null,null,null,null,null,null,null,null,null,null,null,null,null,null,null,null,null,null,null,null,null,null,null,null,null,null,null,null,null,null,null,null,null,null,null,null,null,null,null,null,null,null,null,null,null,null,null,null,null,null,null,null,null,null,null,null,null,null,null,null,null,null,null,null,null,null,null,null,null,null,null,null,null,null,null,null,null,null,null,null,null,null,null,null,null,null,null,null,null,null,null,null,null,null,null,null,null,null,null,null,null,null,null,null,null,null,null,null,null,null,null,null,null,null,null,null,null,null,null,null,null,null,null,null,null,null,null,null,null,null,null,null,null,null,null,null,null,null,null,null,null,null,null,null,null,null,null,null,null,null,null,null,null,null,null,null,null,null,null,null,null,null,null,null,null,null,null,null,null,null,null,null,null,null,null,null,null,null,null,null,null,null,null,null,null,null,null,null,null,null,null,null,null,null,null,null,null,null,null,null,null,null,null,null,null,null,null,null,null,null,null,null,null,null,null,null,null,null,null,null,null,null,null,null,null,null,null,null,null,null,null,null,null,null,null,null,null,null,null,null,null,null,null,null,null,null,null,null,null,null,null,null,null,null,null,null,null,null,null,null,null,null,null,null,null,null,null,null,null,null,null,null,null,null,null,null,null,null,null,null,null,null,null,null,null,null,null,null,null,null,null,null,null,null,null,null,null,null,null,null,null,null,null,null,null,null,null,null,null,null,null,null,null,null,null,null,null,null,null,null,null,null,null,null,null,null,null,null,null,null,null,null,null,null,null,null,null,null,null,null,null,null,null,null,null,null,null,null,null,null,null,null,null,null,null,null,null,null,null,null,null,null,null,null,null,null,null,null,null,null,null,null,null,null,null,null,null,null,null,null,null,null,null,null,null,null,null,null,null,null,null,null,null,null,null,null,null,null,null,null,null,null,null,null,null,null,null,null,null,null,null,null,null,null,null,null,null,null,null,null,null,null,null,null,null,null,null,null,null,null,null,null,null,null,null,null,null,null,null,null,null,null,null,null,null,null,null,null,null,null,null,null,null,null,null,null,null,null,null,null,null,null,null,null,null,null,null,null,null,null,null,null,null,null,null,null,null,null,null,null,null,null,null,null,null,null,null,null,null,null,null,null,null,null,null,null,null,null,null,null,null,null,null,null,null,null,null,null,null,null,null,null,null,null,null,null,null,null,null,null,null,null,null,null,null,null,null,null,null,null,null,null,null,null,null,null,null,null,null,null,null,null,null,null,null,null,null,null,null,null,null,null,null,null,null,null,null,null,null,null,null,null,null,null,null,null,null,null,null,null,null,null,null,null,null,null,null,null,null,null,null,null,null,null,null,null,null,null,null,null,null,null,null,null,null,null,null,null,null,null,null,null,null,null,null,null,null,null,null,null,null,null,null,null,null,null,null,null,null,null,null,null,null,null,null,null,null,null,null,null,null,null,null,null,null,null,null,null,null,null,null,null,null,null,null,null,null,null,null,null,null,null,null,null,null,null,null,null,null,null,null,null,null,null,null,null,null,null,null,null,null,null,null,null,null,null,null,null,null,null,null,null,null,null,null,null,null,null,null,null,null,null,null,null,null,null,null,null,null,null,null,null,null,null,null,null,null,null,null,null,null,null,null,null,null,null,null,null,null,null,null,null,null,null,null,null,null,null,null,null,null,null,null,null,null,null,null,null,null,null,null,null,null,null,null,null,null,null,null,null,null,null,null,null,null,null,null,null,null,null,null,null,null,null,null,null,null,null,null,null,null,null,null,null,null,null,null,null,null,null,null,null,null,null,null,null,null,null,null,null,null,null,null,null,null,null,null,null,null,null,null,null,null,null,null,null,null,null,null,null,null,null,null,null,null,null,null,null,null,null,null,null,null,null,null,null,null,null,null,null,null,null,null,null,null,null,null,null,null,null,null,null,null,null,null,null,null,null,null,null,null,null,null,null,null,null,null,null,null,null,null,null,null,null,null,null,null,null,null,null,null,null,null,null,null,null,null,null,null,null,null,null,null,null,null,null,null,null,null,null,null,null,null,null,null,null,null,null,null,null,null,null,null,null,null,null,null,null,null,null,null,null,null,null,null,null,null,null,null,null,null,null,null,null,null,null,null,null,null,null,null,null,null,null,null,null,null,null,null,null,null,null,null,null,null,null,null,null,null,null,null,null,null,null,null,null,null,null,null,null,null,null,null,null,null,null,null,null,null,null,null,null,null,null,null,null,null,null,null,null,null,null,null,null,null,null,null,null,null,null,null,null,null,null,null,null,null,null,null,null,null,null,null,null,null,null,null,null,null,null,null,null,null,null,null,null,null,null,null,null,null,null,null,null,null,null,null,null,null,null,null,null,null,null,null,null,null,null,null,null,null,null,null,null,null,null,null,null,null,null,null,null,null,null,null,null,null,null,null,null,null,null,null,null,null,null,null,null,null,null,null,null,null,null,null,null,null,null,null,null,null,null,null,null,null,null,null,null,null,null,null,null,null,null,null,null,null,null,null,null,null,null,null,null,null,null,null,null,null,null,null,null,null,null,null,null,null,null,null,null,null,null,null,null,null,null,null,null,null,null,null,null,null,null,null,null,null,null,null,null,null,null,null,null,null,null,null,null,null,null,null,null,null,null,null,null,null,null,null,null,null,null,null,null,null,null,null,null,null,null,null,null,null,null,null,null,null,null,null,null,null,null,null,null,null,null,null,null,null,null,null,null,null,null,null,null,null,null,null,null,null,null,null,null,null,null,null,null,null,null,null,null,null,null,null,null,null,null,null,null,null,null,null,null,null,null,null,null,null,null,null,null,null,null,null,null,null,null,null,null,null,null,null,null,null,null,null,null,null,null,null,null,null,null,null,null,null,null,null,null,null,null,null,null,null,null,null,null,null,null,null,null,null,null,null,null,null,null,null,null,null,null,null,null,null,null,null,null,null,null,null,null,null,null,null,null,null,null,null,null,null,null,null,null,null,null,null,null,null,null,null,null,null,null,null,null,null,null,null,null,null,null,null,null,null,null,null,null,null,null,null,null,null,null,null,null,null,null,null,null,null,null,null,null,null,null,null,null,null,null,null,null,null,null,null,null,null,null,null,null,null,null,null,null,null,null,null,null,null,null,null,null,null,null,null,null,null,null,null,null,null,null,null,null,null,null,null,null,null,null,null,null,null,null,null,null,null,null,null,null,null,null,null,null,null,null,null,null,null,null,null,null,null,null,null,null,null,null,null,null,null,null,null,null,null,null,null,null,null,null,null,null,null,null,null,null,null,null,null,null,null,null,null,null,null,null,null,null,null,null,null,null,null,null,null,null,null,null,null,null,null,null,null,null,null,null,null,null,null,null,null,null,null,null,null,null,null,null,null,null,null,null,null,null,null,null,null,null,null,null,null,null,null,null,null,null,null,null,null,null,null,null,null,null,null,null,null,null,null,null,null,null,null,null,null,null,null,null,null,null,null,null,null,null,null,null,null,null,null,null,null,null,null,null,null,null,null,null,null,null,null,null,null,null,null,null,null,null,null,null,null,null,null,null,null,null,null,null,null,null,null,null,null,null,null,null,null,null,null,null,null,null,null,null,null,null,null,null,null,null,null,null,null,null,null,null,null,null,null,null,null,null,null,null,null,null,null,null,null,null,null,null,null,null,null,null,null,null,null,null,null,null,null,null,null,null,null,null,null,null,null,null,null,null,null,null,null,null,null,null,null,null,null,null,null,null,null,null,null,null,null,null,null,null,null,null,null,null,null,null,null,null,null,null,null,null,null,null,null,null,null,null,null,null,null,null,null,null,null,null,null,null,null,null,null,null,null,null,null,null,null,null,null,null,null,null,null,null,null,null,null,null,null,null,null,null,null,null,null,null,null,null,null,null,null,null,null,null,null,null,null,null,null,null,null,null,null,null,null,null,null,null,null,null,null,null,null,null,null,null,null,null,null,null,null,null,null,null,null,null,null,null,null,null,null,null,null,null,null,null,null,null,null,null,null,null,null,null,null,null,null,null,null,null,null,null,null,null,null,null,null,null,null,null,null,null,null,null,null,null,null,null,null,null,null,null,null,null,null,null,null,null,null,null,null,null,null,null,null,null,null,null,null,null,null,null,null,null,null,null,null,null,null,null,null,null,null,null,null,null,null,null,null,null,null,null,null,null,null,null,null,null,null,null,null,null,null,null,null,null,null,null,null,null,null,null,null,null,null,null,null,null,null,null,null,null,null,null,null,null,null,null,null,null,null,null,null,null,null,null,null,null,null,null,null,null,null,null,null,null,null,null,null,null,null,null,null,null,null,null,null,null,null,null,null,null,null,null,null,null,null,null,null,null,null,null,null,null,null,null,null,null,null,null,null,null,null,null,null,null,null,null,null,null,null,null,null,null,null,null,null,null,null,null,null,null,null,null,null,null,null,null,null,null,null,null,null,null,null,null,null,null,null,null,null,null,null,null,null,null,null,null,null,null,null,null,null,null,null,null,null,null,null,null,null,null,null,null,null,null,null,null,null,null,null,null,null,null,null,null,null,null,null,null,null,null,null,null,null,null,null,null,null,null,null,null,null,null,null,null,null,null,null,null,null,null,null,null,null,null,null,null,null,null,null,null,null,null,null,null,null,null,null,null,null,null,null,null,null,null,null,null,null,null,null,null,null,null,null,null,null,null,null,null,null,null,null,null,null,null,null,null,null,null,null,null,null,null,null,null,null,null,null,null,null,null,null,null,null,null,null,null,null,null,null,null,null,null,null,null,null,null,null,null,null,null,null,null,null,null,null,null,null,null,null,null,null,null,null,null,null,null,null,null,null,null,null,null,null,null,null,null,null,null,null,null,null,null,null,null,null,null,null,null,null,null,null,null,null,null,null,null,null,null,null,null,null,null,null,null,null,null,null,null,null,null,null,null,null,null,null,null,null,null,null,null,null,null,null,null,null,null,null,null,null,null,null,null,null,null,null,null,null,null,null,null,null,null,null,null,null,null,null,null,null,null,null,null,null,null,null,null,null,null,null,null,null,null,null,null,null,null,null,null,null,null,null,null,null,null,null,null,null,null,null,null,null,null,null,null,null,null,null,null,null,null,null,null,null,null,null,null,null,null,null,null,null,null,null,null,null,null,null,null,null,null,null,null,null,null,null,null,null,null,null,null,null,null,null,null,null,null,null,null,null,null,null,null,null,null,null,null,null,null,null,null,null,null,null,null,null,null,null,null,null,null,null,null,null,null,null,null,null,null,null,null,null,null,null,null,null,null,null,null,null,null,null,null,null,null,null,null,null,null,null,null,null,null,null,null,null,null,null,null,null,null,null,null,null,null,null,null,null,null,null,null,null,null,null,null,null,null,null,null,null,null,null,null,null,null,null,null,null,null,null,null,null,null,null,null,null,null,null,null,null,null,null,null,null,null,null,null,null,null,null,null,null,null,null,null,null,null,null,null,null,null,null,null,null,null,null,null,null,null,null,null,null,null,null,null,null,null,null,null,null,null,null,null,null,null,null,null,null,null,null,null,null,null,null,null,null,null,null,null,null,null,null,null,null,null,null,null,null,null,null,null,null,null,null,null,null,null,null,null,null,null,null,null,null,null,null,null,null,null,null,null,null,null,null,null,null,null,null,null,null,null,null,null,null,null,null,null,null,null,null,null,null,null,null,null,null,null,null,null,null,null,null,null,null,null,null,null,null,null,null,null,null,null,null,null,null,null,null,null,null,null,null,null,null,null,null,null,null,null,null,null,null,null,null,null,null,null,null,null,null,null,null,null,null,null,null,null,null,null,null,null,null,null,null,null,null,null,null,null,null,null,null,null,null,null,null,null,null,null,null,null,null,null,null,null,null,null,null,null,null,null,null,null,null,null,null,null,null,null,null,null,null,null,null,null,null,null,null,null,null,null,null,null,null,null,null,null,null,null,null,null,null,null,null,null,null,null,null,null,null,null,null,null,null,null,null,null,null,null,null,null,null,null,null,null,null,null,null,null,null,null,null,null,null,null,null,null,null,null,null,null,null,null,null,null,null,null,null,null,null,null,null,null,null,null,null,null,null,null,null,null,null,null,null,null,null,null,null,null,null,null,null,null,null,null,null,null,null,null,null,null,null,null,null,null,null,null,null,null,null,null,null,null,null,null,null,null,null,null,null,null,null,null,null,null,null,null,null,null,null,null,null,null,null,null,null,null,null,null,null,null,null,null,null,null,null,null,null,null,null,null,null,null,null,null,null,null,null,null,null,null,null,null,null,null,null,null,null,null,null,null,null,null,null,null,null,null,null,null,null,null,null,null,null,null,null,null,null,null,null,null,null,null,null,null,null,null,null,null,null,null,null,null,null,null,null,null,null,null,null,null,null,null,null,null,null,null,null,null,null,null,null,null,null,null,null,null,null,null,null,null,null,null,null,null,null,null,null,null,null,null,null,null,null,null,null,null,null,null,null,null,null,null,null,null,null,null,null,null,null,null,null,null,null,null,null,null,null,null,null,null,null,null,null,null,null,null,null,null,null,null,null,null,null,null,null,null,null,null,null,null,null,null,null,null,null,null,null,null,null,null,null,null,null,null,null,null,null,null,null,null,null,null,null,null,null,null,null,null,null,null,null,null,null,null,null,null,null,null,null,null,null,null,null,null,null,null,null,null,null,null,null,null,null,null,null,null,null,null,null,null,null,null,null,null,null,null,null,null,null,null,null,null,null,null,null,null,null,null,null,null,null,null,null,null,null,null,null,null,null,null,null,null,null,null,null,null,null,null,null,null,null,null,null,null,null,null,null,null,null,null,null,null,null,null,null,null,null,null,null,null,null,null,null,null,null,null,null,null,null,null,null,null,null,null,null,null,null,null,null,null,null,null,null,null,null,null,null,null,null,null,null,null,null,null,null,null,null,null,null,null,null,null,null,null,null,null,null,null,null,null,null,null,null,null,null,null,null,null,null,null,null,null,null,null,null,null,null,null,null,null,null,null,null,null,null,null,null,null,null,null,null,null,null,null,null,null,null,null,null,null,null,null,null,null,null,null,null,null,null,null,null,null,null,null,null,null,null,null,null,null,null,null,null,null,null,null,null,null,null,null,null,null,null,null,null,null,null,null,null,null,null,null,null,null,null,null,null,null,null,null,null,null,null,null,null,null,null,null,null,null,null,null,null,null,null,null,null,null,null,null,null,null,null,null,null,null,null,null,null,null,null,null,null,null,null,null,null,null,null,null,null,null,null,null,null,null,null,null,null,null,null,null,null,null,null,null,null,null,null,null,null,null,null,null,null,null,null,null,null,null,null,null,null,null,null,null,null,null,null,null,null,null,null,null,null,null,null,null,null,null,null,null,null,null,null,null,null,null,null,null,null,null,null,null,null,null,null,null,null,null,null,null,null,null,null,null,null,null,null,null,null,null,null,null,null,null,null,null,null,null,null,null,null,null,null,null,null,null,null,null,null,null,null,null,null,null,null,null,null,null,null,null,null,null,null,null,null,null,null,null,null,null,null,null,null,null,null,null,null,null,null,null,null,null,null,null,null,null,null,null,null,null,null,null,null,null,null,null,null,null,null,null,null,null,null,null,null,null,null,null,null,null,null,null,null,null,null,null,null,null,null,null,null,null,null,null,null,null,null,null,null,null,null,null,null,null,null,null,null,null,null,null,null,null,null,null,null,null,null,null,null,null,null,null,null,null,null,null,null,null,null,null,null,null,null,null,null,null,null,null,null,null,null,null,null,null,null,null,null,null,null,null,null,null,null,null,null,null,null,null,null,null,null,null,null,null,null,null,null,null,null,null,null,null,null,null,null,null,null,null,null,null,null,null,null,null,null,null,null,null,null,null,null,null,null,null,null,null,null,null,null,null,null,null,null,null,null,null,null,null,null,null,null,null,null,null,null,null,null,null,null,null,null,null,null,null,null,null,null,null,null,null,null,null,null,null,null,null,null,null,null,null,null,null,null,null,null,null,null,null,null,null,null,null,null,null,null,null,null,null,null,null,null,null,null,null,null,null,null,null,null,null,null,null,null,null,null,null,null,null,null,null,null,null,null,null,null,null,null,null,null,null,null,null,null,null,null,null,null,null,null,null,null,null,null,null,null,null,null,null,null,null,null,null,null,null,null,null,null,null,null,null,null,null,null,null,null,null,null,null,null,null,null,null,null,null,null,null,null,null,null,null,null,null,null,null,null,null,null,null,null,null,null,null,null,null,null,null,null,null,null,null,null,null,null,null,null,null,null,null,null,null,null,null,null,null,null,null,null,null,null,null,null,null,null,null,null,null,null,null,null,null,null,null,null,null,null,null,null,null,null,null,null,null,null,null,null,null,null,null,null,null,null,null,null,null,null,null,null,null,null,null,null,null,null,null,null,null,null,null,null,null,null,null,null,null,null,null,null,null,null,null,null,null,null,null,null,null,null,null,null,null,null,null,null,null,null,null,null,null,null,null,null,null,null,null,null,null,null,null,null,null,null,null,null,null,null,null,null,null,null,null,null,null,null,null,null,null,null,null,null,null,null,null,null,null,null,null,null,null,null,null,null,null,null,null,null,null,null,null,null,null,null,null,null,null,null,null,null,null,null,null,null,null,null,null,null,null,null,null,null,null,null,null,null,null,null,null,null,null,null,null,null,null,null,null,null,null,null,null,null,null,null,null,null,null,null,null,null,null,null,null,null,null,null,null,null,null,null,null,null,null,null,null,null,null,null,null,null,null,null,null,null,null,null,null,null,null,null,null,null,null,null,null,null,null,null,null,null,null,null,null,null,null,null,null,null,null,null,null,null,null,null,null,null,null,null,null,null,null,null,null,null,null,null,null,null,null,null,null,null,null,null,null,null,null,null,null,null,null,null,null,null,null,null,null,null,null,null,null,null,null,null,null,null,null,null,null,null,null,null,null,null,null,null,null,null,null,null,null,null,null,null,null,null,null,null,null,null,null,null,null,null,null,null,null,null,null,null,null,null,null,null,null,null,null,null,null,null,null,null,null,null,null,null,null,null,null,null,null,null,null,null,null,null,null,null,null,null,null,null,null,null,null,null,null,null,null,null,null,null,null,null,null,null,null,null,null,null,null,null,null,null,null,null,null,null,null,null,null,null,null,null,null,null,null,null,null,null,null,null,null,null,null,null,null,null,null,null,null,null,null,null,null,null,null,null,null,null,null,null,null,null,null,null,null,null,null,null,null,null,null,null,null,null,null,null,null,null,null,null,null,null,null,null,null,null,null,null,null,null,null,null,null,null,null,null,null,null,null,null,null,null,null,null,null,null,null,null,null,null,null,null,null,null,null,null,null,null,null,null,null,null,null,null,null,null,null,null,null,null,null,null,null,null,null,null,null,null,null,null,null,null,null,null,null,null,null,null,null,null,null,null,null,null,null,null,null,null,null,null,null,null,null,null,null,null,null,null,null,null,null,null,null,null,null,null,null,null,null,null,null,null,null,null,null,null,null,null,null,null,null,null,null,null,null,null,null,null,null,null,null,null,null,null,null,null,null,null,null,null,null,null,null,null,null,null,null,null,null,null,null,null,null,null,null,null,null,null,null,null,null,null,null,null,null,null,null,null,null,null,null,null,null,null,null,null,null,null,null,null,null,null,null,null,null,null,null,null,null,null,null,null,null,null,null,null,null,null,null,null,null,null,null,null,null,null,null,null,null,null,null,null,null,null,null,null,null,null,null,null,null,null,null,null,null,null,null,null,null,null,null,null,null,null,null,null,null,null,null,null,null,null,null,null,null,null,null,null,null,null,null,null,null,null,null,null,null,null,null,null,null,null,null,null,null,null,null,null,null,null,null,null,null,null,null,null,null,null,null,null,null,null,null,null,null,null,null,null,null,null,null,null,null,null,null,null,null,null,null,null,null,null,null,null,null,null,null,null,null,null,null,null,null,null,null,null,null,null,null,null,null,null,null,null,null,null,null,null,null,null,null,null,null,null,null,null,null,null,null,null,null,null,null,null,null,null,null,null,null,null,null,null,null,null,null,null,null,null,null,null,null,null,null,null,null,null,null,null,null,null,null,null,null,null,null,null,null,null,null,null,null,null,null,null,null,null,null,null,null,null,null,null,null,null,null,null,null,null,null,null,null,null,null,null,null,null,null,null,null,null,null,null,null,null,null,null,null,null,null,null,null,null,null,null,null,null,null,null,null,null,null,null,null,null,null,null,null,null,null,null,null,null,null,null,null,null,null,null,null,null,null,null,null,null,null,null,null,null,null,null,null,null,null,null,null,null,null,null,null,null,null,null,null,null,null,null,null,null,null,null,null,null,null,null,null,null,null,null,null,null,null,null,null,null,null,null,null,null,null,null,null,null,null,null,null,null,null,null,null,null,null,null,null,null,null,null,null,null,null,null,null,null,null,null,null,null,null,null,null,null,null,null,null,null,null,null,null,null,null,null,null,null,null,null,null,null,null,null,null,null,null,null,null,null,null,null,null,null,null,null,null,null,null,null,null,null,null,null,null,null,null,null,null,null,null,null,null,null,null,null,null,null,null,null,null,null,null,null,null,null,null,null,null,null,null,null,null,null,null,null,null,null,null,null,null,null,null,null,null,null,null,null,null,null,null,null,null,null,null,null,null,null,null,null,null,null,null,null,null,null,null,null,null,null,null,null,null,null,null,null,null,null,null,null,null,null,null,null,null,null,null,null,null,null,null,null,null,null,null,null,null,null,null,null,null,null,null,null,null,null,null,null,null,null,null,null,null,null,null,null,null,null,null,null,null,null,null,null,null,null,null,null,null,null,null,null,null,null,null,null,null,null,null,null,null,null,null,null,null,null,null,null,null,null,null,null,null,null,null,null,null,null,null,null,null,null,null,null,null,null,null,null,null,null,null,null,null,null,null,null,null,null,null,null,null,null,null,null,null,null,null,null,null,null,null,null,null,null,null,null,null,null,null,null,null,null,null,null,null,null,null,null,null,null,null,null,null,null,null,null,null,null,null,null,null,null,null,null,null,null,null,null,null,null,null,null,null,null,null,null,null,null,null,null,null,null,null,null,null,null,null,null,null,null,null,null,null,null,null,null,null,null,null,null,null,null,null,null,null,null,null,null,null,null,null,null,null,null,null,null,null,null,null,null,null,null,null,null,null,null,null,null,null,null,null,null,null,null,null,null,null,null,null,null,null,null,null,null,null,null,null,null,null,null,null,null,null,null,null,null,null,null,null,null,null,null,null,null,null,null,null,null,null,null,null,null,null,null,null,null,null,null,null,null,null,null,null,null,null,null,null,null,null,null,null,null,null,null,null,null,null,null,null,null,null,null,null,null,null,null,null,null,null,null,null,null,null,null,null,null,null,null,null,null,null,null,null,null,null,null,null,null,null,null,null,null,null,null,null,null,null,null,null,null,null,null,null,null,null,null,null,null,null,null,null,null,null,null,null,null,null,null,null,null,null,null,null,null,null,null,null,null,null,null,null,null,null,null,null,null,null,null,null,null,null,null,null,null,null,null,null,null,null,null,null,null,null,null,null,null,null,null,null,null,null,null,null,null,null,null,null,null,null,null,null,null,null,null,null,null,null,null,null,null,null,null,null,null,null,null,null,null,null,null,null,null,null,null,null,null,null,null,null,null,null,null,null,null,null,null,null,null,null,null,null,null,null,null,null,null,null,null,null,null,null,null,null,null,null,null,null,null,null,null,null,null,null,null,null,null,null,null,null,null,null,null,null,null,null,null,null,null,null,null,null,null,null,null,null,null,null,null,null,null,null,null,null,null,null,null,null,null,null,null,null,null,null,null,null,null,null,null,null,null,null,null,null,null,null,null,null,null,null,null,null,null,null,null,null,null,null,null,null,null,null,null,null,null,null,null,null,null,null,null,null,null,null,null,null,null,null,null,null,null,null,null,null,null,null,null,null,null,null,null,null,null,null,null,null,null,null,null,null,null,null,null,null,null,null,null,null,null,null,null,null,null,null,null,null,null,null,null,null,null,null,null,null,null,null,null,null,null,null,null,null,null,null,null,null,null,null,null,null,null,null,null,null,null,null,null,null,null,null,null,null,null,null,null,null,null,null,null,null,null,null,null,null,null,null,null,null,null,null,null,null,null,null,null,null,null,null,null,null,null,null,null,null,null,null,null,null,null,null,null,null,null,null,null,null,null,null,null,null,null,null,null,null,null,null,null,null,null,null,null,null,null,null,null,null,null,null,null,null,null,null,null,null,null,null,null,null,null,null,null,null,null,null,null,null,null,null,null,null,null,null,null,null,null,null,null,null,null,null,null,null,null,null,null,null,null,null,null,null,null,null,null,null,null,null,null,null,null,null,null,null,null,null,null,null,null,null,null,null,null,null,null,null,null,null,null,null,null,null,null,null,null,null,null,null,null,null,null,null,null,null,null,null,null,null,null,null,null,null,null,null,null,null,null,null,null,null,null,null,null,null,null,null,null,null,null,null,null,null,null,null,null,null,null,null,null,null,null,null,null,null,null,null,null,null,null,null,null,null,null,null,null,null,null,null,null,null,null,null,null,null,null,null,null,null,null,null,null,null,null,null,null,null,null,null,null,null,null,null,null,null,null,null,null,null,null,null,null,null,null,null,null,null,null,null,null,null,null,null,null,null,null,null,null,null,null,null,null,null,null,null,null,null,null,null,null,null,null,null,null,null,null,null,null,null,null,null,null,null,null,null,null,null,null,null,null,null,null,null,null,null,null,null,null,null,null,null,null,null,null,null,null,null,null,null,null,null,null,null,null,null,null,null,null,null,null,null,null,null,null,null,null,null,null,null,null,null,null,null,null,null,null,null,null,null,null,null,null,null,null,null,null,null,null,null,null,null,null,null,null,null,null,null,null,null,null,null,null,null,null,null,null,null,null,null,null,null,null,null,null,null,null,null,null,null,null,null,null,null,null,null,null,null,null,null,null,null,null,null,null,null,null,null,null,null,null,null,null,null,null,null,null,null,null,null,null,null,null,null,null,null,null,null,null,null,null,null,null,null,null,null,null,null,null,null,null,null,null,null,null,null,null,null,null,null,null,null,null,null,null,null,null,null,null,null,null,null,null,null,null,null,null,null,null,null,null,null,null,null,null,null,null,null,null,null,null,null,null,null,null,null,null,null,null,null,null,null,null,null,null,null,null,null,null,null,null,null,null,null,null,null,null,null,null,null,null,null,null,null,null,null,null,null,null,null,null,null,null,null,null,null,null,null,null,null,null,null,null,null,null,null,null,null,null,null,null,null,null,null,null,null,null,null,null,null,null,null,null,null,null,null,null,null,null,null,null,null,null,null,null,null,null,null,null,null,null,null,null,null,null,null,null,null,null,null,null,null,null,null,null,null,null,null,null,null,null,null,null,null,null,null,null,null,null,null,null,null,null,null,null,null,null,null,null,null,null,null,null,null,null,null,null,null,null,null,null,null,null,null,null,null,null,null,null,null,null,null,null,null,null,null,null,null,null,null,null,null,null,null,null,null,null,null,null,null,null,null,null,null,null,null,null,null,null,null,null,null,null,null,null,null,null,null,null,null,null,null,null,null,null,null,null,null,null,null,null,null,null,null,null,null,null,null,null,null,null,null,null,null,null,null,null,null,null,null,null,null,null,null,null,null,null,null,null,null,null,null,null,null,null,null,null,null,null,null,null,null,null,null,null,null,null,null,null,null,null,null,null,null,null,null,null,null,null,null,null,null,null,null,null,null,null,null,null,null,null,null,null,null,null,null,null,null,null,null,null,null,null,null,null,null,null,null,null,null,null,null,null,null,null,null,null,null,null,null,null,null,null,null,null,null,null,null,null,null,null,null,null,null,null,null,null,null,null,null,null,null,null,null,null,null,null,null,null,null,null,null,null,null,null,null,null,null,null,null,null,null,null,null,null,null,null,null,null,null,null,null,null,null,null,null,null,null,null,null,null,null,null,null,null,null,null,null,null,null,null,null,null,null,null,null,null,null,null,null,null,null,null,null,null,null,null,null,null,null,null,null,null,null,null,null,null,null,null,null,null,null,null,null,null,null,null,null,null,null,null,null,null,null,null,null,null,null,null,null,null,null,null,null,null,null,null,null,null,null,null,null,null,null,null,null,null,null,null,null,null,null,null,null,null,null,null,null,null,null,null,null,null,null,null,null,null,null,null,null,null,null,null,null,null,null,null,null,null,null,null,null,null,null,null,null,null,null,null,null,null,null,null,null,null,null,null,null,null,null,null,null,null,null,null,null,null,null,null,null,null,null,null,null,null,null,null,null,null,null,null,null,null,null,null,null,null,null,null,null,null,null,null,null,null,null,null,null,null,null,null,null,null,null,null,null,null,null,null,null,null,null,null,null,null,null,null,null,null,null,null,null,null,null,null,null,null,null,null,null,null,null,null,null,null,null,null,null,null,null,null,null,null,null,null,null,null,null,null,null,null,null,null,null,null,null,null,null,null,null,null,null,null,null,null,null,null,null,null,null,null,null,null,null,null,null,null,null,null,null,null,null,null,null,null,null,null,null,null,null,null,null,null,null,null,null,null,null,null,null,null,null,null,null,null,null,null,null,null,null,null,null,null,null,null,null,null,null,null,null,null,null,null,null,null,null,null,null,null,null,null,null,null,null,null,null,null,null,null,null,null,null,null,null,null,null,null,null,null,null,null,null,null,null,null,null,null,null,null,null,null,null,null,null,null,null,null,null,null,null,null,null,null,null,null,null,null,null,null,null,null,null,null,null,null,null,null,null,null,null,null,null,null,null,null,null,null,null,null,null,null,null,null,null,null,null,null,null,null,null,null,null,null,null,null,null,null,null,null,null,null,null,null,null,null,null,null,null,null,null,null,null,null,null,null,null,null,null,null,null,null,null,null,null,null,null,null,null,null,null,null,null,null,null,null,null,null,null,null,null,null,null,null,null,null,null,null,null,null,null,null,null,null,null,null,null,null,null,null,null,null,null,null,null,null,null,null,null,null,null,null,null,null,null,null,null,null,null,null,null,null,null,null,null,null,null,null,null,null,null,null,null,null,null,null,null,null,null,null,null,null,null,null,null,null,null,null,null,null,null,null,null,null,null,null,null,null,null,null,null,null,null,null,null,null,null,null,null,null,null,null,null,null,null,null,null,null,null,null,null,null,null,null,null,null,null,null,null,null,null,null,null,null,null,null,null,null,null,null,null,null,null,null,null,null,null,null,null,null,null,null,null,null,null,null,null,null,null,null,null,null,null,null,null,null,null,null,null,null,null,null,null,null,null,null,null,null,null,null,null,null,null,null,null,null,null,null,null,null,null,null,null,null,null,null,null,null,null,null,null,null,null,null,null,null,null,null,null,null,null,null,null,null,null,null,null,null,null,null,null,null,null,null,null,null,null,null,null,null,null,null,null,null,null,null,null,null,null,null,null,null,null,null,null,null,null,null,null,null,null,null,null,null,null,null,null,null,null,null,null,null,null,null,null,null,null,null,null,null,null,null,null,null,null,null,null,null,null,null,null,null,null,null,null,null,null,null,null,null,null,null,null,null,null,null,null,null,null,null,null,null,null,null,null,null,null,null,null,null,null,null,null,null,null,null,null,null,null,null,null,null,null,null,null,null,null,null,null,null,null,null,null,null,null,null,null,null,null,null,null,null,null,null,null,null,null,null,null,null,null,null,null,null,null,null,null,null,null,null,null,null,null,null,null,null,null,null,null,null,null,null,null,null,null,null,null,null,null,null,null,null,null,null,null,null,null,null,null,null,null,null,null,null,null,null,null,null,null,null,null,null,null,null,null,null,null,null,null,null,null,null,null,null,null,null,null,null,null,null,null,null,null,null,null,null,null,null,null,null,null,null,null,null,null,null,null,null,null,null,null,null,null,null,null,null,null,null,null,null,null,null,null,null,null,null,null,null,null,null,null,null,null,null,null,null,null,null,null,null,null,null,null,null,null,null,null,null,null,null,null,null,null,null,null,null,null,null,null,null,null,null,null,null,null,null,null,null,null,null,null,null,null,null,null,null,null,null,null,null,null,null,null,null,null,null,null,null,null,null,null,null,null,null,null,null,null,null,null,null,null,null,null,null,null,null,null,null,null,null,null,null,null,null,null,null,null,null,null,null,null,null,null,null,null,null,null,null,null,null,null,null,null,null,null,null,null,null,null,null,null,null,null,null,null,null,null,null,null,null,null,null,null,null,null,null,null,null,null,null,null,null,null,null,null,null,null,null,null,null,null,null,null,null,null,null,null,null,null,null,null,null,null,null,null,null,null,null,null,null,null,null,null,null,null,null,null,null,null,null,null,null,null,null,null,null,null,null,null,null,null,null,null,null,null,null,null,null,null,null,null,null,null,null,null,null,null,null,null,null,null,null,null,null,null,null,null,null,null,null,null,null,null,null,null,null,null,null,null,null,null,null,null,null,null,null,null,null,null,null,null,null,null,null,null,null,null,null,null,null,null,null,null,null,null,null,null,null,null,null,null,null,null,null,null,null,null,null,null,null,null,null,null,null,null,null,null,null,null,null,null,null,null,null,null,null,null,null,null,null,null,null,null,null,null,null,null,null,null,null,null,null,null,null,null,null,null,null,null,null,null,null,null,null,null,null,null,null,null,null,null,null,null,null,null,null,null,null,null,null,null,null,null,null,null,null,null,null,null,null,null,null,null,null,null,null,null,null,null,null,null,null,null,null,null,null,null,null,null,null,null,null,null,null,null,null,null,null,null,null,null,null,null,null,null,null,null,null,null,null,null,null,null,null,null,null,null,null,null,null,null,null,null,null,null,null,null,null,null,null,null,null,null,null,null,null,null,null,null,null,null,null,null,null,null,null,null,null,null,null,null,null,null,null,null,null,null,null,null,null,null,null,null,null,null,null,null,null,null,null,null,null,null,null,null,null,null,null,null,null,null,null,null,null,null,null,null,null,null,null,null,null,null,null,null,null,null,null,null,null,null,null,null,null,null,null,null,null,null,null,null,null,null,null,null,null,null,null,null,null,null,null,null,null,null,null,null,null,null,null,null,null,null,null,null,null,null,null,null,null,null,null,null,null,null,null,null,null,null,null,null,null,null,null,null,null,null,null,null,null,null,null,null,null,null,null,null,null,null,null,null,null,null,null,null,null,null,null,null,null,null,null,null,null,null,null,null,null,null,null,null,null,null,null,null,null,null,null,null,null,null,null,null,null,null,null,null,null,null,null,null,null,null,null,null,null,null,null,null,null,null,null,null,null,null,null,null,null,null,null,null,null,null,null,null,null,null,null,null,null,null,null,null,null,null,null,null,null,null,null,null,null,null,null,null,null,null,null,null,null,null,null,null,null,null,null,null,null,null,null,null,null,null,null,null,null,null,null,null,null,null,null,null,null,null,null,null,null,null,null,null,null,null,null,null,null,null,null,null,null,null,null,null,null,null,null,null,null,null,null,null,null,null,null,null,null,null,null,null,null,null,null,null,null,null,null,null,null,null,null,null,null,null,null,null,null,null,null,null,null,null,null,null,null,null,null,null,null,null,null,null,null,null,null,null,null,null,null,null,null,null,null,null,null,null,null,null,null,null,null,null,null,null,null,null,null,null,null,null,null,null,null,null,null,null,null,null,null,null,null,null,null,null,null,null,null,null,null,null,null,null,null,null,null,null,null,null,null,null,null,null,null,null,null,null,null,null,null,null,null,null,null,null,null,null,null,null,null,null,null,null,null,null,null,null,null,null,null,null,null,null,null,null,null,null,null,null,null,null,null,null,null,null,null,null,null,null,null,null,null,null,null,null,null,null,null,null,null,null,null,null,null,null,null,null,null,null,null,null,null,null,null,null,null,null,null,null,null,null,null,null,null,null,null,null,null,null,null,null,null,null,null,null,null,null,null,null,null,null,null,null,null,null,null,null,null,null,null,null,null,null,null,null,null,null,null,null,null,null,null,null,null,null,null,null,null,null,null,null,null,null,null,null,null,null,null,null,null,null,null,null,null,null,null,null,null,null,null,null,null,null,null,null,null,null,null,null,null,null,null,null,null,null,null,null,null,null,null,null,null,null,null,null,null,null,null,null,null,null,null,null,null,null,null,null,null,null,null,null,null,null,null,null,null,null,null,null,null,null,null,null,null,null,null,null,null,null,null,null,null,null,null,null,null,null,null,null,null,null,null,null,null,null,null,null,null,null,null,null,null,null,null,null,null,null,null,null,null,null,null,null,null,null,null,null,null,null,null,null,null,null,null,null,null,null,null,null,null,null,null,null,null,null,null,null,null,null,null,null,null,null,null,null,null,null,null,null,null,null,null,null,null,null,null,null,null,null,null,null,null,null,null,null,null,null,null,null,null,null,null,null,null,null,null,null,null,null,null,null,null,null,null,null,null,null,null,null,null,null,null,null,null,null,null,null,null,null,null,null,null,null,null,null,null,null,null,null,null,null,null,null,null,null,null,null,null,null,null,null,null,null,null,null,null,null,null,null,null,null,null,null,null,null,null,null,null,null,null,null,null,null,null,null,null,null,null,null,null,null,null,null,null,null,null,null,null,null,null,null,null,null,null,null,null,null,null,null,null,null,null,null,null,null,null,null,null,null,null,null,null,null,null,null,null,null,null,null,null,null,null,null,null,null,null,null,null,null,null,null,null,null,null,null,null,null,null,null,null,null,null,null,null,null,null,null,null,null,null,null,null,null,null,null,null,null,null,null,null,null,null,null,null,null,null,null,null,null,null,null,null,null,null,null,null,null,null,null,null,null,null,null,null,null,null,null,null,null,null,null,null,null,null,null,null,null,null,null,null,null,null,null,null,null,null,null,null,null,null,null,null,null,null,null,null,null,null,null,null,null,null,null,null,null,null,null,null,null,null,null,null,null,null,null,null,null,null,null,null,null,null,null,null,null,null,null,null,null,null,null,null,null,null,null,null,null,null,null,null,null,null,null,null,null,null,null,null,null,null,null,null,null,null,null,null,null,null,null,null,null,null,null,null,null,null,null,null,null,null,null,null,null,null,null,null,null,null,null,null,null,null,null,null,null,null,null,null,null,null,null,null,null,null,null,null,null,null,null,null,null,null,null,null,null,null,null,null,null,null,null,null,null,null,null,null,null,null,null,null,null,null,null,null,null,null,null,null,null,null,null,null,null,null,null,null,null,null,null,null,null,null,null,null,null,null,null,null,null,null,null,null,null,null,null,null,null,null,null,null,null,null,null,null,null,null,null,null,null,null,null,null,null,null,null,null,null,null,null,null,null,null,null,null,null,null,null,null,null,null,null,null,null,null,null,null,null,null,null,null,null,null,null,null,null,null,null,null,null,null,null,null,null,null,null,null,null,null,null,null,null,null,null,null,null,null,null,null,null,null,null,null,null,null,null,null,null,null,null,null,null,null,null,null,null,null,null,null,null,null,null,null,null,null,null,null,null,null,null,null,null,null,null,null,null,null,null,null,null,null,null,null,null,null,null,null,null,null,null,null,null,null,null,null,null,null,null,null,null,null,null,null,null,null,null,null,null,null,null,null,null,null,null,null,null,null,null,null,null,null,null,null,null,null,null,null,null,null,null,null,null,null,null,null,null,null,null,null,null,null,null,null,null,null,null,null,null,null,null,null,null,null,null,null,null,null,null,null,null,null,null,null,null,null,null,null,null,null,null,null,null,null,null,null,null,null,null,null,null,null,null,null,null,null,null,null,null,null,null,null,null,null,null,null,null,null,null,null,null,null,null,null,null,null,null,null,null,null,null,null,null,null,null,null,null,null,null,null,null,null,null,null,null,null,null,null,null,null,null,null,null,null,null,null,null,null,null,null,null,null,null,null,null,null,null,null,null,null,null,null,null,null,null,null,null,null,null,null,null,null,null,null,null,null,null,null,null,null,null,null,null,null,null,null,null,null,null,null,null,null,null,null,null,null,null,null,null,null,null,null,null,null,null,null,null,null,null,null,null,null,null,null,null,null,null,null,null,null,null,null,null,null,null,null,null,null,null,null,null,null,null,null,null,null,null,null,null,null,null,null,null,null,null,null,null,null,null,null,null,null,null,null,null,null,null,null,null,null,null,null,null,null,null,null,null,null,null,null,null,null,null,null,null,null,null,null,null,null,null,null,null,null,null,null,null,null,null,null,null,null,null,null,null,null,null,null,null,null,null,null,null,null,null,null,null,null,null,null,null,null,null,null,null,null,null,null,null,null,null,null,null,null,null,null,null,null,null,null,null,null,null,null,null,null,null,null,null,null,null,null,null,null,null,null,null,null,null,null,null,null,null,null,null,null,null,null,null,null,null,null,null,null,null,null,null,null,null,null,null,null,null,null,null,null,null,null,null,null,null,null,null,null,null,null,null,null,null,null,null,null,null,null,null,null,null,null,null,null,null,null,null,null,null,null,null,null,null,null,null,null,null,null,null,null,null,null,null,null,null,null,null,null,null,null,null,null,null,null,null,null,null,null,null,null,null,null,null,null,null,null,null,null,null,null,null,null,null,null,null,null,null,null,null,null,null,null,null,null,null,null,null,null,null,null,null,null,null,null,null,null,null,null,null,null,null,null,null,null,null,null,null,null,null,null,null,null,null,null,null,null,null,null,null,null,null,null,null,null,null,null,null,null,null,null,null,null,null,null,null,null,null,null,null,null,null,null,null,null,null,null,null,null,null,null,null,null,null,null,null,null,null,null,null,null,null,null,null,null,null,null,null,null,null,null,null,null,null,null,null,null,null,null,null,null,null,null,null,null,null,null,null,null,null,null,null,null,null,null,null,null,null,null,null,null,null,null,null,null,null,null,null,null,null,null,null,null,null,null,null,null,null,null,null,null,null,null,null,null,null,null,null,null,null,null,null,null,null,null,null,null,null,null,null,null,null,null,null,null,null,null,null,null,null,null,null,null,null,null,null,null,null,null,null,null,null,null,null,null,null,null,null,null,null,null,null,null,null,null,null,null,null,null,null,null,null,null,null,null,null,null,null,null,null,null,null,null,null,null,null,null,null,null,null,null,null,null,null,null,null,null,null,null,null,null,null,null,null,null,null,null,null,null,null,null,null,null,null,null,null,null,null,null,null,null,null,null,null,null,null,null,null,null,null,null,null,null,null,null,null,null,null,null,null,null,null,null,null,null,null,null,null,null,null,null,null,null,null,null,null,null,null,null,null,null,null,null,null,null,null,null,null,null,null,null,null,null,null,null,null,null,null,null,null,null,null,null,null,null,null,null,null,null,null,null,null,null,null,null,null,null,null,null,null,null,null,null,null,null,null,null,null,null,null,null,null,null,null,null,null,null,null,null,null,null,null,null,null,null,null,null,null,null,null,null,null,null,null,null,null,null,null,null,null,null,null,null,null,null,null,null,null,null,null,null,null,null,null,null,null,null,null,null,null,null,null,null,null,null,null,null,null,null,null,null,null,null,null,null,null,null,null,null,null,null,null,null,null,null,null,null,null,null,null,null,null,null,null,null,null,null,null,null,null,null,null,null,null,null,null,null,null,null,null,null,null,null,null,null,null,null,null,null,null,null,null,null,null,null,null,null,null,null,null,null,null,null,null,null,null,null,null,null,null,null,null,null,null,null,null,null,null,null,null,null,null,null,null,null,null,null,null,null,null,null,null,null,null,null,null,null,null,null,null,null,null,null,null,null,null,null,null,null,null,null,null,null,null,null,null,null,null,null,null,null,null,null,null,null,null,null,null,null,null,null,null,null,null,null,null,null,null,null,null,null,null,null,null,null,null,null,null,null,null,null,null,null,null,null,null,null,null,null,null,null,null,null,null,null,null,null,null,null,null,null,null,null,null,null,null,null,null,null,null,null,null,null,null,null,null,null,null,null,null,null,null,null,null,null,null,null,null,null,null,null,null,null,null,null,null,null,null,null,null,null,null,null,null,null,null,null,null,null,null,null,null,null,null,null,null,null,null,null,null,null,null,null,null,null,null,null,null,null,null,null,null,null,null,null,null,null,null,null,null,null,null,null,null,null,null,null,null,null,null,null,null,null,null,null,null,null,null,null,null,null,null,null,null,null,null,null,null,null,null,null,null,null,null,null,null,null,null,null,null,null,null,null,null,null,null,null,null,null,null,null,null,null,null,null,null,null,null,null,null,null,null,null,null,null,null,null,null,null,null,null,null,null,null,null,null,null,null,null,null,null,null,null,null,null,null,null,null,null,null,null,null,null,null,null,null,null,null,null,null,null,null,null,null,null,null,null,null,null,null,null,null,null,null,null,null,null,null,null,null,null,null,null,null,null,null,null,null,null,null,null,null,null,null,null,null,null,null,null,null,null,null,null,null,null,null,null,null,null,null,null,null,null,null,null,null,null,null,null,null,null,null,null,null,null,null,null,null,null,null,null,null,null,null,null,null,null,null,null,null,null,null,null,null,null,null,null,null,null,null,null,null,null,null,null,null,null,null,null,null,null,null,null,null,null,null,null,null,null,null,null,null,null,null,null,null,null,null,null,null,null,null,null,null,null,null,null,null,null,null,null,null,null,null,null,null,null,null,null,null,null,null,null,null,null,null,null,null,null,null,null,null,null,null,null,null,null,null,null,null,null,null,null,null,null,null,null,null,null,null,null,null,null,null,null,null,null,null,null,null,null,null,null,null,null,null,null,null,null,null,null,null,null,null,null,null,null,null,null,null,null,null,null,null,null,null,null,null,null,null,null,null,null,null,null,null,null,null,null,null,null,null,null,null,null,null,null,null,null,null,null,null,null,null,null,null,null,null,null,null,null,null,null,null,null,null,null,null,null,null,null,null,null,null,null,null,null,null,null,null,null,null,null,null,null,null,null,null,null,null,null,null,null,null,null,null,null,null,null,null,null,null,null,null,null,null,null,null,null,null,null,null,null,null,null,null,null,null,null,null,null,null,null,null,null,null,null,null,null,null,null,null,null,null,null,null,null,null,null,null,null,null,null,null,null,null,null,null,null,null,null,null,null,null,null,null,null,null,null,null,null,null,null,null,null,null,null,null,null,null,null,null,null,null,null,null,null,null,null,null,null,null,null,null,null,null,null,null,null,null,null,null,null,null,null,null,null,null,null,null,null,null,null,null,null,null,null,null,null,null,null,null,null,null,null,null,null,null,null,null,null,null,null,null,null,null,null,null,null,null,null,null,null,null,null,null,null,null,null,null,null,null,null,null,null,null,null,null,null,null,null,null,null,null,null,null,null,null,null,null,null,null,null,null,null,null,null,null,null,null,null,null,null,null,null,null,null,null,null,null,null,null,null,null,null,null,null,null,null,null,null,null,null,null,null,null,null,null,null,null,null,null,null,null,null,null,null,null,null,null,null,null,null,null,null,null,null,null,null,null,null,null,null,null,null,null,null,null,null,null,null,null,null,null,null,null,null,null,null,null,null,null,null,null,null,null,null,null,null,null,null,null,null,null,null,null,null,null,null,null,null,null,null,null,null,null,null,null,null,null,null,null,null,null,null,null,null,null,null,null,null,null,null,null,null,null,null,null,null,null,null,null,null,null,null,null,null,null,null,null,null,null,null,null,null,null,null,null,null,null,null,null,null,null,null,null,null,null,null,null,null,null,null,null,null,null,null,null,null,null,null,null,null,null,null,null,null,null,null,null,null,null,null,null,null,null,null,null,null,null,null,null,null,null,null,null,null,null,null,null,null,null,null,null,null,null,null,null,null,null,null,null,null,null,null,null,null,null,null,null,null,null,null,null,null,null,null,null,null,null,null,null,null,null,null,null,null,null,null,null,null,null,null,null,null,null,null,null,null,null,null,null,null,null,null,null,null,null,null,null,null,null,null,null,null,null,null,null,null,null,null,null,null,null,null,null,null,null,null,null,null,null,null,null,null,null,null,null,null,null,null,null,null,null,null,null,null,null,null,null,null,null,null,null,null,null,null,null,null,null,null,null,null,null,null,null,null,null,null,null,null,null,null,null,null,null,null,null,null,null,null,null,null,null,null,null,null,null,null,null,null,null,null,null,null,null,null,null,null,null,null,null,null,null,null,null,null,null,null,null,null,null,null,null,null,null,null,null,null,null,null,null,null,null,null,null,null,null,null,null,null,null,null,null,null,null,null,null,null,null,null,null,null,null,null,null,null,null,null,null,null,null,null,null,null,null,null,null,null,null,null,null,null,null,null,null,null,null,null,null,null,null,null,null,null,null,null,null,null,null,null,null,null,null,null,null,null,null,null,null,null,null,null,null,null,null,null,null,null,null,null,null,null,null,null,null,null,null,null,null,null,null,null,null,null,null,null,null,null,null,null,null,null,null,null,null,null,null,null,null,null,null,null,null,null,null,null,null,null,null,null,null,null,null,null,null,null,null,null,null,null,null,null,null,null,null,null,null,null,null,null,null,null,null,null,null,null,null,null,null,null,null,null,null,null,null,null,null,null,null,null,null,null,null,null,null,null,null,null,null,null,null,null,null,null,null,null,null,null,null,null,null,null,null,null,null,null,null,null,null,null,null,null,null,null,null,null,null,null,null,null,null,null,null,null,null,null,null,null,null,null,null,null,null,null,null,null,null,null,null,null,null,null,null,null,null,null,null,null,null,null,null,null,null,null,null,null,null,null,null,null,null,null,null,null,null,null,null,null,null,null,null,null,null,null,null,null,null,null,null,null,null,null,null,null,null,null,null,null,null,null,null,null,null,null,null,null,null,null,null,null,null,null,null,null,null,null,null,null,null,null,null,null,null,null,null,null,null,null,null,null,null,null,null,null,null,null,null,null,null,null,null,null,null,null,null,null,null,null,null,null,null,null,null,null,null,null,null,null,null,null,null,null,null,null,null,null,null,null,null,null,null,null,null,null,null,null,null,null,null,null,null,null,null,null,null,null,null,null,null,null,null,null,null,null,null,null,null,null,null,null,null,null,null,null,null,null,null,null,{"$f":"TODAY()+46","v":"2016-10-10"}]
[]
[null,null,null,null,null,null,null,null,null,null,null,null,null,null,null,null,null,null,null,null,null,null,null,null,null,null,null,"© 2012 - Pedro Paulo Andriani. Todos os direitos reservados."]
[null,null,null,null,null,null,null,null,null,null,null,null,null,null,null,null,null,null,null,null,null,null,null,null,null,null,null,"www.planilhasparaconfeccao.com.br"]
[null,null,null,null,null,null,null,null,null,null,null,null,null,null,null,null,null,null,null,null,null,null,null,null,null,null,null,{"$f":"CONCATENATE(AB4,AB5)","v":"© 2012 - Pedro Paulo Andriani. Todos os direitos reservados.www.planilhasparaconfeccao.com.br"}]
[null,null,null,null,null,null,null,null,null,null,null,null,null,null,null,null,null,null,null,null,null,null,null,null,null,null,null,{"$f":"CONCATENATE(Menu!D24,Menu!E23)","v":"© 2012 - Pedro Paulo Andriani. Todos os direitos reservados.www.planilhasparaconfeccao.com.br"}]
[null,null,null,null,null,null,null,null,null,null,null,null,null,null,null,null,null,null,null,null,null,null,null,null,null,null,null,{"$f":"IF(AB6<>AB7,0,1)","v":1}]

{"sheet":"Abastecimento","index":2,"n_rows":10,"n_cols":162,"rows_kept":10,"cut":false,"hidden":true,"merged":[[0,0,0,1]]}
["Abastecimento da Produção",null,{"$f":"C5","v":"2016-08-25"},{"$f":"D5","v":"2016-08-26"},"2016-08-29","2016-08-30","2016-08-31","2016-09-01","2016-09-02","2016-09-05","2016-09-06","2016-09-08","2016-09-09","2016-09-12","2016-09-13","2016-09-14","2016-09-15","2016-09-16","2016-09-19","2016-09-20","2016-09-21","2016-09-22","2016-09-23","2016-09-26","2016-09-27","2016-09-28","2016-09-29","2016-09-30","2016-10-03",{"$f":"AD5","v":"2016-10-04"},"2016-10-05","2016-10-06",{"$f":"AG5","v":"2016-10-07"},"2016-10-10","2016-10-11","2016-10-13","2016-10-14","2016-10-17","2016-10-18","2016-10-19","2016-10-20","2016-10-21",{"$f":"AQ5","v":"2016-10-24"},"2016-10-25","2016-10-26","2016-10-27","2016-10-28","2016-10-31","2016-11-01","2016-11-03","2016-11-04","2016-11-07","2016-11-08","2016-11-09","2016-11-10","2016-11-11","2016-11-14","2016-11-16","2016-11-17","2016-11-18","2016-11-21","2016-11-22","2016-11-23","2016-11-24","2016-11-25","2016-11-28","2016-11-29","2016-11-30","2016-12-01","2016-12-02","2016-12-05","2016-12-06","2016-12-07","2016-12-08","2016-12-09","2016-12-12","2016-12-13","2016-12-14","2016-12-15","2016-12-16","2016-12-19","2016-12-20","2016-12-21","2016-12-22","2016-12-23","2016-12-26","2016-12-27","2016-12-28","2016-12-29","2016-12-30","2017-01-02","2017-01-03","2017-01-04","2017-01-05","2017-01-06","2017-01-09","2017-01-10","2017-01-11","2017-01-12","2017-01-13","2017-01-16","2017-01-17","2017-01-18","2017-01-19","2017-01-20","2017-01-23",{"$f":"DC5","v":"2017-01-24"},"2017-01-25","2017-01-26","2017-01-27","2017-01-30","2017-01-31","2017-02-01","2017-02-02","2017-02-03","2017-02-06","2017-02-07","2017-02-08","2017-02-09","2017-02-10","2017-02-13","2017-02-14","2017-02-15","2017-02-16","2017-02-17","2017-02-20","2017-02-21","2017-02-22","2017-02-23","2017-02-24","2017-03-01","2017-03-02","2017-03-03","2017-03-06","2017-03-07","2017-03-08","2017-03-09","2017-03-10","2017-03-13","2017-03-14","2017-03-15","2017-03-16",{"$f":"EM5","v":"2017-03-17"},"2017-03-20","2017-03-21","2017-03-22","2017-03-23","2017-03-24","2017-03-27","2017-03-28","2017-03-29","2017-03-30",{"$f":"EW5","v":"2017-03-31"},"2017-04-03","2017-04-04","2017-04-05","2017-04-06","2017-04-07","2017-04-10","2017-04-11","2017-04-12","2017-04-13"]
["Esta linha serve somente para formatação condicional da linha 1 e 4 para sábados e domingos.",null,{"$f":"WEEKDAY(C5)","v":5},{"$f":"WEEKDAY(D5)","v":6},2,3,4,5,6,2,3,5,6,2,3,4,5,6,2,3,4,5,6,2,3,4,5,6,2,3,4,5,6,2,3,5,6,2,3,4,5,6,2,3,4,5,6,2,3,5,6,2,3,4,5,6,2,4,5,6,2,3,4,5,6,2,3,{"$f":"WEEKDAY(BP5)","v":4},5,6,2,3,4,5,6,2,3,4,5,6,2,3,4,5,6,2,3,4,5,6,2,3,4,5,6,2,3,4,5,6,2,3,4,5,6,2,3,4,5,6,2,3,4,5,6,2,3,4,5,6,2,3,4,5,6,2,3,4,5,6,4,{"$f":"WEEKDAY(EB5)","v":5},6,2,3,4,5,6,2,3,4,5,6,2,3,4,5,6,2,3,4,5,6,2,3,4,5,6,2,3,4,5]
[{"$f":"TODAY()-1","v":"2016-08-24"},null,{"$f":"VLOOKUP(A3,'Dias úteis'!B:C,2,FALSE)+1","v":252},{"$f":"C3+1","v":253},{"$f":"D3+1","v":254},255,256,257,258,259,260,261,262,263,264,265,266,267,268,269,270,271,272,273,274,275,276,277,278,{"$f":"AC3+1","v":279},280,281,{"$f":"AF3+1","v":282},283,284,285,286,287,288,289,290,291,{"$f":"AP3+1","v":292},293,294,295,296,297,298,299,300,301,302,303,304,305,306,307,308,309,310,311,312,313,314,315,316,317,318,319,320,321,322,323,324,325,326,327,328,329,330,331,332,333,334,335,336,337,338,339,340,341,342,343,344,345,346,347,348,349,350,351,352,353,354,355,{"$f":"DB3+1","v":356},357,358,359,360,361,362,363,364,365,366,367,368,369,370,371,372,373,374,375,376,377,378,379,380,381,382,383,384,385,386,387,388,389,390,391,{"$f":"EL3+1","v":392},393,394,395,396,397,398,399,400,401,{"$f":"EV3+1","v":402},403,404,405,406,407,408,409,410,411]
["Seq.",null,1,{"$f":"C4+1","v":2},{"$f":"D4+1","v":3},4,5,6,7,8,9,10,11,12,13,14,15,16,17,18,19,20,21,22,23,24,25,26,27,{"$f":"AC4+1","v":28},29,30,{"$f":"AF4+1","v":31},32,33,34,35,36,37,38,39,40,{"$f":"AP4+1","v":41},42,43,44,45,46,47,48,49,50,51,52,53,54,55,56,57,58,59,60,61,62,63,64,65,66,67,68,69,70,71,72,73,74,75,76,77,78,79,80,81,82,83,84,85,86,87,88,89,90,91,92,93,94,95,96,97,98,99,100,101,102,103,104,{"$f":"DB4+1","v":105},106,107,108,109,110,111,112,113,114,115,116,117,118,119,120,121,122,123,124,125,126,127,128,129,130,131,132,133,134,135,136,137,138,139,140,{"$f":"EL4+1","v":141},142,143,144,145,146,147,148,149,150,{"$f":"EV4+1","v":151},152,153,154,155,156,157,158,159,160]
["       Setores","Dias\nprodução",{"$f":"VLOOKUP(C3,'Dias úteis'!$A:$B,2,FALSE)","v":"2016-08-25"},{"$f":"VLOOKUP(D3,'Dias úteis'!$A:$B,2,FALSE)","v":"2016-08-26"},{"$f":"VLOOKUP(E3,'Dias úteis'!$A:$B,2,FALSE)","v":"2016-08-29"},{"$f":"VLOOKUP(F3,'Dias úteis'!$A:$B,2,FALSE)","v":"2016-08-30"},{"$f":"VLOOKUP(G3,'Dias úteis'!$A:$B,2,FALSE)","v":"2016-08-31"},{"$f":"VLOOKUP(H3,'Dias úteis'!$A:$B,2,FALSE)","v":"2016-09-01"},{"$f":"VLOOKUP(I3,'Dias úteis'!$A:$B,2,FALSE)","v":"2016-09-02"},{"$f":"VLOOKUP(J3,'Dias úteis'!$A:$B,2,FALSE)","v":"2016-09-05"},{"$f":"VLOOKUP(K3,'Dias úteis'!$A:$B,2,FALSE)","v":"2016-09-06"},{"$f":"VLOOKUP(L3,'Dias úteis'!$A:$B,2,FALSE)","v":"2016-09-08"},{"$f":"VLOOKUP(M3,'Dias úteis'!$A:$B,2,FALSE)","v":"2016-09-09"},{"$f":"VLOOKUP(N3,'Dias úteis'!$A:$B,2,FALSE)","v":"2016-09-12"},{"$f":"VLOOKUP(O3,'Dias úteis'!$A:$B,2,FALSE)","v":"2016-09-13"},{"$f":"VLOOKUP(P3,'Dias úteis'!$A:$B,2,FALSE)","v":"2016-09-14"},{"$f":"VLOOKUP(Q3,'Dias úteis'!$A:$B,2,FALSE)","v":"2016-09-15"},{"$f":"VLOOKUP(R3,'Dias úteis'!$A:$B,2,FALSE)","v":"2016-09-16"},{"$f":"VLOOKUP(S3,'Dias úteis'!$A:$B,2,FALSE)","v":"2016-09-19"},{"$f":"VLOOKUP(T3,'Dias úteis'!$A:$B,2,FALSE)","v":"2016-09-20"},{"$f":"VLOOKUP(U3,'Dias úteis'!$A:$B,2,FALSE)","v":"2016-09-21"},{"$f":"VLOOKUP(V3,'Dias úteis'!$A:$B,2,FALSE)","v":"2016-09-22"},{"$f":"VLOOKUP(W3,'Dias úteis'!$A:$B,2,FALSE)","v":"2016-09-23"},{"$f":"VLOOKUP(X3,'Dias úteis'!$A:$B,2,FALSE)","v":"2016-09-26"},{"$f":"VLOOKUP(Y3,'Dias úteis'!$A:$B,2,FALSE)","v":"2016-09-27"},{"$f":"VLOOKUP(Z3,'Dias úteis'!$A:$B,2,FALSE)","v":"2016-09-28"},{"$f":"VLOOKUP(AA3,'Dias úteis'!$A:$B,2,FALSE)","v":"2016-09-29"},{"$f":"VLOOKUP(AB3,'Dias úteis'!$A:$B,2,FALSE)","v":"2016-09-30"},{"$f":"VLOOKUP(AC3,'Dias úteis'!$A:$B,2,FALSE)","v":"2016-10-03"},{"$f":"VLOOKUP(AD3,'Dias úteis'!$A:$B,2,FALSE)","v":"2016-10-04"},{"$f":"VLOOKUP(AE3,'Dias úteis'!$A:$B,2,FALSE)","v":"2016-10-05"},{"$f":"VLOOKUP(AF3,'Dias úteis'!$A:$B,2,FALSE)","v":"2016-10-06"},{"$f":"VLOOKUP(AG3,'Dias úteis'!$A:$B,2,FALSE)","v":"2016-10-07"},{"$f":"VLOOKUP(AH3,'Dias úteis'!$A:$B,2,FALSE)","v":"2016-10-10"},{"$f":"VLOOKUP(AI3,'Dias úteis'!$A:$B,2,FALSE)","v":"2016-10-11"},{"$f":"VLOOKUP(AJ3,'Dias úteis'!$A:$B,2,FALSE)","v":"2016-10-13"},{"$f":"VLOOKUP(AK3,'Dias úteis'!$A:$B,2,FALSE)","v":"2016-10-14"},{"$f":"VLOOKUP(AL3,'Dias úteis'!$A:$B,2,FALSE)","v":"2016-10-17"},{"$f":"VLOOKUP(AM3,'Dias úteis'!$A:$B,2,FALSE)","v":"2016-10-18"},{"$f":"VLOOKUP(AN3,'Dias úteis'!$A:$B,2,FALSE)","v":"2016-10-19"},{"$f":"VLOOKUP(AO3,'Dias úteis'!$A:$B,2,FALSE)","v":"2016-10-20"},{"$f":"VLOOKUP(AP3,'Dias úteis'!$A:$B,2,FALSE)","v":"2016-10-21"},{"$f":"VLOOKUP(AQ3,'Dias úteis'!$A:$B,2,FALSE)","v":"2016-10-24"},{"$f":"VLOOKUP(AR3,'Dias úteis'!$A:$B,2,FALSE)","v":"2016-10-25"},{"$f":"VLOOKUP(AS3,'Dias úteis'!$A:$B,2,FALSE)","v":"2016-10-26"},{"$f":"VLOOKUP(AT3,'Dias úteis'!$A:$B,2,FALSE)","v":"2016-10-27"},{"$f":"VLOOKUP(AU3,'Dias úteis'!$A:$B,2,FALSE)","v":"2016-10-28"},{"$f":"VLOOKUP(AV3,'Dias úteis'!$A:$B,2,FALSE)","v":"2016-10-31"},{"$f":"VLOOKUP(AW3,'Dias úteis'!$A:$B,2,FALSE)","v":"2016-11-01"},{"$f":"VLOOKUP(AX3,'Dias úteis'!$A:$B,2,FALSE)","v":"2016-11-03"},{"$f":"VLOOKUP(AY3,'Dias úteis'!$A:$B,2,FALSE)","v":"2016-11-04"},{"$f":"VLOOKUP(AZ3,'Dias úteis'!$A:$B,2,FALSE)","v":"2016-11-07"},{"$f":"VLOOKUP(BA3,'Dias úteis'!$A:$B,2,FALSE)","v":"2016-11-08"},{"$f":"VLOOKUP(BB3,'Dias úteis'!$A:$B,2,FALSE)","v":"2016-11-09"},{"$f":"VLOOKUP(BC3,'Dias úteis'!$A:$B,2,FALSE)","v":"2016-11-10"},{"$f":"VLOOKUP(BD3,'Dias úteis'!$A:$B,2,FALSE)","v":"2016-11-11"},{"$f":"VLOOKUP(BE3,'Dias úteis'!$A:$B,2,FALSE)","v":"2016-11-14"},{"$f":"VLOOKUP(BF3,'Dias úteis'!$A:$B,2,FALSE)","v":"2016-11-16"},{"$f":"VLOOKUP(BG3,'Dias úteis'!$A:$B,2,FALSE)","v":"2016-11-17"},{"$f":"VLOOKUP(BH3,'Dias úteis'!$A:$B,2,FALSE)","v":"2016-11-18"},{"$f":"VLOOKUP(BI3,'Dias úteis'!$A:$B,2,FALSE)","v":"2016-11-21"},{"$f":"VLOOKUP(BJ3,'Dias úteis'!$A:$B,2,FALSE)","v":"2016-11-22"},{"$f":"VLOOKUP(BK3,'Dias úteis'!$A:$B,2,FALSE)","v":"2016-11-23"},{"$f":"VLOOKUP(BL3,'Dias úteis'!$A:$B,2,FALSE)","v":"2016-11-24"},{"$f":"VLOOKUP(BM3,'Dias úteis'!$A:$B,2,FALSE)","v":"2016-11-25"},{"$f":"VLOOKUP(BN3,'Dias úteis'!$A:$B,2,FALSE)","v":"2016-11-28"},{"$f":"VLOOKUP(BO3,'Dias úteis'!$A:$B,2,FALSE)","v":"2016-11-29"},{"$f":"VLOOKUP(BP3,'Dias úteis'!$A:$B,2,FALSE)","v":"2016-11-30"},{"$f":"VLOOKUP(BQ3,'Dias úteis'!$A:$B,2,FALSE)","v":"2016-12-01"},{"$f":"VLOOKUP(BR3,'Dias úteis'!$A:$B,2,FALSE)","v":"2016-12-02"},{"$f":"VLOOKUP(BS3,'Dias úteis'!$A:$B,2,FALSE)","v":"2016-12-05"},{"$f":"VLOOKUP(BT3,'Dias úteis'!$A:$B,2,FALSE)","v":"2016-12-06"},{"$f":"VLOOKUP(BU3,'Dias úteis'!$A:$B,2,FALSE)","v":"2016-12-07"},{"$f":"VLOOKUP(BV3,'Dias úteis'!$A:$B,2,FALSE)","v":"2016-12-08"},{"$f":"VLOOKUP(BW3,'Dias úteis'!$A:$B,2,FALSE)","v":"2016-12-09"},{"$f":"VLOOKUP(BX3,'Dias úteis'!$A:$B,2,FALSE)","v":"2016-12-12"},{"$f":"VLOOKUP(BY3,'Dias úteis'!$A:$B,2,FALSE)","v":"2016-12-13"},{"$f":"VLOOKUP(BZ3,'Dias úteis'!$A:$B,2,FALSE)","v":"2016-12-14"},{"$f":"VLOOKUP(CA3,'Dias úteis'!$A:$B,2,FALSE)","v":"2016-12-15"},{"$f":"VLOOKUP(CB3,'Dias úteis'!$A:$B,2,FALSE)","v":"2016-12-16"},{"$f":"VLOOKUP(CC3,'Dias úteis'!$A:$B,2,FALSE)","v":"2016-12-19"},{"$f":"VLOOKUP(CD3,'Dias úteis'!$A:$B,2,FALSE)","v":"2016-12-20"},{"$f":"VLOOKUP(CE3,'Dias úteis'!$A:$B,2,FALSE)","v":"2016-12-21"},{"$f":"VLOOKUP(CF3,'Dias úteis'!$A:$B,2,FALSE)","v":"2016-12-22"},{"$f":"VLOOKUP(CG3,'Dias úteis'!$A:$B,2,FALSE)","v":"2016-12-23"},{"$f":"VLOOKUP(CH3,'Dias úteis'!$A:$B,2,FALSE)","v":"2016-12-26"},{"$f":"VLOOKUP(CI3,'Dias úteis'!$A:$B,2,FALSE)","v":"2016-12-27"},{"$f":"VLOOKUP(CJ3,'Dias úteis'!$A:$B,2,FALSE)","v":"2016-12-28"},{"$f":"VLOOKUP(CK3,'Dias úteis'!$A:$B,2,FALSE)","v":"2016-12-29"},{"$f":"VLOOKUP(CL3,'Dias úteis'!$A:$B,2,FALSE)","v":"2016-12-30"},{"$f":"VLOOKUP(CM3,'Dias úteis'!$A:$B,2,FALSE)","v":"2017-01-02"},{"$f":"VLOOKUP(CN3,'Dias úteis'!$A:$B,2,FALSE)","v":"2017-01-03"},{"$f":"VLOOKUP(CO3,'Dias úteis'!$A:$B,2,FALSE)","v":"2017-01-04"},{"$f":"VLOOKUP(CP3,'Dias úteis'!$A:$B,2,FALSE)","v":"2017-01-05"},{"$f":"VLOOKUP(CQ3,'Dias úteis'!$A:$B,2,FALSE)","v":"2017-01-06"},{"$f":"VLOOKUP(CR3,'Dias úteis'!$A:$B,2,FALSE)","v":"2017-01-09"},{"$f":"VLOOKUP(CS3,'Dias úteis'!$A:$B,2,FALSE)","v":"2017-01-10"},{"$f":"VLOOKUP(CT3,'Dias úteis'!$A:$B,2,FALSE)","v":"2017-01-11"},{"$f":"VLOOKUP(CU3,'Dias úteis'!$A:$B,2,FALSE)","v":"2017-01-12"},{"$f":"VLOOKUP(CV3,'Dias úteis'!$A:$B,2,FALSE)","v":"2017-01-13"},{"$f":"VLOOKUP(CW3,'Dias úteis'!$A:$B,2,FALSE)","v":"2017-01-16"},{"$f":"VLOOKUP(CX3,'Dias úteis'!$A:$B,2,FALSE)","v":"2017-01-17"},{"$f":"VLOOKUP(CY3,'Dias úteis'!$A:$B,2,FALSE)","v":"2017-01-18"},{"$f":"VLOOKUP(CZ3,'Dias úteis'!$A:$B,2,FALSE)","v":"2017-01-19"},{"$f":"VLOOKUP(DA3,'Dias úteis'!$A:$B,2,FALSE)","v":"2017-01-20"},{"$f":"VLOOKUP(DB3,'Dias úteis'!$A:$B,2,FALSE)","v":"2017-01-23"},{"$f":"VLOOKUP(DC3,'Dias úteis'!$A:$B,2,FALSE)","v":"2017-01-24"},{"$f":"VLOOKUP(DD3,'Dias úteis'!$A:$B,2,FALSE)","v":"2017-01-25"},{"$f":"VLOOKUP(DE3,'Dias úteis'!$A:$B,2,FALSE)","v":"2017-01-26"},{"$f":"VLOOKUP(DF3,'Dias úteis'!$A:$B,2,FALSE)","v":"2017-01-27"},{"$f":"VLOOKUP(DG3,'Dias úteis'!$A:$B,2,FALSE)","v":"2017-01-30"},{"$f":"VLOOKUP(DH3,'Dias úteis'!$A:$B,2,FALSE)","v":"2017-01-31"},{"$f":"VLOOKUP(DI3,'Dias úteis'!$A:$B,2,FALSE)","v":"2017-02-01"},{"$f":"VLOOKUP(DJ3,'Dias úteis'!$A:$B,2,FALSE)","v":"2017-02-02"},{"$f":"VLOOKUP(DK3,'Dias úteis'!$A:$B,2,FALSE)","v":"2017-02-03"},{"$f":"VLOOKUP(DL3,'Dias úteis'!$A:$B,2,FALSE)","v":"2017-02-06"},{"$f":"VLOOKUP(DM3,'Dias úteis'!$A:$B,2,FALSE)","v":"2017-02-07"},{"$f":"VLOOKUP(DN3,'Dias úteis'!$A:$B,2,FALSE)","v":"2017-02-08"},{"$f":"VLOOKUP(DO3,'Dias úteis'!$A:$B,2,FALSE)","v":"2017-02-09"},{"$f":"VLOOKUP(DP3,'Dias úteis'!$A:$B,2,FALSE)","v":"2017-02-10"},{"$f":"VLOOKUP(DQ3,'Dias úteis'!$A:$B,2,FALSE)","v":"2017-02-13"},{"$f":"VLOOKUP(DR3,'Dias úteis'!$A:$B,2,FALSE)","v":"2017-02-14"},{"$f":"VLOOKUP(DS3,'Dias úteis'!$A:$B,2,FALSE)","v":"2017-02-15"},{"$f":"VLOOKUP(DT3,'Dias úteis'!$A:$B,2,FALSE)","v":"2017-02-16"},{"$f":"VLOOKUP(DU3,'Dias úteis'!$A:$B,2,FALSE)","v":"2017-02-17"},{"$f":"VLOOKUP(DV3,'Dias úteis'!$A:$B,2,FALSE)","v":"2017-02-20"},{"$f":"VLOOKUP(DW3,'Dias úteis'!$A:$B,2,FALSE)","v":"2017-02-21"},{"$f":"VLOOKUP(DX3,'Dias úteis'!$A:$B,2,FALSE)","v":"2017-02-22"},{"$f":"VLOOKUP(DY3,'Dias úteis'!$A:$B,2,FALSE)","v":"2017-02-23"},{"$f":"VLOOKUP(DZ3,'Dias úteis'!$A:$B,2,FALSE)","v":"2017-02-24"},{"$f":"VLOOKUP(EA3,'Dias úteis'!$A:$B,2,FALSE)","v":"2017-03-01"},{"$f":"VLOOKUP(EB3,'Dias úteis'!$A:$B,2,FALSE)","v":"2017-03-02"},{"$f":"VLOOKUP(EC3,'Dias úteis'!$A:$B,2,FALSE)","v":"2017-03-03"},{"$f":"VLOOKUP(ED3,'Dias úteis'!$A:$B,2,FALSE)","v":"2017-03-06"},{"$f":"VLOOKUP(EE3,'Dias úteis'!$A:$B,2,FALSE)","v":"2017-03-07"},{"$f":"VLOOKUP(EF3,'Dias úteis'!$A:$B,2,FALSE)","v":"2017-03-08"},{"$f":"VLOOKUP(EG3,'Dias úteis'!$A:$B,2,FALSE)","v":"2017-03-09"},{"$f":"VLOOKUP(EH3,'Dias úteis'!$A:$B,2,FALSE)","v":"2017-03-10"},{"$f":"VLOOKUP(EI3,'Dias úteis'!$A:$B,2,FALSE)","v":"2017-03-13"},{"$f":"VLOOKUP(EJ3,'Dias úteis'!$A:$B,2,FALSE)","v":"2017-03-14"},{"$f":"VLOOKUP(EK3,'Dias úteis'!$A:$B,2,FALSE)","v":"2017-03-15"},{"$f":"VLOOKUP(EL3,'Dias úteis'!$A:$B,2,FALSE)","v":"2017-03-16"},{"$f":"VLOOKUP(EM3,'Dias úteis'!$A:$B,2,FALSE)","v":"2017-03-17"},{"$f":"VLOOKUP(EN3,'Dias úteis'!$A:$B,2,FALSE)","v":"2017-03-20"},{"$f":"VLOOKUP(EO3,'Dias úteis'!$A:$B,2,FALSE)","v":"2017-03-21"},{"$f":"VLOOKUP(EP3,'Dias úteis'!$A:$B,2,FALSE)","v":"2017-03-22"},{"$f":"VLOOKUP(EQ3,'Dias úteis'!$A:$B,2,FALSE)","v":"2017-03-23"},{"$f":"VLOOKUP(ER3,'Dias úteis'!$A:$B,2,FALSE)","v":"2017-03-24"},{"$f":"VLOOKUP(ES3,'Dias úteis'!$A:$B,2,FALSE)","v":"2017-03-27"},{"$f":"VLOOKUP(ET3,'Dias úteis'!$A:$B,2,FALSE)","v":"2017-03-28"},{"$f":"VLOOKUP(EU3,'Dias úteis'!$A:$B,2,FALSE)","v":"2017-03-29"},{"$f":"VLOOKUP(EV3,'Dias úteis'!$A:$B,2,FALSE)","v":"2017-03-30"},{"$f":"VLOOKUP(EW3,'Dias úteis'!$A:$B,2,FALSE)","v":"2017-03-31"},{"$f":"VLOOKUP(EX3,'Dias úteis'!$A:$B,2,FALSE)","v":"2017-04-03"},{"$f":"VLOOKUP(EY3,'Dias úteis'!$A:$B,2,FALSE)","v":"2017-04-04"},{"$f":"VLOOKUP(EZ3,'Dias úteis'!$A:$B,2,FALSE)","v":"2017-04-05"},{"$f":"VLOOKUP(FA3,'Dias úteis'!$A:$B,2,FALSE)","v":"2017-04-06"},{"$f":"VLOOKUP(FB3,'Dias úteis'!$A:$B,2,FALSE)","v":"2017-04-07"},{"$f":"VLOOKUP(FC3,'Dias úteis'!$A:$B,2,FALSE)","v":"2017-04-10"},{"$f":"VLOOKUP(FD3,'Dias úteis'!$A:$B,2,FALSE)","v":"2017-04-11"},{"$f":"VLOOKUP(FE3,'Dias úteis'!$A:$B,2,FALSE)","v":"2017-04-12"},{"$f":"VLOOKUP(FF3,'Dias úteis'!$A:$B,2,FALSE)","v":"2017-04-13"}]
["Corte",{"$f":"IF(AU!$AB$2=0,0,IF(ISERROR(VLOOKUP(A6,Setores!A:I,6,FALSE)),0,VLOOKUP(A6,Setores!A:I,9,FALSE)))","v":1.9886363636363638},{"$f":"IF(C$4>$B6,0,IF($B6>C$4,C$4,$B6))","v":1},0,0,0,0,0,0,0,0,0,0,0,0,0,0,0,{"$f":"IF(S$4>$B6,0,IF($B6>S$4,S$4,$B6))","v":0},0,0,0,0,0,0,0,0,0,0,0,0,0,0,0,0,0,0,0,0,0,0,0,0,0,0,0,0,0,0,0,0,0,0,0,0,0,0,0,0,0,0,0,0,0,0,0,0,0,0,0,0,0,0,0,0,0,0,0,0,0,0,0,{"$f":"IF(CE$4>$B6,0,IF($B6>CE$4,CE$4,$B6))","v":0},0,0,0,0,0,0,0,0,0,0,0,0,0,0,0,0,0,0,0,0,0,0,0,0,0,0,0,0,0,0,0,0,0,0,0,0,0,0,0,0,0,0,0,0,0,0,0,0,0,0,0,0,0,0,0,0,0,0,0,0,0,0,0,{"$f":"IF(EQ$4>$B6,0,IF($B6>EQ$4,EQ$4,$B6))","v":0},0,0,0,0,0,0,0,0,0,0,0,0,0,0,0]
["Costura",{"$f":"IF(AU!$AB$2=0,0,IF(ISERROR(VLOOKUP(A7,Setores!A:I,6,FALSE)),0,VLOOKUP(A7,Setores!A:I,9,FALSE)))","v":1.8162878787878791},1,0,0,0,0,0,0,0,0,0,0,0,0,0,0,0,0,0,0,0,0,0,0,0,0,0,0,0,0,0,0,0,0,0,0,0,0,0,0,0,0,0,0,0,0,0,0,0,0,0,0,0,0,0,0,0,0,0,0,0,0,0,0,0,0,0,0,0,0,0,0,0,0,0,0,0,0,0,0,0,0,0,0,0,0,0,0,0,0,0,0,0,0,0,0,0,0,0,0,0,0,0,0,0,0,0,0,0,0,0,0,0,0,0,0,0,0,0,0,0,0,0,0,0,0,0,0,0,0,0,0,0,0,0,0,0,0,0,0,0,0,0,0,0,0,0,0,0,0,0,0,0,0,0,0,0,0,0,0,0]
["Estamparia",{"$f":"IF(AU!$AB$2=0,0,IF(ISERROR(VLOOKUP(A8,Setores!A:I,6,FALSE)),0,VLOOKUP(A8,Setores!A:I,9,FALSE)))","v":0},0,0,0,0,0,0,0,0,0,0,0,0,0,0,0,0,0,0,0,0,0,0,0,0,0,0,0,0,0,0,0,0,0,0,0,0,0,0,0,0,0,0,0,0,0,0,0,0,0,0,0,0,0,0,0,0,0,0,0,0,0,0,0,0,0,0,0,0,0,0,0,0,0,0,0,0,0,0,0,0,0,0,0,0,0,0,0,0,0,0,0,0,0,0,0,0,0,0,0,0,0,0,0,0,0,0,0,0,0,0,0,0,0,0,0,0,0,0,0,0,0,0,0,0,0,0,0,0,0,0,0,0,0,0,0,0,0,0,0,0,0,0,0,0,0,0,0,0,0,0,0,0,0,0,0,0,0,0,0,0]
["Embalagem",{"$f":"IF(AU!$AB$2=0,0,IF(ISERROR(VLOOKUP(A9,Setores!A:I,6,FALSE)),0,VLOOKUP(A9,Setores!A:I,9,FALSE)))","v":3.8770053475935828},1,2,3,0,0,0,0,0,0,0,0,0,0,0,0,0,0,0,0,0,0,0,0,0,0,0,0,0,0,0,0,0,0,0,0,0,0,0,0,0,0,0,0,0,0,0,0,0,0,0,0,0,0,0,0,0,0,0,0,0,0,0,0,0,0,0,0,0,0,0,0,0,0,0,0,0,0,0,0,{"$f":"IF(CD$4>$B9,0,IF($B9>CD$4,CD$4,$B9))","v":0},0,0,0,0,0,0,0,0,0,0,0,0,0,0,0,0,0,0,0,0,0,0,0,0,0,0,0,0,0,0,0,0,0,0,0,0,0,0,0,0,0,0,0,0,0,0,0,0,0,0,0,0,0,0,0,0,0,0,0,0,0,0,0,{"$f":"IF(EP$4>$B9,0,IF($B9>EP$4,EP$4,$B9))","v":0},0,0,0,0,0,0,0,0,0,0,0,0,0,0,0,0]
["Revisão",{"$f":"IF(AU!$AB$2=0,0,IF(ISERROR(VLOOKUP(A10,Setores!A:I,6,FALSE)),0,VLOOKUP(A10,Setores!A:I,9,FALSE)))","v":0},0,0,0,0,0,0,0,0,0,0,0,0,0,0,0,0,0,0,0,0,0,0,0,0,0,0,0,0,0,0,0,0,0,0,0,0,0,0,0,0,0,0,0,0,0,0,0,0,0,0,0,0,0,0,0,0,0,0,0,0,0,0,0,0,0,0,0,0,0,0,0,0,0,0,0,0,0,0,0,0,0,0,0,0,0,0,0,0,0,0,0,0,0,0,0,0,0,0,0,0,0,0,0,0,0,0,0,0,0,0,0,0,0,0,0,0,0,0,0,0,0,0,0,0,0,0,0,0,0,0,0,0,0,0,0,0,0,0,0,0,0,0,0,0,0,0,0,0,0,0,0,0,0,0,0,0,0,0,0,0]

{"sheet":"Lançar Pedidos","index":3,"n_rows":2,"n_cols":5,"rows_kept":2,"cut":false,"hidden":true,"merged":[]}
["Nº\nPedido","Data do\nPedido","Data de\nEntrega","Ref.","Qtde de\nPeças"]
[1,"2016-08-15","2016-09-10",1,1200]

{"sheet":"Lançar produção","index":4,"n_rows":6,"n_cols":8,"rows_kept":6,"cut":false,"hidden":true,"merged":[]}
["Data","Ref.","Setor","Concatenar","Qtde de\nPeças","Minutos\nPeça","Minutos\nProduzidos","Peças\nà Produzir"]
["2016-08-20",1,"Corte",{"$f":"CONCATENATE(B2,\"-\",C2)","v":"1-Corte"},500,{"$f":"IF(AU!$AB$2=0,0,IF(C2=0,0,IF(ISERROR(VLOOKUP(B2&\"-\"&C2,'Cadastro Refs'!C:D,2,FALSE)),\"? verificar\",VLOOKUP(B2&\"-\"&C2,'Cadastro Refs'!C:D,2,FALSE))))","v":1.35},{"$f":"IF(E2=0,0,E2*F2)","v":675},{"$f":"IF(AU!$AB$2=0,0,SUMIF('Cadastro Refs'!C:C,D2,'Cadastro Refs'!I:I))","v":700}]
["2016-08-26",1,"Costura",{"$f":"CONCATENATE(B3,\"-\",C3)","v":"1-Costura"},500,{"$f":"IF(AU!$AB$2=0,0,IF(C3=0,0,IF(ISERROR(VLOOKUP(B3&\"-\"&C3,'Cadastro Refs'!C:D,2,FALSE)),\"? verificar\",VLOOKUP(B3&\"-\"&C3,'Cadastro Refs'!C:D,2,FALSE))))","v":5.48},{"$f":"IF(E3=0,0,E3*F3)","v":2740},{"$f":"IF(AU!$AB$2=0,0,SUMIF('Cadastro Refs'!C:C,D3,'Cadastro Refs'!I:I))","v":700}]
[null,null,null,{"$f":"CONCATENATE(B4,\"-\",C4)","v":"-"},null,{"$f":"IF(AU!$AB$2=0,0,IF(C4=0,0,IF(ISERROR(VLOOKUP(B4&\"-\"&C4,'Cadastro Refs'!C:D,2,FALSE)),\"? verificar\",VLOOKUP(B4&\"-\"&C4,'Cadastro Refs'!C:D,2,FALSE))))","v":0},{"$f":"IF(E4=0,0,E4*F4)","v":0},{"$f":"IF(AU!$AB$2=0,0,SUMIF('Cadastro Refs'!C:C,D4,'Cadastro Refs'!I:I))","v":0}]
[null,null,null,{"$f":"CONCATENATE(B5,\"-\",C5)","v":"-"},null,{"$f":"IF(AU!$AB$2=0,0,IF(C5=0,0,IF(ISERROR(VLOOKUP(B5&\"-\"&C5,'Cadastro Refs'!C:D,2,FALSE)),\"? verificar\",VLOOKUP(B5&\"-\"&C5,'Cadastro Refs'!C:D,2,FALSE))))","v":0},{"$f":"IF(E5=0,0,E5*F5)","v":0},{"$f":"IF(AU!$AB$2=0,0,SUMIF('Cadastro Refs'!C:C,D5,'Cadastro Refs'!I:I))","v":0}]
[null,null,null,{"$f":"CONCATENATE(B6,\"-\",C6)","v":"-"},null,{"$f":"IF(AU!$AB$2=0,0,IF(C6=0,0,IF(ISERROR(VLOOKUP(B6&\"-\"&C6,'Cadastro Refs'!C:D,2,FALSE)),\"? verificar\",VLOOKUP(B6&\"-\"&C6,'Cadastro Refs'!C:D,2,FALSE))))","v":0},{"$f":"IF(E6=0,0,E6*F6)","v":0},{"$f":"IF(AU!$AB$2=0,0,SUMIF('Cadastro Refs'!C:C,D6,'Cadastro Refs'!I:I))","v":0}]

{"sheet":"Cadastro Refs","index":5,"n_rows":10,"n_cols":10,"rows_kept":10,"cut":false,"hidden":true,"merged":[]}
["Ref.","Setores","Concatenar","Minutos do Setor","Qtde peças\nPedido","Minutos\nPedidos","Qtde peças\nProduzidos","Minutos\nProduzidos","Qtde peças\nà Produzir","Minutos\nà Produzir"]
[1,"Corte",{"$f":"IF(A2=0,\"\",CONCATENATE(A2,\"-\",B2))","v":"1-Corte"},1.35,{"$f":"IF(AU!$AB$2=0,0,SUMIF('Lançar Pedidos'!D:D,A2,'Lançar Pedidos'!E:E))","v":1200},{"$f":"D2*E2","v":1620},{"$f":"IF(AU!$AB$2=0,0,SUMIF('Lançar produção'!D:D,C2,'Lançar produção'!E:E))","v":500},{"$f":"SUMIF('Lançar produção'!D:D,C:C,'Lançar produção'!G:G)","v":675},{"$f":"E2-G2","v":700},{"$f":"F2-H2","v":945}]
[1,"Costura","1-Costura",5.48,{"$f":"IF(AU!$AB$2=0,0,SUMIF('Lançar Pedidos'!D:D,A3,'Lançar Pedidos'!E:E))","v":1200},6576.0000000000009,{"$f":"IF(AU!$AB$2=0,0,SUMIF('Lançar produção'!D:D,C3,'Lançar produção'!E:E))","v":500},{"$f":"SUMIF('Lançar produção'!D:D,C:C,'Lançar produção'!G:G)","v":2740},700,3836.0000000000009]
[1,"Embalagem","1-Embalagem",1.45,{"$f":"IF(AU!$AB$2=0,0,SUMIF('Lançar Pedidos'!D:D,A4,'Lançar Pedidos'!E:E))","v":1200},1740,{"$f":"IF(AU!$AB$2=0,0,SUMIF('Lançar produção'!D:D,C4,'Lançar produção'!E:E))","v":0},{"$f":"SUMIF('Lançar produção'!D:D,C:C,'Lançar produção'!G:G)","v":0},1200,1740]
[null,null,"",null,{"$f":"IF(AU!$AB$2=0,0,SUMIF('Lançar Pedidos'!D:D,A5,'Lançar Pedidos'!E:E))","v":0},0,{"$f":"IF(AU!$AB$2=0,0,SUMIF('Lançar produção'!D:D,C5,'Lançar produção'!E:E))","v":0},{"$f":"SUMIF('Lançar produção'!D:D,C:C,'Lançar produção'!G:G)","v":0},0,0]
[null,null,"",null,{"$f":"IF(AU!$AB$2=0,0,SUMIF('Lançar Pedidos'!D:D,A6,'Lançar Pedidos'!E:E))","v":0},0,{"$f":"IF(AU!$AB$2=0,0,SUMIF('Lançar produção'!D:D,C6,'Lançar produção'!E:E))","v":0},{"$f":"SUMIF('Lançar produção'!D:D,C:C,'Lançar produção'!G:G)","v":0},0,0]
[null,null,"",null,{"$f":"IF(AU!$AB$2=0,0,SUMIF('Lançar Pedidos'!D:D,A7,'Lançar Pedidos'!E:E))","v":0},0,{"$f":"IF(AU!$AB$2=0,0,SUMIF('Lançar produção'!D:D,C7,'Lançar produção'!E:E))","v":0},{"$f":"SUMIF('Lançar produção'!D:D,C:C,'Lançar produção'!G:G)","v":0},0,0]
[null,null,"",null,{"$f":"IF(AU!$AB$2=0,0,SUMIF('Lançar Pedidos'!D:D,A8,'Lançar Pedidos'!E:E))","v":0},0,{"$f":"IF(AU!$AB$2=0,0,SUMIF('Lançar produção'!D:D,C8,'Lançar produção'!E:E))","v":0},{"$f":"SUMIF('Lançar produção'!D:D,C:C,'Lançar produção'!G:G)","v":0},0,0]
[null,null,"",null,{"$f":"IF(AU!$AB$2=0,0,SUMIF('Lançar Pedidos'!D:D,A9,'Lançar Pedidos'!E:E))","v":0},0,{"$f":"IF(AU!$AB$2=0,0,SUMIF('Lançar produção'!D:D,C9,'Lançar produção'!E:E))","v":0},{"$f":"SUMIF('Lançar produção'!D:D,C:C,'Lançar produção'!G:G)","v":0},0,0]
[null,null,"",null,{"$f":"IF(AU!$AB$2=0,0,SUMIF('Lançar Pedidos'!D:D,A10,'Lançar Pedidos'!E:E))","v":0},0,{"$f":"IF(AU!$AB$2=0,0,SUMIF('Lançar produção'!D:D,C10,'Lançar produção'!E:E))","v":0},{"$f":"SUMIF('Lançar produção'!D:D,C:C,'Lançar produção'!G:G)","v":0},0,0]

{"sheet":"Setores","index":6,"n_rows":7,"n_cols":9,"rows_kept":7,"cut":false,"hidden":true,"merged":[]}
["Setores","Qtde de Peças\nPedidos","Minutos\nPedidos","Qtde de Peças\nProduzidas","Minutos\nProduzidos","Qtde de Peças\nà Produzir","Minutos\nà Produzir","Minutos\nDisponível / Dia","Qtde Dias\nà Produzir"]
["Corte",{"$f":"SUMIF('Cadastro Refs'!B:B,A2,'Cadastro Refs'!E:E)","v":1200},{"$f":"IF(AU!$AB$2=0,0,SUMIF('Cadastro Refs'!B:B,A2,'Cadastro Refs'!F:F))","v":1620},{"$f":"SUMIF('Lançar produção'!C:C,A2,'Lançar produção'!E:E)","v":500},{"$f":"IF(AU!$AB$2=0,0,SUMIF('Lançar produção'!C:C,A2,'Lançar produção'!G:G))","v":675},{"$f":"B2-D2","v":700},{"$f":"C2-E2","v":945},{"$f":"IF(AU!$AB$2=0,0,SUMIF('Nome Terceirização'!B:B,A2,'Nome Terceirização'!F:F))","v":475.2},{"$f":"IF(G2=0,0,IF(H2=0,0,G2/H2))","v":1.9886363636363638}]
["Costura",{"$f":"SUMIF('Cadastro Refs'!B:B,A3,'Cadastro Refs'!E:E)","v":1200},{"$f":"IF(AU!$AB$2=0,0,SUMIF('Cadastro Refs'!B:B,A3,'Cadastro Refs'!F:F))","v":6576.0000000000009},{"$f":"SUMIF('Lançar produção'!C:C,A3,'Lançar produção'!E:E)","v":500},{"$f":"IF(AU!$AB$2=0,0,SUMIF('Lançar produção'!C:C,A3,'Lançar produção'!G:G))","v":2740},{"$f":"B3-D3","v":700},{"$f":"C3-E3","v":3836.0000000000009},{"$f":"IF(AU!$AB$2=0,0,SUMIF('Nome Terceirização'!B:B,A3,'Nome Terceirização'!F:F))","v":2112},{"$f":"IF(G3=0,0,IF(H3=0,0,G3/H3))","v":1.8162878787878791}]
["Embalagem",{"$f":"SUMIF('Cadastro Refs'!B:B,A4,'Cadastro Refs'!E:E)","v":1200},{"$f":"IF(AU!$AB$2=0,0,SUMIF('Cadastro Refs'!B:B,A4,'Cadastro Refs'!F:F))","v":1740},{"$f":"SUMIF('Lançar produção'!C:C,A4,'Lançar produção'!E:E)","v":0},{"$f":"IF(AU!$AB$2=0,0,SUMIF('Lançar produção'!C:C,A4,'Lançar produção'!G:G))","v":0},{"$f":"B4-D4","v":1200},{"$f":"C4-E4","v":1740},{"$f":"IF(AU!$AB$2=0,0,SUMIF('Nome Terceirização'!B:B,A4,'Nome Terceirização'!F:F))","v":448.8},{"$f":"IF(G4=0,0,IF(H4=0,0,G4/H4))","v":3.8770053475935828}]
["Estamparia",{"$f":"SUMIF('Cadastro Refs'!B:B,A5,'Cadastro Refs'!E:E)","v":0},{"$f":"IF(AU!$AB$2=0,0,SUMIF('Cadastro Refs'!B:B,A5,'Cadastro Refs'!F:F))","v":0},{"$f":"SUMIF('Lançar produção'!C:C,A5,'Lançar produção'!E:E)","v":0},{"$f":"IF(AU!$AB$2=0,0,SUMIF('Lançar produção'!C:C,A5,'Lançar produção'!G:G))","v":0},{"$f":"B5-D5","v":0},{"$f":"C5-E5","v":0},{"$f":"IF(AU!$AB$2=0,0,SUMIF('Nome Terceirização'!B:B,A5,'Nome Terceirização'!F:F))","v":0},{"$f":"IF(G5=0,0,IF(H5=0,0,G5/H5))","v":0}]
["Revisão",{"$f":"SUMIF('Cadastro Refs'!B:B,A6,'Cadastro Refs'!E:E)","v":0},{"$f":"IF(AU!$AB$2=0,0,SUMIF('Cadastro Refs'!B:B,A6,'Cadastro Refs'!F:F))","v":0},{"$f":"SUMIF('Lançar produção'!C:C,A6,'Lançar produção'!E:E)","v":0},{"$f":"IF(AU!$AB$2=0,0,SUMIF('Lançar produção'!C:C,A6,'Lançar produção'!G:G))","v":0},{"$f":"B6-D6","v":0},{"$f":"C6-E6","v":0},{"$f":"IF(AU!$AB$2=0,0,SUMIF('Nome Terceirização'!B:B,A6,'Nome Terceirização'!F:F))","v":0},{"$f":"IF(G6=0,0,IF(H6=0,0,G6/H6))","v":0}]
[null,{"$f":"SUMIF('Cadastro Refs'!B:B,A7,'Cadastro Refs'!E:E)","v":0},{"$f":"IF(AU!$AB$2=0,0,SUMIF('Cadastro Refs'!B:B,A7,'Cadastro Refs'!F:F))","v":0},{"$f":"SUMIF('Lançar produção'!C:C,A7,'Lançar produção'!E:E)","v":0},{"$f":"IF(AU!$AB$2=0,0,SUMIF('Lançar produção'!C:C,A7,'Lançar produção'!G:G))","v":0},{"$f":"B7-D7","v":0},{"$f":"C7-E7","v":0},{"$f":"IF(AU!$AB$2=0,0,SUMIF('Nome Terceirização'!B:B,A7,'Nome Terceirização'!F:F))","v":0},{"$f":"IF(G7=0,0,IF(H7=0,0,G7/H7))","v":0}]

{"sheet":"Nome Terceirização","index":7,"n_rows":9,"n_cols":6,"rows_kept":9,"cut":false,"hidden":true,"merged":[]}
["Nome da\nMão de obra","Setor","Qtde\noperadoras","Minutos\ntrabalhados\ndia","Eficiência\nMédia","Minutos\nDisponíveis\nDiário"]
["Fábrica - Corte","Corte",1,528,90,{"$f":"C2*D2*(E2/100)","v":475.2}]
["Maria João","Costura",5,528,80,2112]
["Fábrica - Embalagem","Embalagem",1,528,85,448.8]
[null,null,null,null,null,0]
[null,null,null,null,null,0]
[null,null,null,null,null,0]
[null,null,null,null,null,0]
[null,null,null,null,null,0]

{"sheet":"Dias úteis","index":8,"n_rows":1098,"n_cols":6,"rows_kept":1098,"cut":false,"hidden":true,"merged":[[0,5,0,12]]}
["Seq. 1","Data","Seq. 2",null,null,"Usuário: As datas aqui são automáticas (é igual a hoje - 365 dias e + 3 anos para frente)."]
[{"$f":"NETWORKDAYS($B$2,B2,feriados)","v":1},{"$f":"TODAY()-365","v":"2015-08-26"},{"$f":"A2","v":1}]
[2,{"$f":"B2+1","v":"2015-08-27"},{"$f":"A3","v":2}]
[3,{"$f":"B3+1","v":"2015-08-28"},3]
[3,"2015-08-29",3]
[3,"2015-08-30",3]
[4,"2015-08-31",4]
[5,"2015-09-01",5]
[6,"2015-09-02",6]
[7,"2015-09-03",7]
[8,"2015-09-04",8]
[8,"2015-09-05",8]
[8,"2015-09-06",8]
[8,"2015-09-07",8]
[9,"2015-09-08",9]
[10,"2015-09-09",10]
[11,"2015-09-10",11]
[12,"2015-09-11",12]
[12,"2015-09-12",12]
[12,"2015-09-13",12]
[13,"2015-09-14",13]
[14,"2015-09-15",14]
[15,"2015-09-16",15]
[16,"2015-09-17",16]
[17,"2015-09-18",17]
[17,"2015-09-19",17]
[17,"2015-09-20",17]
[18,"2015-09-21",18]
[19,"2015-09-22",19]
[20,"2015-09-23",20]
[21,"2015-09-24",21]
[22,"2015-09-25",22]
[22,"2015-09-26",22]
[22,"2015-09-27",22]
[23,"2015-09-28",23]
[24,"2015-09-29",24]
[25,"2015-09-30",25]
[26,"2015-10-01",26]
[27,"2015-10-02",27]
[27,"2015-10-03",27]
[27,"2015-10-04",27]
[28,"2015-10-05",28]
[29,"2015-10-06",29]
[30,"2015-10-07",30]
[31,"2015-10-08",31]
[32,"2015-10-09",32]
[32,"2015-10-10",32]
[32,"2015-10-11",32]
[32,"2015-10-12",32]
[33,"2015-10-13",33]
[34,"2015-10-14",34]
[35,"2015-10-15",35]
[36,"2015-10-16",36]
[36,"2015-10-17",36]
[36,"2015-10-18",36]
[37,"2015-10-19",37]
[38,"2015-10-20",38]
[39,"2015-10-21",39]
[40,"2015-10-22",40]
[41,"2015-10-23",41]
[41,"2015-10-24",41]
[41,"2015-10-25",41]
[42,"2015-10-26",42]
[43,"2015-10-27",43]
[44,"2015-10-28",44]
[{"$f":"NETWORKDAYS($B$2,B66,feriados)","v":45},"2015-10-29",45]
[46,"2015-10-30",{"$f":"A67","v":46}]
[46,{"$f":"B67+1","v":"2015-10-31"},46]
[46,"2015-11-01",46]
[46,"2015-11-02",46]
[47,"2015-11-03",47]
[48,"2015-11-04",48]
[49,"2015-11-05",49]
[50,"2015-11-06",50]
[50,"2015-11-07",50]
[50,"2015-11-08",50]
[51,"2015-11-09",51]
[52,"2015-11-10",52]
[53,"2015-11-11",53]
[54,"2015-11-12",54]
[55,"2015-11-13",55]
[55,"2015-11-14",55]
[55,"2015-11-15",55]
[56,"2015-11-16",56]
[57,"2015-11-17",57]
[58,"2015-11-18",58]
[59,"2015-11-19",59]
[60,"2015-11-20",60]
[60,"2015-11-21",60]
[60,"2015-11-22",60]
[61,"2015-11-23",61]
[62,"2015-11-24",62]
[63,"2015-11-25",63]
[64,"2015-11-26",64]
[65,"2015-11-27",65]
[65,"2015-11-28",65]
[65,"2015-11-29",65]
[66,"2015-11-30",66]
[67,"2015-12-01",67]
[68,"2015-12-02",68]
[69,"2015-12-03",69]
[70,"2015-12-04",70]
[70,"2015-12-05",70]
[70,"2015-12-06",70]
[71,"2015-12-07",71]
[72,"2015-12-08",72]
[73,"2015-12-09",73]
[74,"2015-12-10",74]
[75,"2015-12-11",75]
[75,"2015-12-12",75]
[75,"2015-12-13",75]
[76,"2015-12-14",76]
[77,"2015-12-15",77]
[78,"2015-12-16",78]
[79,"2015-12-17",79]
[80,"2015-12-18",80]
[80,"2015-12-19",80]
[80,"2015-12-20",80]
[81,"2015-12-21",81]
[82,"2015-12-22",82]
[83,"2015-12-23",83]
[84,"2015-12-24",84]
[84,"2015-12-25",84]
[84,"2015-12-26",84]
[84,"2015-12-27",84]
[85,"2015-12-28",85]
[86,"2015-12-29",86]
[87,"2015-12-30",87]
[88,"2015-12-31",88]
[{"$f":"NETWORKDAYS($B$2,B130,feriados)","v":88},"2016-01-01",88]
[88,"2016-01-02",{"$f":"A131","v":88}]
[88,{"$f":"B131+1","v":"2016-01-03"},88]
[89,"2016-01-04",89]
[90,"2016-01-05",90]
[91,"2016-01-06",91]
[92,"2016-01-07",92]
[93,"2016-01-08",93]
[93,"2016-01-09",93]
[93,"2016-01-10",93]
[94,"2016-01-11",94]
[95,"2016-01-12",95]
[96,"2016-01-13",96]
[97,"2016-01-14",97]
[98,"2016-01-15",98]
[98,"2016-01-16",98]
[98,"2016-01-17",98]
[99,"2016-01-18",99]
[100,"2016-01-19",100]
[101,"2016-01-20",101]
[102,"2016-01-21",102]
[103,"2016-01-22",103]
[103,"2016-01-23",103]
[103,"2016-01-24",103]
[104,"2016-01-25",104]
[105,"2016-01-26",105]
[106,"2016-01-27",106]
[107,"2016-01-28",107]
[108,"2016-01-29",108]
[108,"2016-01-30",108]
[108,"2016-01-31",108]
[109,"2016-02-01",109]
[110,"2016-02-02",110]
[111,"2016-02-03",111]
[112,"2016-02-04",112]
[113,"2016-02-05",113]
[113,"2016-02-06",113]
[113,"2016-02-07",113]
[113,"2016-02-08",113]
[113,"2016-02-09",113]
[114,"2016-02-10",114]
[115,"2016-02-11",115]
[116,"2016-02-12",116]
[116,"2016-02-13",116]
[116,"2016-02-14",116]
[117,"2016-02-15",117]
[118,"2016-02-16",118]
[119,"2016-02-17",119]
[120,"2016-02-18",120]
[121,"2016-02-19",121]
[121,"2016-02-20",121]
[121,"2016-02-21",121]
[122,"2016-02-22",122]
[123,"2016-02-23",123]
[124,"2016-02-24",124]
[125,"2016-02-25",125]
[126,"2016-02-26",126]
[126,"2016-02-27",126]
[126,"2016-02-28",126]
[127,"2016-02-29",127]
[128,"2016-03-01",128]
[129,"2016-03-02",129]
[130,"2016-03-03",130]
[131,"2016-03-04",131]
[{"$f":"NETWORKDAYS($B$2,B194,feriados)","v":131},"2016-03-05",131]
[131,"2016-03-06",{"$f":"A195","v":131}]
[132,{"$f":"B195+1","v":"2016-03-07"},132]
[133,"2016-03-08",133]
[134,"2016-03-09",134]
[135,"2016-03-10",135]
[136,"2016-03-11",136]
[136,"2016-03-12",136]
[136,"2016-03-13",136]
[137,"2016-03-14",137]
[138,"2016-03-15",138]
[139,"2016-03-16",139]
[140,"2016-03-17",140]
[141,"2016-03-18",141]
[141,"2016-03-19",141]
[141,"2016-03-20",141]
[142,"2016-03-21",142]
[143,"2016-03-22",143]
[144,"2016-03-23",144]
[145,"2016-03-24",145]
[145,"2016-03-25",145]
[145,"2016-03-26",145]
[145,"2016-03-27",145]
[146,"2016-03-28",146]
[147,"2016-03-29",147]
[148,"2016-03-30",148]
[149,"2016-03-31",149]
[150,"2016-04-01",150]
[150,"2016-04-02",150]
[150,"2016-04-03",150]
[151,"2016-04-04",151]
[152,"2016-04-05",152]
[153,"2016-04-06",153]
[154,"2016-04-07",154]
[155,"2016-04-08",155]
[155,"2016-04-09",155]
[155,"2016-04-10",155]
[156,"2016-04-11",156]
[157,"2016-04-12",157]
[158,"2016-04-13",158]
[159,"2016-04-14",159]
[160,"2016-04-15",160]
[160,"2016-04-16",160]
[160,"2016-04-17",160]
[161,"2016-04-18",161]
[162,"2016-04-19",162]
[163,"2016-04-20",163]
[163,"2016-04-21",163]
[164,"2016-04-22",164]
[164,"2016-04-23",164]
[164,"2016-04-24",164]
[165,"2016-04-25",165]
[166,"2016-04-26",166]
[167,"2016-04-27",167]
[168,"2016-04-28",168]
[169,"2016-04-29",169]
[169,"2016-04-30",169]
[169,"2016-05-01",169]
[170,"2016-05-02",170]
[171,"2016-05-03",171]
[172,"2016-05-04",172]
[173,"2016-05-05",173]
[174,"2016-05-06",174]
[174,"2016-05-07",174]
[{"$f":"NETWORKDAYS($B$2,B258,feriados)","v":174},"2016-05-08",174]
[175,"2016-05-09",{"$f":"A259","v":175}]
[176,{"$f":"B259+1","v":"2016-05-10"},176]
[177,"2016-05-11",177]
[178,"2016-05-12",178]
[179,"2016-05-13",179]
[179,"2016-05-14",179]
[179,"2016-05-15",179]
[180,"2016-05-16",180]
[181,"2016-05-17",181]
[182,"2016-05-18",182]
[183,"2016-05-19",183]
[184,"2016-05-20",184]
[184,"2016-05-21",184]
[184,"2016-05-22",184]
[185,"2016-05-23",185]
[186,"2016-05-24",186]
[187,"2016-05-25",187]
[187,"2016-05-26",187]
[188,"2016-05-27",188]
[188,"2016-05-28",188]
[188,"2016-05-29",188]
[189,"2016-05-30",189]
[190,"2016-05-31",190]
[191,"2016-06-01",191]
[192,"2016-06-02",192]
[193,"2016-06-03",193]
[193,"2016-06-04",193]
[193,"2016-06-05",193]
[194,"2016-06-06",194]
[195,"2016-06-07",195]
[196,"2016-06-08",196]
[197,"2016-06-09",197]
[198,"2016-06-10",198]
[198,"2016-06-11",198]
[198,"2016-06-12",198]
[199,"2016-06-13",199]
[200,"2016-06-14",200]
[201,"2016-06-15",201]
[202,"2016-06-16",202]
[203,"2016-06-17",203]
[203,"2016-06-18",203]
[203,"2016-06-19",203]
[204,"2016-06-20",204]
[205,"2016-06-21",205]
[206,"2016-06-22",206]
[207,"2016-06-23",207]
[208,"2016-06-24",208]
[208,"2016-06-25",208]
[208,"2016-06-26",208]
[209,"2016-06-27",209]
[210,"2016-06-28",210]
[211,"2016-06-29",211]
[212,"2016-06-30",212]
[213,"2016-07-01",213]
[213,"2016-07-02",213]
[213,"2016-07-03",213]
[214,"2016-07-04",214]
[215,"2016-07-05",215]
[216,"2016-07-06",216]
[217,"2016-07-07",217]
[218,"2016-07-08",218]
[218,"2016-07-09",218]
[218,"2016-07-10",218]
[{"$f":"NETWORKDAYS($B$2,B322,feriados)","v":219},"2016-07-11",219]
[220,"2016-07-12",{"$f":"A323","v":220}]
[221,{"$f":"B323+1","v":"2016-07-13"},221]
[222,"2016-07-14",222]
[223,"2016-07-15",223]
[223,"2016-07-16",223]
[223,"2016-07-17",223]
[224,"2016-07-18",224]
[225,"2016-07-19",225]
[226,"2016-07-20",226]
[227,"2016-07-21",227]
[228,"2016-07-22",228]
[228,"2016-07-23",228]
[228,"2016-07-24",228]
[229,"2016-07-25",229]
[230,"2016-07-26",230]
[231,"2016-07-27",231]
[232,"2016-07-28",232]
[233,"2016-07-29",233]
[233,"2016-07-30",233]
[233,"2016-07-31",233]
[234,"2016-08-01",234]
[235,"2016-08-02",235]
[236,"2016-08-03",236]
[237,"2016-08-04",237]
[238,"2016-08-05",238]
[238,"2016-08-06",238]
[238,"2016-08-07",238]
[239,"2016-08-08",239]
[240,"2016-08-09",240]
[241,"2016-08-10",241]
[242,"2016-08-11",242]
[243,"2016-08-12",243]
[243,"2016-08-13",243]
[243,"2016-08-14",243]
[244,"2016-08-15",244]
[245,"2016-08-16",245]
[246,"2016-08-17",246]
[247,"2016-08-18",247]
[248,"2016-08-19",248]
[248,"2016-08-20",248]
[248,"2016-08-21",248]
[249,"2016-08-22",249]
[250,"2016-08-23",250]
[251,"2016-08-24",251]
[252,"2016-08-25",252]
[253,"2016-08-26",253]
[253,"2016-08-27",253]
[253,"2016-08-28",253]
[254,"2016-08-29",254]
[255,"2016-08-30",255]
[256,"2016-08-31",256]
[257,"2016-09-01",257]
[258,"2016-09-02",258]
[258,"2016-09-03",258]
[258,"2016-09-04",258]
[259,"2016-09-05",259]
[260,"2016-09-06",260]
[260,"2016-09-07",260]
[261,"2016-09-08",261]
[{"$f":"NETWORKDAYS($B$2,B382,feriados)","v":262},"2016-09-09",262]
[262,"2016-09-10",262]
[262,"2016-09-11",262]
[263,"2016-09-12",263]
[264,"2016-09-13",264]
[265,"2016-09-14",{"$f":"A387","v":265}]
[266,{"$f":"B387+1","v":"2016-09-15"},266]
[267,"2016-09-16",267]
[267,"2016-09-17",267]
[267,"2016-09-18",267]
[268,"2016-09-19",268]
[269,"2016-09-20",269]
[270,"2016-09-21",270]
[271,"2016-09-22",271]
[272,"2016-09-23",272]
[272,"2016-09-24",272]
[272,"2016-09-25",272]
[273,"2016-09-26",273]
[274,"2016-09-27",274]
[275,"2016-09-28",275]
[276,"2016-09-29",276]
[277,"2016-09-30",277]
[277,"2016-10-01",277]
[277,"2016-10-02",277]
[278,"2016-10-03",278]
[279,"2016-10-04",279]
[280,"2016-10-05",280]
[281,"2016-10-06",281]
[282,"2016-10-07",282]
[282,"2016-10-08",282]
[282,"2016-10-09",282]
[283,"2016-10-10",283]
[284,"2016-10-11",284]
[284,"2016-10-12",284]
[285,"2016-10-13",285]
[286,"2016-10-14",286]
[286,"2016-10-15",286]
[286,"2016-10-16",286]
[287,"2016-10-17",287]
[288,"2016-10-18",288]
[289,"2016-10-19",289]
[290,"2016-10-20",290]
[291,"2016-10-21",291]
[291,"2016-10-22",291]
[291,"2016-10-23",291]
[292,"2016-10-24",292]
[293,"2016-10-25",293]
[294,"2016-10-26",294]
[295,"2016-10-27",295]
[296,"2016-10-28",296]
[296,"2016-10-29",296]
[296,"2016-10-30",296]
[297,"2016-10-31",297]
[298,"2016-11-01",298]
[298,"2016-11-02",298]
[299,"2016-11-03",299]
[300,"2016-11-04",300]
[300,"2016-11-05",300]
[300,"2016-11-06",300]
[301,"2016-11-07",301]
[302,"2016-11-08",302]
[303,"2016-11-09",303]
[304,"2016-11-10",304]
[305,"2016-11-11",305]
[{"$f":"NETWORKDAYS($B$2,B446,feriados)","v":305},"2016-11-12",305]
[305,"2016-11-13",305]
[306,"2016-11-14",306]
[306,"2016-11-15",306]
[307,"2016-11-16",307]
[308,"2016-11-17",{"$f":"A451","v":308}]
[309,{"$f":"B451+1","v":"2016-11-18"},309]
[309,"2016-11-19",309]
[309,"2016-11-20",309]
[310,"2016-11-21",310]
[311,"2016-11-22",311]
[312,"2016-11-23",312]
[313,"2016-11-24",313]
[314,"2016-11-25",314]
[314,"2016-11-26",314]
[314,"2016-11-27",314]
[315,"2016-11-28",315]
[316,"2016-11-29",316]
[317,"2016-11-30",317]
[318,"2016-12-01",318]
[319,"2016-12-02",319]
[319,"2016-12-03",319]
[319,"2016-12-04",319]
[320,"2016-12-05",320]
[321,"2016-12-06",321]
[322,"2016-12-07",322]
[323,"2016-12-08",323]
[324,"2016-12-09",324]
[324,"2016-12-10",324]
[324,"2016-12-11",324]
[325,"2016-12-12",325]
[326,"2016-12-13",326]
[327,"2016-12-14",327]
[328,"2016-12-15",328]
[329,"2016-12-16",329]
[329,"2016-12-17",329]
[329,"2016-12-18",329]
[330,"2016-12-19",330]
[331,"2016-12-20",331]
[332,"2016-12-21",332]
[333,"2016-12-22",333]
[334,"2016-12-23",334]
[334,"2016-12-24",334]
[334,"2016-12-25",334]
[335,"2016-12-26",335]
[336,"2016-12-27",336]
[337,"2016-12-28",337]
[338,"2016-12-29",338]
[339,"2016-12-30",339]
[339,"2016-12-31",339]
[339,"2017-01-01",339]
[340,"2017-01-02",340]
[341,"2017-01-03",341]
[342,"2017-01-04",342]
[343,"2017-01-05",343]
[344,"2017-01-06",344]
[344,"2017-01-07",344]
[344,"2017-01-08",344]
[345,"2017-01-09",345]
[346,"2017-01-10",346]
[347,"2017-01-11",347]
[348,"2017-01-12",348]
[349,"2017-01-13",349]
[349,"2017-01-14",349]
[{"$f":"NETWORKDAYS($B$2,B510,feriados)","v":349},"2017-01-15",349]
[350,"2017-01-16",350]
[351,"2017-01-17",351]
[352,"2017-01-18",352]
[353,"2017-01-19",353]
[354,"2017-01-20",{"$f":"A515","v":354}]
[354,{"$f":"B515+1","v":"2017-01-21"},354]
[354,"2017-01-22",354]
[355,"2017-01-23",355]
[356,"2017-01-24",356]
[357,"2017-01-25",357]
[358,"2017-01-26",358]
[359,"2017-01-27",359]
[359,"2017-01-28",359]
[359,"2017-01-29",359]
[360,"2017-01-30",360]
[361,"2017-01-31",361]
[362,"2017-02-01",362]
[363,"2017-02-02",363]
[364,"2017-02-03",364]
[364,"2017-02-04",364]
[364,"2017-02-05",364]
[365,"2017-02-06",365]
[366,"2017-02-07",366]
[367,"2017-02-08",367]
[368,"2017-02-09",368]
[369,"2017-02-10",369]
[369,"2017-02-11",369]
[369,"2017-02-12",369]
[370,"2017-02-13",370]
[371,"2017-02-14",371]
[372,"2017-02-15",372]
[373,"2017-02-16",373]
[374,"2017-02-17",374]
[374,"2017-02-18",374]
[374,"2017-02-19",374]
[375,"2017-02-20",375]
[376,"2017-02-21",376]
[377,"2017-02-22",377]
[378,"2017-02-23",378]
[379,"2017-02-24",379]
[379,"2017-02-25",379]
[379,"2017-02-26",379]
[379,"2017-02-27",379]
[379,"2017-02-28",379]
[380,"2017-03-01",380]
[381,"2017-03-02",381]
[382,"2017-03-03",382]
[382,"2017-03-04",382]
[382,"2017-03-05",382]
[383,"2017-03-06",383]
[384,"2017-03-07",384]
[385,"2017-03-08",385]
[386,"2017-03-09",386]
[387,"2017-03-10",387]
[387,"2017-03-11",387]
[387,"2017-03-12",387]
[388,"2017-03-13",388]
[389,"2017-03-14",389]
[390,"2017-03-15",390]
[391,"2017-03-16",391]
[392,"2017-03-17",392]
[392,"2017-03-18",392]
[392,"2017-03-19",392]
[{"$f":"NETWORKDAYS($B$2,B574,feriados)","v":393},"2017-03-20",393]
[394,"2017-03-21",394]
[395,"2017-03-22",395]
[396,"2017-03-23",396]
[397,"2017-03-24",397]
[397,"2017-03-25",{"$f":"A579","v":397}]
[397,{"$f":"B579+1","v":"2017-03-26"},397]
[398,"2017-03-27",398]
[399,"2017-03-28",399]
[400,"2017-03-29",400]
[401,"2017-03-30",401]
[402,"2017-03-31",402]
[402,"2017-04-01",402]
[402,"2017-04-02",402]
[403,"2017-04-03",403]
[404,"2017-04-04",404]
[405,"2017-04-05",405]
[406,"2017-04-06",406]
[407,"2017-04-07",407]
[407,"2017-04-08",407]
[407,"2017-04-09",407]
[408,"2017-04-10",408]
[409,"2017-04-11",409]
[410,"2017-04-12",410]
[411,"2017-04-13",411]
[411,"2017-04-14",411]
[411,"2017-04-15",411]
[411,"2017-04-16",411]
[412,"2017-04-17",412]
[413,"2017-04-18",413]
[414,"2017-04-19",414]
[415,"2017-04-20",415]
[415,"2017-04-21",415]
[415,"2017-04-22",415]
[415,"2017-04-23",415]
[416,"2017-04-24",416]
[417,"2017-04-25",417]
[418,"2017-04-26",418]
[419,"2017-04-27",419]
[420,"2017-04-28",420]
[420,"2017-04-29",420]
[420,"2017-04-30",420]
[420,"2017-05-01",420]
[421,"2017-05-02",421]
[422,"2017-05-03",422]
[423,"2017-05-04",423]
[424,"2017-05-05",424]
[424,"2017-05-06",424]
[424,"2017-05-07",424]
[425,"2017-05-08",425]
[426,"2017-05-09",426]
[427,"2017-05-10",427]
[428,"2017-05-11",428]
[429,"2017-05-12",429]
[429,"2017-05-13",429]
[429,"2017-05-14",429]
[430,"2017-05-15",430]
[431,"2017-05-16",431]
[432,"2017-05-17",432]
[433,"2017-05-18",433]
[434,"2017-05-19",434]
[434,"2017-05-20",434]
[434,"2017-05-21",434]
[435,"2017-05-22",435]
[{"$f":"NETWORKDAYS($B$2,B638,feriados)","v":436},"2017-05-23",436]
[437,"2017-05-24",437]
[438,"2017-05-25",438]
[439,"2017-05-26",439]
[439,"2017-05-27",439]
[439,"2017-05-28",{"$f":"A643","v":439}]
[440,{"$f":"B643+1","v":"2017-05-29"},440]
[441,"2017-05-30",441]
[442,"2017-05-31",442]
[443,"2017-06-01",443]
[444,"2017-06-02",444]
[444,"2017-06-03",444]
[444,"2017-06-04",444]
[445,"2017-06-05",445]
[446,"2017-06-06",446]
[447,"2017-06-07",447]
[448,"2017-06-08",448]
[449,"2017-06-09",449]
[449,"2017-06-10",449]
[449,"2017-06-11",449]
[450,"2017-06-12",450]
[451,"2017-06-13",451]
[452,"2017-06-14",452]
[452,"2017-06-15",452]
[453,"2017-06-16",453]
[453,"2017-06-17",453]
[453,"2017-06-18",453]
[454,"2017-06-19",454]
[455,"2017-06-20",455]
[456,"2017-06-21",456]
[457,"2017-06-22",457]
[458,"2017-06-23",458]
[458,"2017-06-24",458]
[458,"2017-06-25",458]
[459,"2017-06-26",459]
[460,"2017-06-27",460]
[461,"2017-06-28",461]
[462,"2017-06-29",462]
[463,"2017-06-30",463]
[463,"2017-07-01",463]
[463,"2017-07-02",463]
[464,"2017-07-03",464]
[465,"2017-07-04",465]
[466,"2017-07-05",466]
[467,"2017-07-06",467]
[468,"2017-07-07",468]
[468,"2017-07-08",468]
[468,"2017-07-09",468]
[469,"2017-07-10",469]
[470,"2017-07-11",470]
[471,"2017-07-12",471]
[472,"2017-07-13",472]
[473,"2017-07-14",473]
[473,"2017-07-15",473]
[473,"2017-07-16",473]
[474,"2017-07-17",474]
[475,"2017-07-18",475]
[476,"2017-07-19",476]
[477,"2017-07-20",477]
[478,"2017-07-21",478]
[478,"2017-07-22",478]
[478,"2017-07-23",478]
[479,"2017-07-24",479]
[480,"2017-07-25",480]
[{"$f":"NETWORKDAYS($B$2,B702,feriados)","v":481},"2017-07-26",481]
[482,"2017-07-27",482]
[483,"2017-07-28",483]
[483,"2017-07-29",483]
[483,"2017-07-30",483]
[484,"2017-07-31",{"$f":"A707","v":484}]
[485,{"$f":"B707+1","v":"2017-08-01"},485]
[486,"2017-08-02",486]
[487,"2017-08-03",487]
[488,"2017-08-04",488]
[488,"2017-08-05",488]
[488,"2017-08-06",488]
[489,"2017-08-07",489]
[490,"2017-08-08",490]
[491,"2017-08-09",491]
[492,"2017-08-10",492]
[493,"2017-08-11",493]
[493,"2017-08-12",493]
[493,"2017-08-13",493]
[494,"2017-08-14",494]
[495,"2017-08-15",495]
[496,"2017-08-16",496]
[497,"2017-08-17",497]
[498,"2017-08-18",498]
[498,"2017-08-19",498]
[498,"2017-08-20",498]
[499,"2017-08-21",499]
[500,"2017-08-22",500]
[501,"2017-08-23",501]
[502,"2017-08-24",502]
[503,"2017-08-25",503]
[503,"2017-08-26",503]
[503,"2017-08-27",503]
[504,"2017-08-28",504]
[505,"2017-08-29",505]
[506,"2017-08-30",506]
[507,"2017-08-31",507]
[508,"2017-09-01",508]
[508,"2017-09-02",508]
[508,"2017-09-03",508]
[509,"2017-09-04",509]
[510,"2017-09-05",510]
[511,"2017-09-06",511]
[511,"2017-09-07",511]
[512,"2017-09-08",512]
[{"$f":"NETWORKDAYS($B$2,B747,feriados)","v":512},"2017-09-09",512]
[512,"2017-09-10",512]
[513,"2017-09-11",513]
[514,"2017-09-12",514]
[515,"2017-09-13",515]
[516,"2017-09-14",516]
[517,"2017-09-15",517]
[517,"2017-09-16",517]
[517,"2017-09-17",517]
[518,"2017-09-18",518]
[519,"2017-09-19",519]
[520,"2017-09-20",520]
[521,"2017-09-21",521]
[522,"2017-09-22",522]
[522,"2017-09-23",522]
[522,"2017-09-24",522]
[523,"2017-09-25",523]
[524,"2017-09-26",524]
[525,"2017-09-27",525]
[526,"2017-09-28",526]
[527,"2017-09-29",527]
[527,"2017-09-30",527]
[527,"2017-10-01",527]
[528,"2017-10-02",528]
[529,"2017-10-03",{"$f":"A771","v":529}]
[530,{"$f":"B771+1","v":"2017-10-04"},530]
[531,"2017-10-05",531]
[532,"2017-10-06",532]
[532,"2017-10-07",532]
[532,"2017-10-08",532]
[533,"2017-10-09",533]
[534,"2017-10-10",534]
[535,"2017-10-11",535]
[535,"2017-10-12",535]
[536,"2017-10-13",536]
[536,"2017-10-14",536]
[536,"2017-10-15",536]
[537,"2017-10-16",537]
[538,"2017-10-17",538]
[539,"2017-10-18",539]
[540,"2017-10-19",540]
[541,"2017-10-20",541]
[541,"2017-10-21",541]
[541,"2017-10-22",541]
[542,"2017-10-23",542]
[543,"2017-10-24",543]
[544,"2017-10-25",544]
[545,"2017-10-26",545]
[546,"2017-10-27",546]
[546,"2017-10-28",546]
[546,"2017-10-29",546]
[547,"2017-10-30",547]
[548,"2017-10-31",548]
[549,"2017-11-01",549]
[549,"2017-11-02",549]
[550,"2017-11-03",550]
[550,"2017-11-04",550]
[550,"2017-11-05",550]
[551,"2017-11-06",551]
[552,"2017-11-07",552]
[553,"2017-11-08",553]
[554,"2017-11-09",554]
[555,"2017-11-10",555]
[555,"2017-11-11",555]
[{"$f":"NETWORKDAYS($B$2,B811,feriados)","v":555},"2017-11-12",555]
[556,"2017-11-13",556]
[557,"2017-11-14",557]
[557,"2017-11-15",557]
[558,"2017-11-16",558]
[559,"2017-11-17",559]
[559,"2017-11-18",559]
[559,"2017-11-19",559]
[560,"2017-11-20",560]
[561,"2017-11-21",561]
[562,"2017-11-22",562]
[563,"2017-11-23",563]
[564,"2017-11-24",564]
[564,"2017-11-25",564]
[564,"2017-11-26",564]
[565,"2017-11-27",565]
[566,"2017-11-28",566]
[567,"2017-11-29",567]
[568,"2017-11-30",568]
[569,"2017-12-01",569]
[569,"2017-12-02",569]
[569,"2017-12-03",569]
[570,"2017-12-04",570]
[571,"2017-12-05",571]
[572,"2017-12-06",{"$f":"A835","v":572}]
[573,{"$f":"B835+1","v":"2017-12-07"},573]
[574,"2017-12-08",574]
[574,"2017-12-09",574]
[574,"2017-12-10",574]
[575,"2017-12-11",575]
[576,"2017-12-12",576]
[577,"2017-12-13",577]
[578,"2017-12-14",578]
[579,"2017-12-15",579]
[579,"2017-12-16",579]
[579,"2017-12-17",579]
[580,"2017-12-18",580]
[581,"2017-12-19",581]
[582,"2017-12-20",582]
[583,"2017-12-21",583]
[584,"2017-12-22",584]
[584,"2017-12-23",584]
[584,"2017-12-24",584]
[584,"2017-12-25",584]
[585,"2017-12-26",585]
[586,"2017-12-27",586]
[587,"2017-12-28",587]
[588,"2017-12-29",588]
[588,"2017-12-30",588]
[588,"2017-12-31",588]
[588,"2018-01-01",588]
[589,"2018-01-02",589]
[590,"2018-01-03",590]
[591,"2018-01-04",591]
[592,"2018-01-05",592]
[592,"2018-01-06",592]
[592,"2018-01-07",592]
[593,"2018-01-08",593]
[594,"2018-01-09",594]
[595,"2018-01-10",595]
[596,"2018-01-11",596]
[597,"2018-01-12",597]
[597,"2018-01-13",597]
[597,"2018-01-14",597]
[{"$f":"NETWORKDAYS($B$2,B875,feriados)","v":598},"2018-01-15",598]
[599,"2018-01-16",599]
[600,"2018-01-17",600]
[601,"2018-01-18",601]
[602,"2018-01-19",602]
[602,"2018-01-20",602]
[602,"2018-01-21",602]
[603,"2018-01-22",603]
[604,"2018-01-23",604]
[605,"2018-01-24",605]
[606,"2018-01-25",606]
[607,"2018-01-26",607]
[607,"2018-01-27",607]
[607,"2018-01-28",607]
[608,"2018-01-29",608]
[609,"2018-01-30",609]
[610,"2018-01-31",610]
[611,"2018-02-01",611]
[612,"2018-02-02",612]
[612,"2018-02-03",612]
[612,"2018-02-04",612]
[613,"2018-02-05",613]
[614,"2018-02-06",614]
[615,"2018-02-07",615]
[616,"2018-02-08",{"$f":"A899","v":616}]
[617,{"$f":"B899+1","v":"2018-02-09"},617]
[617,"2018-02-10",617]
[617,"2018-02-11",617]
[617,"2018-02-12",617]
[617,"2018-02-13",617]
[618,"2018-02-14",618]
[619,"2018-02-15",619]
[620,"2018-02-16",620]
[620,"2018-02-17",620]
[620,"2018-02-18",620]
[621,"2018-02-19",621]
[622,"2018-02-20",622]
[623,"2018-02-21",623]
[624,"2018-02-22",624]
[625,"2018-02-23",625]
[625,"2018-02-24",625]
[625,"2018-02-25",625]
[626,"2018-02-26",626]
[627,"2018-02-27",627]
[628,"2018-02-28",628]
[629,"2018-03-01",629]
[630,"2018-03-02",630]
[630,"2018-03-03",630]
[630,"2018-03-04",630]
[631,"2018-03-05",631]
[632,"2018-03-06",632]
[633,"2018-03-07",633]
[634,"2018-03-08",634]
[635,"2018-03-09",635]
[635,"2018-03-10",635]
[635,"2018-03-11",635]
[636,"2018-03-12",636]
[637,"2018-03-13",637]
[638,"2018-03-14",638]
[639,"2018-03-15",639]
[640,"2018-03-16",640]
[640,"2018-03-17",640]
[640,"2018-03-18",640]
[641,"2018-03-19",641]
[{"$f":"NETWORKDAYS($B$2,B939,feriados)","v":642},"2018-03-20",642]
[643,"2018-03-21",643]
[644,"2018-03-22",644]
[645,"2018-03-23",645]
[645,"2018-03-24",645]
[645,"2018-03-25",645]
[646,"2018-03-26",646]
[647,"2018-03-27",647]
[648,"2018-03-28",648]
[649,"2018-03-29",649]
[649,"2018-03-30",649]
[649,"2018-03-31",649]
[649,"2018-04-01",649]
[650,"2018-04-02",650]
[651,"2018-04-03",651]
[652,"2018-04-04",652]
[653,"2018-04-05",653]
[654,"2018-04-06",654]
[654,"2018-04-07",654]
[654,"2018-04-08",654]
[655,"2018-04-09",655]
[656,"2018-04-10",656]
[657,"2018-04-11",657]
[658,"2018-04-12",658]
[659,"2018-04-13",{"$f":"A963","v":659}]
[659,{"$f":"B963+1","v":"2018-04-14"},659]
[659,"2018-04-15",659]
[660,"2018-04-16",660]
[661,"2018-04-17",661]
[662,"2018-04-18",662]
[663,"2018-04-19",663]
[664,"2018-04-20",664]
[664,"2018-04-21",664]
[664,"2018-04-22",664]
[665,"2018-04-23",665]
[666,"2018-04-24",666]
[667,"2018-04-25",667]
[668,"2018-04-26",668]
[669,"2018-04-27",669]
[669,"2018-04-28",669]
[669,"2018-04-29",669]
[670,"2018-04-30",670]
[670,"2018-05-01",670]
[671,"2018-05-02",671]
[672,"2018-05-03",672]
[673,"2018-05-04",673]
[673,"2018-05-05",673]
[673,"2018-05-06",673]
[674,"2018-05-07",674]
[675,"2018-05-08",675]
[676,"2018-05-09",676]
[677,"2018-05-10",677]
[678,"2018-05-11",678]
[678,"2018-05-12",678]
[678,"2018-05-13",678]
[679,"2018-05-14",679]
[680,"2018-05-15",680]
[681,"2018-05-16",681]
[682,"2018-05-17",682]
[683,"2018-05-18",683]
[683,"2018-05-19",683]
[683,"2018-05-20",683]
[684,"2018-05-21",684]
[685,"2018-05-22",685]
[{"$f":"NETWORKDAYS($B$2,B1003,feriados)","v":686},"2018-05-23",686]
[687,"2018-05-24",687]
[688,"2018-05-25",688]
[688,"2018-05-26",688]
[688,"2018-05-27",688]
[689,"2018-05-28",689]
[690,"2018-05-29",690]
[691,"2018-05-30",691]
[691,"2018-05-31",691]
[692,"2018-06-01",692]
[692,"2018-06-02",692]
[692,"2018-06-03",692]
[693,"2018-06-04",693]
[694,"2018-06-05",694]
[695,"2018-06-06",695]
[696,"2018-06-07",696]
[697,"2018-06-08",697]
[697,"2018-06-09",697]
[697,"2018-06-10",697]
[698,"2018-06-11",698]
[699,"2018-06-12",699]
[700,"2018-06-13",700]
[701,"2018-06-14",701]
[702,"2018-06-15",702]
[702,"2018-06-16",{"$f":"A1027","v":702}]
[702,{"$f":"B1027+1","v":"2018-06-17"},702]
[703,"2018-06-18",703]
[704,"2018-06-19",704]
[705,"2018-06-20",705]
[706,"2018-06-21",706]
[707,"2018-06-22",707]
[707,"2018-06-23",707]
[707,"2018-06-24",707]
[708,"2018-06-25",708]
[709,"2018-06-26",709]
[710,"2018-06-27",710]
[711,"2018-06-28",711]
[712,"2018-06-29",712]
[712,"2018-06-30",712]
[712,"2018-07-01",712]
[713,"2018-07-02",713]
[714,"2018-07-03",714]
[715,"2018-07-04",715]
[716,"2018-07-05",716]
[717,"2018-07-06",717]
[717,"2018-07-07",717]
[717,"2018-07-08",717]
[718,"2018-07-09",718]
[719,"2018-07-10",719]
[720,"2018-07-11",720]
[721,"2018-07-12",721]
[722,"2018-07-13",722]
[722,"2018-07-14",722]
[722,"2018-07-15",722]
[723,"2018-07-16",723]
[724,"2018-07-17",724]
[725,"2018-07-18",725]
[726,"2018-07-19",726]
[727,"2018-07-20",727]
[727,"2018-07-21",727]
[727,"2018-07-22",727]
[728,"2018-07-23",728]
[729,"2018-07-24",729]
[730,"2018-07-25",730]
[{"$f":"NETWORKDAYS($B$2,B1067,feriados)","v":731},"2018-07-26",731]
[732,"2018-07-27",732]
[732,"2018-07-28",732]
[732,"2018-07-29",732]
[733,"2018-07-30",733]
[734,"2018-07-31",734]
[735,"2018-08-01",735]
[736,"2018-08-02",736]
[737,"2018-08-03",737]
[737,"2018-08-04",737]
[737,"2018-08-05",737]
[738,"2018-08-06",738]
[739,"2018-08-07",739]
[740,"2018-08-08",740]
[741,"2018-08-09",741]
[742,"2018-08-10",742]
[742,"2018-08-11",742]
[742,"2018-08-12",742]
[743,"2018-08-13",743]
[744,"2018-08-14",744]
[745,"2018-08-15",745]
[746,"2018-08-16",746]
[747,"2018-08-17",747]
[747,"2018-08-18",747]
[747,"2018-08-19",{"$f":"A1091","v":747}]
[748,{"$f":"B1091+1","v":"2018-08-20"},748]
[749,"2018-08-21",749]
[750,"2018-08-22",750]
[751,"2018-08-23",751]
[752,"2018-08-24",752]
[752,"2018-08-25",752]
[752,"2018-08-26",752]

{"sheet":"feriados","index":9,"n_rows":86,"n_cols":2,"rows_kept":86,"cut":false,"hidden":true,"merged":[]}
["         Feriados","Descrição do Feriado\n(não obrigatório)"]
["2014-01-01","Confraternização Universal"]
["2014-03-03","Carnaval"]
["2014-03-04","Carnaval"]
["2014-04-18","Paixão de Cristo (sexta-feira Santa)"]
["2014-04-21","Tiradentes"]
["2014-05-01","Dia do Trabalho"]
["2014-06-19","Corpus Christi"]
["2014-09-07","Independência do Brasil"]
["2014-10-12","Nossa Sra. Aparecida"]
["2014-11-02","Finados"]
["2014-11-15","Proclamação da República"]
["2014-12-25","Natal"]
["2015-01-01","Confraternização Universal"]
["2015-02-16","Carnaval"]
["2015-02-17","Carnaval"]
["2015-04-03","Paixão de Cristo (sexta-feira Santa)"]
["2015-04-21","Tiradentes"]
["2015-05-01","Dia do Trabalho"]
["2015-06-04","Corpus Christi"]
["2015-09-07","Independência do Brasil"]
["2015-10-12","Nossa Sra. Aparecida"]
["2015-11-02","Finados"]
["2015-11-15","Proclamação da República"]
["2015-12-25","Natal"]
["2016-01-01","Confraternização Universal"]
["2016-02-08","Carnaval"]
["2016-02-09","Carnaval"]
["2016-03-25","Paixão de Cristo (sexta-feira Santa)"]
["2016-04-21","Tiradentes"]
["2016-05-01","Dia do Trabalho"]
["2016-05-26","Corpus Christi"]
["2016-09-07","Independência do Brasil"]
["2016-10-12","Nossa Sra. Aparecida"]
["2016-11-02","Finados"]
["2016-11-15","Proclamação da República"]
["2016-12-25","Natal"]
["2017-01-01","Confraternização Universal"]
["2017-02-27","Carnaval"]
["2017-02-28","Carnaval"]
["2017-04-14","Paixão de Cristo (sexta-feira Santa)"]
["2017-04-21","Tiradentes"]
["2017-05-01","Dia do Trabalho"]
["2017-06-15","Corpus Christi"]
["2017-09-07","Independência do Brasil"]
["2017-10-12","Nossa Sra. Aparecida"]
["2017-11-02","Finados"]
["2017-11-15","Proclamação da República"]
["2017-12-25","Natal"]
["2018-01-01","Confraternização Universal"]
["2018-02-12","Carnaval"]
["2018-02-13","Carnaval"]
["2018-03-30","Paixão de Cristo (sexta-feira Santa)"]
["2018-04-21","Tiradentes"]
["2018-05-01","Dia do Trabalho"]
["2018-05-31","Corpus Christi"]
["2018-09-07","Independência do Brasil"]
["2018-10-12","Nossa Sra. Aparecida"]
["2018-11-02","Finados"]
["2018-11-15","Proclamação da República"]
["2018-12-25","Natal"]
["2019-01-01","Confraternização Universal"]
["2019-03-04","Carnaval"]
["2019-03-05","Carnaval"]
["2019-04-19","Paixão de Cristo (sexta-feira Santa)"]
["2019-04-21","Tiradentes"]
["2019-05-01","Dia do Trabalho"]
["2019-06-20","Corpus Christi"]
["2019-09-07","Independência do Brasil"]
["2019-10-12","Nossa Sra. Aparecida"]
["2019-11-02","Finados"]
["2019-11-15","Proclamação da República"]
["2019-12-25","Natal"]
["2020-01-01","Confraternização Universal"]
["2020-02-24","Carnaval"]
["2020-02-25","Carnaval"]
["2020-04-10","Paixão de Cristo (sexta-feira Santa)"]
["2020-04-21","Tiradentes"]
["2020-05-01","Dia do Trabalho"]
["2020-06-11","Corpus Christi"]
["2020-09-07","Independência do Brasil"]
["2020-10-12","Nossa Sra. Aparecida"]
["2020-11-02","Finados"]
["2020-11-15","Proclamação da República"]
["2020-12-25","Natal"]
[null,"Aniversário da Cidade"]

{"sheet":"Conversor","index":10,"n_rows":14,"n_cols":7,"rows_kept":14,"cut":false,"hidden":true,"merged":[[13,1,13,12]]}
[null,null,null,null,null,"Quantidade de casas decimais para arredondamento =>",2]
[]
[null,"Peças /\nhora",null,"Tempo\nPadrão",{"$f":"IF(C3=0,0,ROUND(60/C3,G1))","v":0}]
[]
[null,"Minutos","Segundos\n(sexagesimal)"]
[null,null,null,"Tempo\nPadrão",{"$f":"ROUND(B6+((C6/0.6)/100),G1)","v":0}]
[]
[null,"Minutos","Segundos\n(sexagesimal)","Qtde\nPeças"]
[null,null,null,null,"Tempo\nPadrão",{"$f":"IF(D9=0,\"\",ROUND((B9+((C9/0.6)/100))/D9,G1))","v":""}]
[]
[null,"Início","Fim","Total\nMinutos","Qtde\nPeças"]
[null,null,null,{"$f":"IF(C12=0,\"\",(C12-B12)*1440)","v":""},null,"Tempo\nPadrão",{"$f":"IF(E12=0,\"\",ROUND((D12/E12),G1))","v":""}]
[]
[null,"Observação: Você poderá usar a quantidade de casas decimais que achar necessário, basta definir na célula \"G1\" o arredondamento que desejar e depois poderá clicar nas células dos resultados e definir quantidades de casa decimais que deseja visualizar."]

{"sheet":"Conversor-2","index":11,"n_rows":6,"n_cols":4,"rows_kept":6,"cut":false,"hidden":true,"merged":[[1,3,1,10]]}
[]
[null,"Minutos trabalhados: ",528," Qtde de minutos trabalhados por operadora num determinado período.\n Exemplo: um dia inteiro ( 44 horas semanais x 60 min. / 5 dias = 528 min. )"]
[null,"Qtde de Operadoras: ",5," Qtde de pessoas envolvidas no serviço (mão-de-obra direta)."]
[null,"Qtde de peças produzidas: ",400," Qtde de peças produzidas neste período informado na \"Célula C2\"."]
[null,"Eficiência do grupo: ",90," Informe a Eficiência que você julga que o grupo produz as peças."]
[null,"Tempo padrão estimado: ",{"$f":"IF(C2=0,0,IF(C3=0,0,IF(C4=0,0,IF(C5=0,0,(C3*C2*(C5/100)/C4)))))","v":5.94}]